{"text_format":"1","workbook":"xlsx","n_sheets":2,"sheets":["Definiciones","Rep_units"],"not_rendered":{"charts":0,"images":0,"macros":1,"external_links":1,"defined_names":6,"comments":1,"pivot_tables":0},"unopened":[],"bounds":{"document_bytes":16777216,"sheet_cells":100000,"rows_first":2000,"rows_last":500,"rows_between":2000,"halvings":0,"cell_chars":16384,"cell_head_chars":4096},"cells_cut":0,"cells_raw":0,"read":"whole","date_system":"1900"}

{"sheet":"Definiciones","index":0,"n_rows":2009,"n_cols":36,"rows_kept":2009,"cut":false,"hidden":false,"merged":[]}
[null,null,"N° partesREP",180,null,"Hora inicio:",null,null,"Corrio macro?",0,null,null,null,null,null,null,null,"Energéticos:","Factores de conversión",null,null,null,"sen","valores 2021 en base a BNE",null,null,null,null,null,null,null,null,null,null,"diccionario para tabla energeticos"]
["id Serv","Modica colaboradores?","Servicio","Fila_Res","pmg 2024","Ministerio","Num2022","Den2022","Emisiones totales 2022; FE emision 2022","Reporte Consumos N°","id","codigo","nombre","region_id","region_ordgeografico","Nombre Region","Codigo Dipres",null,"Litro","Metros Cúbicos","Kilogramos","KiloWatt Hora","FE kgCO2/kWh","aysen","magallanes",null,null,null,"Energetico","Region","FE kgCO2/kWh","Diccionario para emisiones por region","FE kgCO2/kWh",null,"cons_elect",2]
[1,"n/a",null,null,null,null,0,0,"",0,"1","15101","Arica",15,1,"Aric","","Electricidad",null,null,null,1,{"$f":"(0.195+0.2173+0.2383+0.2617)/4","v":0.22807500000000003},0.30492863100000001,0.74096326099999998,null,null,null,"Electricidad",1,0.22807500000000003,{"$f":"AC3&\",\"&AD3","v":"Electricidad,1"},{"$f":"AE3","v":0.22807500000000003},null,"cons_gasred",3]
[2,"n/a",null,null,null,null,0,0,"",0,"2","15102","Camarones",15,1,"Aric","","GN",null,10.86,null,null,0.20205999999999999,null,null,null,null,null,"Electricidad",2,0.22807500000000003,{"$f":"AC4&\",\"&AD4","v":"Electricidad,2"},{"$f":"AE4","v":0.22807500000000003},null,"cons_gasolina",8]
[3,"n/a","Ejercito de Chile",null,null,"Ministerio de Defensa Nacional",0,0,"",4,"3","15201","Putre",15,1,"Aric","","Gasolina",9.51,null,null,null,0.25026999999999999,null,null,"cons_gasolina",null,null,"Electricidad",3,0.22807500000000003,"Electricidad,3",0.22807500000000003,null,"cons_glp",5]
[4,"n/a",null,null,null,null,0,0,"",0,"4","15202","General Lagos",15,1,"Aric","","GLP",9.7200000000000006,7.74,14.07,null,0.22725000000000001,null,null,"cons_glp",null,null,"Electricidad",4,0.22807500000000003,"Electricidad,4",0.22807500000000003,null,"cons_leña",9]
[5,"n/a",null,null,null,null,0,0,"",0,"5","01101","Iquique",1,2,"Tara","","Leña",null,null,4.07,null,6.9899999999999997E-3,null,null,"cons_leña",null,null,"Electricidad",5,0.22807500000000003,"Electricidad,5",0.22807500000000003,null,"cons_keros",10]
[6,"n/a",null,null,null,null,0,0,"",0,"6","01107","Alto Hospicio",1,2,"Tara","","Kerosene",9.67,null,null,null,0.25963000000000003,null,null,"cons_keros",null,null,"Electricidad",6,0.22807500000000003,"Electricidad,6",0.22807500000000003,null,"cons_diesel",4]
[7,"n/a",null,null,null,null,0,0,"",0,"7","01401","Pozo Almonte",1,2,"Tara","","Diesel",10.02,10022.09,null,null,0.26754,null,null,"cons_diesel",null,null,"Electricidad",7,0.22807500000000003,"Electricidad,7",0.22807500000000003,null,"cons_petcomb",6]
[8,"n/a",null,null,null,null,0,0,"",0,"8","01402","Camiña",1,2,"Tara","","Petróleo 5-6",11.43,null,null,null,0.27942,null,null,"cons_petcomb",null,null,"Electricidad",8,0.22807500000000003,"Electricidad,8",0.22807500000000003,null,"cons_pellet",11]
[9,"n/a",null,null,null,null,0,0,"",0,"9","01403","Colchane",1,2,"Tara","","Pellet de leña",null,null,4.5999999999999996,null,6.9899999999999997E-3,null,null,"cons_pellet",null,null,"Electricidad",9,0.22807500000000003,"Electricidad,9",0.22807500000000003,null,"cons_biomasa",7]
[10,"n/a",null,null,null,null,0,0,"",0,"10","01404","Huara",1,2,"Tara","","Biomasa",null,null,5.0999999999999996,null,6.9899999999999997E-3,null,null,"cons_biomasa",null,null,"Electricidad",10,0.22807500000000003,"Electricidad,10",0.22807500000000003,null,"cons_ifo",13]
[11,"n/a",null,null,null,null,0,0,"",0,"11","01405","Pica",1,2,"Tara","","IFO 080K",11.23,null,null,null,0.26466000000000001,null,null,"cons_ifo",null,null,"Electricidad",11,0.30492863100000001,"Electricidad,11",0.30492863100000001,null,"cons_carbon",12]
[12,"n/a",null,null,null,null,0,0,"",0,"12","02101","Antofagasta",2,3,"Anto","","Carbón",null,null,8.3699999999999992,null,6.9899999999999997E-3,"carbon vegetal",null,"cons_carbon",null,null,"Electricidad",12,0.74096326099999998,"Electricidad,12",0.74096326099999998]
[13,"n/a",null,null,null,null,0,0,"",0,"13","02102","Mejillones",2,3,"Anto","",null,null,null,null,null,null,null,null,null,null,null,"Electricidad",13,0.22807500000000003,"Electricidad,13",0.22807500000000003]
[14,"n/a",null,null,null,null,0,0,"",0,"14","02103","Sierra Gorda",2,3,"Anto","",null,null,null,null,null,null,null,null,null,null,null,"Electricidad",14,0.22807500000000003,"Electricidad,14",0.22807500000000003]
[15,"n/a",null,null,null,null,0,0,"",0,"15","02104","Taltal",2,3,"Anto","","Diccionario para fechas PMG",null,null,null,"Diccionario residuos",null,null,"Diccionario contenedores",null,null,null,"Electricidad",15,0.22807500000000003,"Electricidad,15",0.22807500000000003]
[16,"n/a",null,null,null,null,0,0,"",0,"16","02201","Calama",2,3,"Anto","","2022,11",1,null,null,"Papel","resi_res_papel","resi_mes_papel","Papel","resi_con_papel",null,null,"Electricidad",16,0.22807500000000003,"Electricidad,16",0.22807500000000003]
[17,"n/a",null,null,null,null,0,0,"",0,"17","02202","Ollagüe",2,3,"Anto","","2022,12",2,null,null,"Cartón","resi_res_carton","resi_mes_carton","Cartón","resi_con_carton",null,null,"GN",1,0.20205999999999999,"GN,1",0.20205999999999999]
[18,"n/a",null,null,null,null,0,0,"",0,"18","02203","San Pedro de Atacama",2,3,"Anto","","2023,1",3,null,null,"Vidrio","resi_res_vidrio","resi_mes_vidrio","Vidrio","resi_con_vidrio",null,null,"GN",2,0.20205999999999999,"GN,2",0.20205999999999999]
[19,"n/a",null,null,null,null,0,0,"",0,"19","02301","Tocopilla",2,3,"Anto","","2023,2",4,null,null,"Latas aluminio","resi_res_latas","resi_mes_latas","Latas aluminio","resi_con_latas",null,null,"GN",3,0.20205999999999999,"GN,3",0.20205999999999999]
[20,"n/a",null,null,null,null,0,0,"",0,"20","02302","María Elena",2,3,"Anto","","2023,3",5,null,null,"Plástico PET 1 (Botellas bebida)","resi_res_pet1","resi_mes_pet1","Plástico PET 1 (Botellas bebida)","resi_con_pet1",null,null,"GN",4,0.20205999999999999,"GN,4",0.20205999999999999]
[21,"n/a","Armada de Chile",null,null,"Ministerio de Defensa Nacional",0,0,"",4,"21","03101","Copiapó",3,4,"Atac","","2023,4",6,null,null,"Plástico HDPE 2 (Botellas detergentes)","resi_res_hdpe2","resi_mes_hdpe2","Plástico HDPE 2 (Botellas detergentes)","resi_con_hdpe2",null,null,"GN",5,0.20205999999999999,"GN,5",0.20205999999999999]
[22,"n/a",null,null,null,null,0,0,"",0,"22","03102","Caldera",3,4,"Atac","","2023,5",7,null,null,"Plástico LDPE 4 (Bolsas plásticas)","resi_res_ldpe4","resi_mes_ldpe4","Plástico LDPE 4 (Bolsas plásticas)","resi_con_ldpe4",null,null,"GN",6,0.20205999999999999,"GN,6",0.20205999999999999]
[23,"n/a",null,null,null,null,0,0,"",0,"23","03103","Tierra Amarilla",3,4,"Atac","","2023,6",8,null,null,"Plástico PP 5 (tapas de bebidas)","resi_res_pp5","resi_mes_pp5","Plástico PP 5 (tapas de bebidas)","resi_con_pp5",null,null,"GN",7,0.20205999999999999,"GN,7",0.20205999999999999]
[24,"n/a",null,null,null,null,0,0,"",0,"24","03201","Chañaral",3,4,"Atac","","2023,7",9,null,null,"Plástico PS 6 (Poliestireno/ plumavit)","resi_res_ps6","resi_mes_ps6","Plástico PS 6 (Poliestireno/ plumavit)","resi_con_ps6",null,null,"GN",8,0.20205999999999999,"GN,8",0.20205999999999999]
[25,"n/a","Servicio de Salud Aysén",null,null,"Ministerio de Salud",0,0,"",4,"25","03202","Diego de Almagro",3,4,"Atac","","2023,8",10,null,null,"Plástico Otro","resi_res_otroplast","resi_mes_otroplast","Plástico Otro","resi_con_otroplast",null,null,"GN",9,0.20205999999999999,"GN,9",0.20205999999999999]
[26,"n/a","Servicio de Salud Arica",null,null,"Ministerio de Salud",0,0,"",4,"26","03301","Vallenar",3,4,"Atac","","2023,9",11,null,null,"Baterías/pilas","resi_res_baterias","resi_mes_baterias","Baterías/pilas","resi_con_baterias",null,null,"GN",10,0.20205999999999999,"GN,10",0.20205999999999999]
[27,"n/a","Servicio de Salud Magallanes",null,null,"Ministerio de Salud",0,0,"",4,"27","03302","Alto del Carmen",3,4,"Atac","","2023,10",12,null,null,"Orgánico","resi_res_organico","resi_mes_organico","Orgánico","resi_con_organico",null,null,"GN",11,0.20205999999999999,"GN,11",0.20205999999999999]
[28,"n/a",null,null,null,null,0,0,"",0,"28","03303","Freirina",3,4,"Atac","",null,null,null,null,"Tetrapack","resi_res_tetrap","resi_mes_tetrap","Tetrapack","resi_con_tetrap",null,null,"GN",12,0.20205999999999999,"GN,12",0.20205999999999999]
[29,"n/a","Servicio de Salud Metropolitano Sur",null,null,"Ministerio de Salud",0,0,"",4,"29","03304","Huasco",3,4,"Atac","","Diccionario para artefactos de agua",null,null,null,"Residuos electrónicos","resi_res_electro","resi_mes_electro","Residuos electrónicos","resi_con_electro",null,null,"GN",13,0.20205999999999999,"GN,13",0.20205999999999999]
[30,"n/a","Servicio de Salud Araucanía Sur",null,null,"Ministerio de Salud",0,0,"",4,"30","04101","La Serena",4,5,"Coqu","","1,1","agua_bañ_fun",null,null,"Residuos NO reciclados","resi_res_noreci","resi_mes_norecic","Residuos NO reciclados","resi_con_norecic",null,null,"GN",14,0.20205999999999999,"GN,14",0.20205999999999999]
[31,"n/a","Servicio de Salud Metropolitano Occidente",null,null,"Ministerio de Salud",0,0,"",4,"31","04102","Coquimbo",4,5,"Coqu","","1,2","agua_bañ_reg",null,null,null,null,null,null,null,null,null,"GN",15,0.20205999999999999,"GN,15",0.20205999999999999]
[32,"n/a","Servicio de Salud Coquimbo",null,null,"Ministerio de Salud",0,0,"",4,"32","04103","Andacollo",4,5,"Coqu","","1,3","agua_bañ_mal",null,null,null,null,null,null,null,null,null,"GN",16,0.20205999999999999,"GN,16",0.20205999999999999]
[33,"n/a","Servicio de Salud O'Higgins",null,null,"Ministerio de Salud",0,0,"",4,"33","04104","La Higuera",4,5,"Coqu","","1,ef","agua_bañ_efic",null,null,"Diccionario cons mes agua",null,null,null,null,null,null,"cons_gasolina",1,0.25026999999999999,"cons_gasolina,1",0.25026999999999999]
[34,"n/a",null,null,null,null,0,0,"",0,"34","04105","Paiguano",4,5,"Coqu","","2,1","agua_lam_fun",null,null,"2022,11","agua_cons_rednov",null,null,null,null,null,"cons_gasolina",2,0.25026999999999999,"cons_gasolina,2",0.25026999999999999]
[35,"n/a",null,null,null,null,0,0,"",0,"35","04106","Vicuña",4,5,"Coqu","","2,2","agua_lam_reg",null,null,"2022,12","agua_cons_reddic",null,null,null,null,null,"cons_gasolina",3,0.25026999999999999,"cons_gasolina,3",0.25026999999999999]
[36,"n/a",null,null,null,null,0,0,"",0,"36","04201","Illapel",4,5,"Coqu","","2,3","agua_lam_mal",null,null,"2023,1","agua_cons_redene",null,null,null,null,null,"cons_gasolina",4,0.25026999999999999,"cons_gasolina,4",0.25026999999999999]
[37,"n/a",null,null,null,null,0,0,"",0,"37","04202","Canela",4,5,"Coqu","","2,ef","agua_lam_efic",null,null,"2023,2","agua_cons_redfeb",null,null,null,null,null,"cons_gasolina",5,0.25026999999999999,"cons_gasolina,5",0.25026999999999999]
[38,"n/a",null,null,null,null,0,0,"",0,"38","04203","Los Vilos",4,5,"Coqu","","3,1","agua_lap_fun",null,null,"2023,3","agua_cons_redmar",null,null,null,null,null,"cons_gasolina",6,0.25026999999999999,"cons_gasolina,6",0.25026999999999999]
[39,"n/a",null,null,null,null,0,0,"",0,"39","04204","Salamanca",4,5,"Coqu","","3,2","agua_lap_reg",null,null,"2023,4","agua_cons_redabr",null,null,1,"Baño (wc)",null,"cons_gasolina",7,0.25026999999999999,"cons_gasolina,7",0.25026999999999999]
[40,"n/a",null,null,null,null,0,0,"",0,"40","04301","Ovalle",4,5,"Coqu","","3,3","agua_lap_mal",null,null,"2023,5","agua_cons_redmay",null,null,2,"Lavamanos",null,"cons_gasolina",8,0.25026999999999999,"cons_gasolina,8",0.25026999999999999]
[41,"n/a",null,null,null,null,0,0,"",0,"41","04302","Combarbalá",4,5,"Coqu","","3,ef","agua_lap_efic",null,null,"2023,6","agua_cons_redjun",null,null,3,"Lavaplatos",null,"cons_gasolina",9,0.25026999999999999,"cons_gasolina,9",0.25026999999999999]
[42,"n/a","Servicio de Salud Metropolitano Norte",null,null,"Ministerio de Salud",0,0,"",4,"42","04303","Monte Patria",4,5,"Coqu","","4,1","agua_rie_fun",null,null,"2023,7","agua_cons_redjul",null,null,4,"Riego de jardines",null,"cons_gasolina",10,0.25026999999999999,"cons_gasolina,10",0.25026999999999999]
[43,"n/a",null,null,null,null,0,0,"",0,"43","04304","Punitaqui",4,5,"Coqu","","4,2","agua_rie_reg",null,null,"2023,8","agua_cons_redago",null,null,5,"Duchas",null,"cons_gasolina",11,0.25026999999999999,"cons_gasolina,11",0.25026999999999999]
[44,"n/a",null,null,null,null,0,0,"",0,"44","04305","Río Hurtado",4,5,"Coqu","","4,3","agua_rie_mal",null,null,"2023,9","agua_cons_redsep",null,null,6,"Otro",null,"cons_gasolina",12,0.25026999999999999,"cons_gasolina,12",0.25026999999999999]
[45,"n/a",null,null,null,null,0,0,"",0,"45","05101","Valparaíso",5,6,"Valp","","4,ef","agua_rie_efic",null,null,"2023,10","agua_cons_redoct",null,null,7,"Urinarios",null,"cons_gasolina",13,0.25026999999999999,"cons_gasolina,13",0.25026999999999999]
[46,"n/a",null,null,null,null,0,0,"",0,"46","05102","Casablanca",5,6,"Valp","","5,1","agua_duc_fun",null,null,null,null,null,null,8,"Bebederos",null,"cons_gasolina",14,0.25026999999999999,"cons_gasolina,14",0.25026999999999999]
[47,"n/a",null,null,null,null,0,0,"",0,"47","05103","Concón",5,6,"Valp","","5,2","agua_duc_reg",null,null,null,null,null,null,null,null,null,"cons_gasolina",15,0.25026999999999999,"cons_gasolina,15",0.25026999999999999]
[48,"n/a",null,null,null,null,0,0,"",0,"48","05104","Juan Fernández",5,6,"Valp","","5,3","agua_duc_mal",null,null,null,null,null,null,null,null,null,"cons_gasolina",16,0.25026999999999999,"cons_gasolina,16",0.25026999999999999]
[49,"n/a",null,null,null,null,0,0,"",0,"49","05105","Puchuncaví",5,6,"Valp","","5,ef","agua_duc_efic",null,null,null,null,null,null,null,null,null,"cons_glp",1,0.22725000000000001,"cons_glp,1",0.22725000000000001]
[50,"n/a",null,null,null,null,0,0,"",0,"50","05106","Quintero",5,6,"Valp","","6,1","agua_otr_fun",null,null,null,null,null,null,null,null,null,"cons_glp",2,0.22725000000000001,"cons_glp,2",0.22725000000000001]
[51,"n/a",null,null,null,null,0,0,"",0,"51","05107","Viña del Mar",5,6,"Valp","","6,2","agua_otr_reg",null,null,null,null,null,null,null,null,null,"cons_glp",3,0.22725000000000001,"cons_glp,3",0.22725000000000001]
[52,"n/a",null,null,null,null,0,0,"",0,"52","05201","Isla de Pascua",5,6,"Valp","","6,3","agua_otr_mal",null,null,null,null,null,null,null,null,null,"cons_glp",4,0.22725000000000001,"cons_glp,4",0.22725000000000001]
[53,"n/a",null,null,null,null,0,0,"",0,"53","05301","Los Andes",5,6,"Valp","","6,ef","agua_otr_efic",null,null,null,null,null,null,null,null,null,"cons_glp",5,0.22725000000000001,"cons_glp,5",0.22725000000000001]
[54,"n/a",null,null,null,null,0,0,"",0,"54","05302","Calle Larga",5,6,"Valp","","7,1","agua_uri_fun",null,null,null,null,null,null,null,null,null,"cons_glp",6,0.22725000000000001,"cons_glp,6",0.22725000000000001]
[55,"n/a",null,null,null,null,0,0,"",0,"55","05303","Rinconada",5,6,"Valp","","7,2","agua_uri_reg",null,null,null,null,null,null,null,null,null,"cons_glp",7,0.22725000000000001,"cons_glp,7",0.22725000000000001]
[56,"n/a",null,null,null,null,0,0,"",0,"56","05304","San Esteban",5,6,"Valp","","7,3","agua_uri_mal",null,null,null,null,null,null,null,null,null,"cons_glp",8,0.22725000000000001,"cons_glp,8",0.22725000000000001]
[57,"n/a",null,null,null,null,0,0,"",0,"57","05401","La Ligua",5,6,"Valp","","7,ef","agua_uri_efic",null,null,null,null,null,null,null,null,null,"cons_glp",9,0.22725000000000001,"cons_glp,9",0.22725000000000001]
[58,"n/a",null,null,null,null,0,0,"",0,"58","05402","Cabildo",5,6,"Valp","","8,1","agua_beb_fun",null,null,null,null,null,null,null,null,null,"cons_glp",10,0.22725000000000001,"cons_glp,10",0.22725000000000001]
[59,"n/a",null,null,null,null,0,0,"",0,"59","05403","Papudo",5,6,"Valp","","8,2","agua_beb_reg",null,null,null,null,null,null,null,null,null,"cons_glp",11,0.22725000000000001,"cons_glp,11",0.22725000000000001]
[60,"n/a",null,null,null,null,0,0,"",0,"60","05404","Petorca",5,6,"Valp","","8,3","agua_beb_mal",null,null,null,null,null,null,null,null,null,"cons_glp",12,0.22725000000000001,"cons_glp,12",0.22725000000000001]
[61,"n/a",null,null,null,null,0,0,"",0,"61","05405","Zapallar",5,6,"Valp","","8,ef","agua_beb_efic",null,null,null,null,null,null,null,null,null,"cons_glp",13,0.22725000000000001,"cons_glp,13",0.22725000000000001]
[62,"n/a",null,null,null,null,0,0,"",0,"62","05501","Quillota",5,6,"Valp","",null,null,null,null,null,null,null,null,null,null,null,"cons_glp",14,0.22725000000000001,"cons_glp,14",0.22725000000000001]
[63,"n/a",null,null,null,null,0,0,"",0,"63","05502","Calera",5,6,"Valp","",null,null,null,null,null,null,null,null,null,null,null,"cons_glp",15,0.22725000000000001,"cons_glp,15",0.22725000000000001]
[64,"n/a",null,null,null,null,0,0,"",0,"64","05503","Hijuelas",5,6,"Valp","",null,null,null,null,null,null,null,null,null,null,null,"cons_glp",16,0.22725000000000001,"cons_glp,16",0.22725000000000001]
[65,"n/a",null,null,null,null,0,0,"",0,"65","05504","La Cruz",5,6,"Valp","",null,null,null,null,null,null,null,null,null,null,null,"cons_leña",1,6.9899999999999997E-3,"cons_leña,1",6.9899999999999997E-3]
[66,"n/a",null,null,null,null,0,0,"",0,"66","05505","Nogales",5,6,"Valp","",null,null,null,null,null,null,null,null,null,null,null,"cons_leña",2,6.9899999999999997E-3,{"$f":"AC68&\",\"&AD68","v":"cons_leña,2"},{"$f":"AE68","v":6.9899999999999997E-3}]
[67,"n/a",null,null,null,null,0,0,"",0,"67","05601","San Antonio",5,6,"Valp","",null,null,null,null,null,null,null,null,null,null,null,"cons_leña",3,6.9899999999999997E-3,"cons_leña,3",6.9899999999999997E-3]
[68,"n/a",null,null,null,null,0,0,"",0,"68","05602","Algarrobo",5,6,"Valp","",null,null,null,null,null,null,null,null,null,null,null,"cons_leña",4,6.9899999999999997E-3,"cons_leña,4",6.9899999999999997E-3]
[69,"n/a",null,null,null,null,0,0,"",0,"69","05603","Cartagena",5,6,"Valp","",null,null,null,null,null,null,null,null,null,null,null,"cons_leña",5,6.9899999999999997E-3,"cons_leña,5",6.9899999999999997E-3]
[70,"n/a",null,null,null,null,0,0,"",0,"70","05604","El Quisco",5,6,"Valp","",null,null,null,null,null,null,null,null,null,null,null,"cons_leña",6,6.9899999999999997E-3,"cons_leña,6",6.9899999999999997E-3]
[71,"n/a",null,null,null,null,0,0,"",0,"71","05605","El Tabo",5,6,"Valp","",null,null,null,null,null,null,null,null,null,null,null,"cons_leña",7,6.9899999999999997E-3,"cons_leña,7",6.9899999999999997E-3]
[72,"n/a",null,null,null,null,0,0,"",0,"72","05606","Santo Domingo",5,6,"Valp","",null,null,null,null,null,null,null,null,null,null,null,"cons_leña",8,6.9899999999999997E-3,"cons_leña,8",6.9899999999999997E-3]
[73,"n/a",null,null,null,null,0,0,"",0,"73","05701","San Felipe",5,6,"Valp","",null,null,null,null,null,null,null,null,null,null,null,"cons_leña",9,6.9899999999999997E-3,"cons_leña,9",6.9899999999999997E-3]
[74,"n/a",null,null,null,null,0,0,"",0,"74","05702","Catemu",5,6,"Valp","",null,null,null,null,null,null,null,null,null,null,null,"cons_leña",10,6.9899999999999997E-3,"cons_leña,10",6.9899999999999997E-3]
[75,"n/a",null,null,null,null,0,0,"",0,"75","05703","Llaillay",5,6,"Valp","",null,null,null,null,null,null,null,null,null,null,null,"cons_leña",11,6.9899999999999997E-3,"cons_leña,11",6.9899999999999997E-3]
[76,"n/a",null,null,null,null,0,0,"",0,"76","05704","Panquehue",5,6,"Valp","",null,null,null,null,null,null,null,null,null,null,null,"cons_leña",12,6.9899999999999997E-3,"cons_leña,12",6.9899999999999997E-3]
[77,"n/a",null,null,null,null,0,0,"",0,"77","05705","Putaendo",5,6,"Valp","",null,null,null,null,null,null,null,null,null,null,null,"cons_leña",13,6.9899999999999997E-3,"cons_leña,13",6.9899999999999997E-3]
[78,"n/a",null,null,null,null,0,0,"",0,"78","05706","Santa María",5,6,"Valp","",null,null,null,null,null,null,null,null,null,null,null,"cons_leña",14,6.9899999999999997E-3,"cons_leña,14",6.9899999999999997E-3]
[79,"n/a",null,null,null,null,0,0,"",0,"79","05801","Quilpué",5,6,"Valp","",null,null,null,null,null,null,null,null,null,null,null,"cons_leña",15,6.9899999999999997E-3,"cons_leña,15",6.9899999999999997E-3]
[80,"n/a",null,null,null,null,0,0,"",0,"80","05802","Limache",5,6,"Valp","",null,null,null,null,null,null,null,null,null,null,null,"cons_leña",16,6.9899999999999997E-3,"cons_leña,16",6.9899999999999997E-3]
[81,"n/a",null,null,null,null,0,0,"",0,"81","05803","Olmué",5,6,"Valp","",null,null,null,null,null,null,null,null,null,null,null,"cons_keros",1,0.25963000000000003,"cons_keros,1",0.25963000000000003]
[82,"n/a",null,null,null,null,0,0,"",0,"82","05804","Villa Alemana",5,6,"Valp","",null,null,null,null,null,null,null,null,null,null,null,"cons_keros",2,0.25963000000000003,"cons_keros,2",0.25963000000000003]
[83,"n/a",null,null,null,null,0,0,"",0,"83","06101","Rancagua",6,8,"Libe","",null,null,null,null,null,null,null,null,null,null,null,"cons_keros",3,0.25963000000000003,"cons_keros,3",0.25963000000000003]
[84,"n/a",null,null,null,null,0,0,"",0,"84","06102","Codegua",6,8,"Libe","",null,null,null,null,null,null,null,null,null,null,null,"cons_keros",4,0.25963000000000003,"cons_keros,4",0.25963000000000003]
[85,"n/a",null,null,null,null,0,0,"",0,"85","06103","Coinco",6,8,"Libe","",null,null,null,null,null,null,null,null,null,null,null,"cons_keros",5,0.25963000000000003,"cons_keros,5",0.25963000000000003]
[86,"n/a",null,null,null,null,0,0,"",0,"86","06104","Coltauco",6,8,"Libe","",null,null,null,null,null,null,null,null,null,null,null,"cons_keros",6,0.25963000000000003,"cons_keros,6",0.25963000000000003]
[87,"n/a",null,null,null,null,0,0,"",0,"87","06105","Doñihue",6,8,"Libe","",null,null,null,null,null,null,null,null,null,null,null,"cons_keros",7,0.25963000000000003,"cons_keros,7",0.25963000000000003]
[88,"n/a",null,null,null,null,0,0,"",0,"88","06106","Graneros",6,8,"Libe","",null,null,null,null,null,null,null,null,null,null,null,"cons_keros",8,0.25963000000000003,"cons_keros,8",0.25963000000000003]
[89,"n/a",null,null,null,null,0,0,"",0,"89","06107","Las Cabras",6,8,"Libe","",null,null,null,null,null,null,null,null,null,null,null,"cons_keros",9,0.25963000000000003,"cons_keros,9",0.25963000000000003]
[90,"n/a",null,null,null,null,0,0,"",0,"90","06108","Machalí",6,8,"Libe","",null,null,null,null,null,null,null,null,null,null,null,"cons_keros",10,0.25963000000000003,"cons_keros,10",0.25963000000000003]
[91,"n/a",null,null,null,null,0,0,"",0,"91","06109","Malloa",6,8,"Libe","",null,null,null,null,null,null,null,null,null,null,null,"cons_keros",11,0.25963000000000003,"cons_keros,11",0.25963000000000003]
[92,"n/a",null,null,null,null,0,0,"",0,"92","06110","Mostazal",6,8,"Libe","",null,null,null,null,null,null,null,null,null,null,null,"cons_keros",12,0.25963000000000003,"cons_keros,12",0.25963000000000003]
[93,"n/a",null,null,null,null,0,0,"",0,"93","06111","Olivar",6,8,"Libe","",null,null,null,null,null,null,null,null,null,null,null,"cons_keros",13,0.25963000000000003,"cons_keros,13",0.25963000000000003]
[94,"n/a",null,null,null,null,0,0,"",0,"94","06112","Peumo",6,8,"Libe","",null,null,null,null,null,null,null,null,null,null,null,"cons_keros",14,0.25963000000000003,"cons_keros,14",0.25963000000000003]
[95,"n/a",null,null,null,null,0,0,"",0,"95","06113","Pichidegua",6,8,"Libe","",null,null,null,null,null,null,null,null,null,null,null,"cons_keros",15,0.25963000000000003,"cons_keros,15",0.25963000000000003]
[96,"n/a",null,null,null,null,0,0,"",0,"96","06114","Quinta de Tilcoco",6,8,"Libe","",null,null,null,null,null,null,null,null,null,null,null,"cons_keros",16,0.25963000000000003,"cons_keros,16",0.25963000000000003]
[97,"n/a",null,null,null,null,0,0,"",0,"97","06115","Rengo",6,8,"Libe","",null,null,null,null,null,null,null,null,null,null,null,"cons_diesel",1,0.26754,"cons_diesel,1",0.26754]
[98,"n/a",null,null,null,null,0,0,"",0,"98","06116","Requínoa",6,8,"Libe","",null,null,null,null,null,null,null,null,null,null,null,"cons_diesel",2,0.26754,"cons_diesel,2",0.26754]
[99,"n/a",null,null,null,null,0,0,"",0,"99","06117","San Vicente",6,8,"Libe","",null,null,null,null,null,null,null,null,null,null,null,"cons_diesel",3,0.26754,"cons_diesel,3",0.26754]
[100,"n/a",null,null,null,null,0,0,"",0,"100","06201","Pichilemu",6,8,"Libe","",null,null,null,null,null,null,null,null,null,null,null,"cons_diesel",4,0.26754,"cons_diesel,4",0.26754]
[101,"n/a",null,null,null,null,0,0,"",0,"101","06202","La Estrella",6,8,"Libe","",null,null,null,null,null,null,null,null,null,null,null,"cons_diesel",5,0.26754,"cons_diesel,5",0.26754]
[102,"n/a",null,null,null,null,0,0,"",0,"102","06203","Litueche",6,8,"Libe","",null,null,null,null,null,null,null,null,null,null,null,"cons_diesel",6,0.26754,"cons_diesel,6",0.26754]
[103,"n/a",null,null,null,null,0,0,"",0,"103","06204","Marchihue",6,8,"Libe","",null,null,null,null,null,null,null,null,null,null,null,"cons_diesel",7,0.26754,"cons_diesel,7",0.26754]
[104,"n/a",null,null,null,null,0,0,"",0,"104","06205","Navidad",6,8,"Libe","",null,null,null,null,null,null,null,null,null,null,null,"cons_diesel",8,0.26754,"cons_diesel,8",0.26754]
[105,"n/a",null,null,null,null,0,0,"",0,"105","06206","Paredones",6,8,"Libe","",null,null,null,null,null,null,null,null,null,null,null,"cons_diesel",9,0.26754,"cons_diesel,9",0.26754]
[106,"n/a",null,null,null,null,0,0,"",0,"106","06301","San Fernando",6,8,"Libe","",null,null,null,null,null,null,null,null,null,null,null,"cons_diesel",10,0.26754,"cons_diesel,10",0.26754]
[107,"n/a",null,null,null,null,0,0,"",0,"107","06302","Chépica",6,8,"Libe","",null,null,null,null,null,null,null,null,null,null,null,"cons_diesel",11,0.26754,"cons_diesel,11",0.26754]
[108,"n/a",null,null,null,null,0,0,"",0,"108","06303","Chimbarongo",6,8,"Libe","",null,null,null,null,null,null,null,null,null,null,null,"cons_diesel",12,0.26754,"cons_diesel,12",0.26754]
[109,"n/a",null,null,null,null,0,0,"",0,"109","06304","Lolol",6,8,"Libe","",null,null,null,null,null,null,null,null,null,null,null,"cons_diesel",13,0.26754,"cons_diesel,13",0.26754]
[110,"n/a",null,null,null,null,0,0,"",0,"110","06305","Nancagua",6,8,"Libe","",null,null,null,null,null,null,null,null,null,null,null,"cons_diesel",14,0.26754,"cons_diesel,14",0.26754]
[111,"n/a",null,null,null,null,0,0,"",0,"111","06306","Palmilla",6,8,"Libe","",null,null,null,null,null,null,null,null,null,null,null,"cons_diesel",15,0.26754,"cons_diesel,15",0.26754]
[112,"n/a",null,null,null,null,0,0,"",0,"112","06307","Peralillo",6,8,"Libe","",null,null,null,null,null,null,null,null,null,null,null,"cons_diesel",16,0.26754,"cons_diesel,16",0.26754]
[113,"n/a",null,null,null,null,0,0,"",0,"113","06308","Placilla",6,8,"Libe","",null,null,null,null,null,null,null,null,null,null,null,"cons_petcomb",1,0.27942,"cons_petcomb,1",0.27942]
[114,"n/a",null,null,null,null,0,0,"",0,"114","06309","Pumanque",6,8,"Libe","",null,null,null,null,null,null,null,null,null,null,null,"cons_petcomb",2,0.27942,"cons_petcomb,2",0.27942]
[115,"n/a",null,null,null,null,0,0,"",0,"115","06310","Santa Cruz",6,8,"Libe","",null,null,null,null,null,null,null,null,null,null,null,"cons_petcomb",3,0.27942,"cons_petcomb,3",0.27942]
[116,"n/a",null,null,null,null,0,0,"",0,"116","07101","Talca",7,9,"Maul","",null,null,null,null,null,null,null,null,null,null,null,"cons_petcomb",4,0.27942,"cons_petcomb,4",0.27942]
[117,"n/a",null,null,null,null,0,0,"",0,"117","07102","Constitución",7,9,"Maul","",null,null,null,null,null,null,null,null,null,null,null,"cons_petcomb",5,0.27942,"cons_petcomb,5",0.27942]
[118,"n/a",null,null,null,null,0,0,"",0,"118","07103","Curepto",7,9,"Maul","",null,null,null,null,null,null,null,null,null,null,null,"cons_petcomb",6,0.27942,"cons_petcomb,6",0.27942]
[119,"n/a",null,null,null,null,0,0,"",0,"119","07104","Empedrado",7,9,"Maul","",null,null,null,null,null,null,null,null,null,null,null,"cons_petcomb",7,0.27942,"cons_petcomb,7",0.27942]
[120,"n/a",null,null,null,null,0,0,"",0,"120","07105","Maule",7,9,"Maul","",null,null,null,null,null,null,null,null,null,null,null,"cons_petcomb",8,0.27942,"cons_petcomb,8",0.27942]
[121,"n/a",null,null,null,null,0,0,"",0,"121","07106","Pelarco",7,9,"Maul","",null,null,null,null,null,null,null,null,null,null,null,"cons_petcomb",9,0.27942,"cons_petcomb,9",0.27942]
[122,"n/a",null,null,null,null,0,0,"",0,"122","07107","Pencahue",7,9,"Maul","",null,null,null,null,null,null,null,null,null,null,null,"cons_petcomb",10,0.27942,"cons_petcomb,10",0.27942]
[123,"n/a",null,null,null,null,0,0,"",0,"123","07108","Río Claro",7,9,"Maul","",null,null,null,null,null,null,null,null,null,null,null,"cons_petcomb",11,0.27942,"cons_petcomb,11",0.27942]
[124,"n/a",null,null,null,null,0,0,"",0,"124","07109","San Clemente",7,9,"Maul","",null,null,null,null,null,null,null,null,null,null,null,"cons_petcomb",12,0.27942,"cons_petcomb,12",0.27942]
[125,"n/a",null,null,null,null,0,0,"",0,"125","07110","San Rafael",7,9,"Maul","",null,null,null,null,null,null,null,null,null,null,null,"cons_petcomb",13,0.27942,"cons_petcomb,13",0.27942]
[126,"n/a",null,null,null,null,0,0,"",0,"126","07201","Cauquenes",7,9,"Maul","",null,null,null,null,null,null,null,null,null,null,null,"cons_petcomb",14,0.27942,"cons_petcomb,14",0.27942]
[127,"n/a",null,null,null,null,0,0,"",0,"127","07202","Chanco",7,9,"Maul","",null,null,null,null,null,null,null,null,null,null,null,"cons_petcomb",15,0.27942,"cons_petcomb,15",0.27942]
[128,"n/a",null,null,null,null,0,0,"",0,"128","07203","Pelluhue",7,9,"Maul","",null,null,null,null,null,null,null,null,null,null,null,"cons_petcomb",16,0.27942,"cons_petcomb,16",0.27942]
[129,"n/a",null,null,null,null,0,0,"",0,"129","07301","Curicó",7,9,"Maul","",null,null,null,null,null,null,null,null,null,null,null,"cons_pellet",1,6.9899999999999997E-3,"cons_pellet,1",6.9899999999999997E-3]
[130,"n/a",null,null,null,null,0,0,"",0,"130","07302","Hualañé",7,9,"Maul","",null,null,null,null,null,null,null,null,null,null,null,"cons_pellet",2,6.9899999999999997E-3,{"$f":"AC132&\",\"&AD132","v":"cons_pellet,2"},{"$f":"AE132","v":6.9899999999999997E-3}]
[131,"n/a",null,null,null,null,0,0,"",0,"131","07303","Licantén",7,9,"Maul","",null,null,null,null,null,null,null,null,null,null,null,"cons_pellet",3,6.9899999999999997E-3,"cons_pellet,3",6.9899999999999997E-3]
[132,"n/a",null,null,null,null,0,0,"",0,"132","07304","Molina",7,9,"Maul","",null,null,null,null,null,null,null,null,null,null,null,"cons_pellet",4,6.9899999999999997E-3,"cons_pellet,4",6.9899999999999997E-3]
[133,"n/a",null,null,null,null,0,0,"",0,"133","07305","Rauco",7,9,"Maul","",null,null,null,null,null,null,null,null,null,null,null,"cons_pellet",5,6.9899999999999997E-3,"cons_pellet,5",6.9899999999999997E-3]
[134,"n/a",null,null,null,null,0,0,"",0,"134","07306","Romeral",7,9,"Maul","",null,null,null,null,null,null,null,null,null,null,null,"cons_pellet",6,6.9899999999999997E-3,"cons_pellet,6",6.9899999999999997E-3]
[135,"n/a",null,null,null,null,0,0,"",0,"135","07307","Sagrada Familia",7,9,"Maul","",null,null,null,null,null,null,null,null,null,null,null,"cons_pellet",7,6.9899999999999997E-3,"cons_pellet,7",6.9899999999999997E-3]
[136,"n/a",null,null,null,null,0,0,"",0,"136","07308","Teno",7,9,"Maul","",null,null,null,null,null,null,null,null,null,null,null,"cons_pellet",8,6.9899999999999997E-3,"cons_pellet,8",6.9899999999999997E-3]
[137,"n/a",null,null,null,null,0,0,"",0,"137","07309","Vichuquén",7,9,"Maul","",null,null,null,null,null,null,null,null,null,null,null,"cons_pellet",9,6.9899999999999997E-3,"cons_pellet,9",6.9899999999999997E-3]
[138,"n/a",null,null,null,null,0,0,"",0,"138","07401","Linares",7,9,"Maul","",null,null,null,null,null,null,null,null,null,null,null,"cons_pellet",10,6.9899999999999997E-3,"cons_pellet,10",6.9899999999999997E-3]
[139,"n/a",null,null,null,null,0,0,"",0,"139","07402","Colbún",7,9,"Maul","",null,null,null,null,null,null,null,null,null,null,null,"cons_pellet",11,6.9899999999999997E-3,"cons_pellet,11",6.9899999999999997E-3]
[140,"n/a",null,null,null,null,0,0,"",0,"140","07403","Longaví",7,9,"Maul","",null,null,null,null,null,null,null,null,null,null,null,"cons_pellet",12,6.9899999999999997E-3,"cons_pellet,12",6.9899999999999997E-3]
[141,"n/a",null,null,null,null,0,0,"",0,"141","07404","Parral",7,9,"Maul","",null,null,null,null,null,null,null,null,null,null,null,"cons_pellet",13,6.9899999999999997E-3,"cons_pellet,13",6.9899999999999997E-3]
[142,"n/a",null,null,null,null,0,0,"",0,"142","07405","Retiro",7,9,"Maul","",null,null,null,null,null,null,null,null,null,null,null,"cons_pellet",14,6.9899999999999997E-3,"cons_pellet,14",6.9899999999999997E-3]
[143,"n/a",null,null,null,null,0,0,"",0,"143","07406","San Javier",7,9,"Maul","",null,null,null,null,null,null,null,null,null,null,null,"cons_pellet",15,6.9899999999999997E-3,"cons_pellet,15",6.9899999999999997E-3]
[144,"n/a",null,null,null,null,0,0,"",0,"144","07407","Villa Alegre",7,9,"Maul","",null,null,null,null,null,null,null,null,null,null,null,"cons_pellet",16,6.9899999999999997E-3,"cons_pellet,16",6.9899999999999997E-3]
[145,"n/a",null,null,null,null,0,0,"",0,"145","07408","Yerbas Buenas",7,9,"Maul","",null,null,null,null,null,null,null,null,null,null,null,"cons_biomasa",1,6.9899999999999997E-3,"cons_biomasa,1",6.9899999999999997E-3]
[146,"n/a",null,null,null,null,0,0,"",0,"146","08101","Concepción",8,11,"BioB","",null,null,null,null,null,null,null,null,null,null,null,"cons_biomasa",2,6.9899999999999997E-3,"cons_biomasa,2",6.9899999999999997E-3]
[147,"n/a",null,null,null,null,0,0,"",0,"147","08102","Coronel",8,11,"BioB","",null,null,null,null,null,null,null,null,null,null,null,"cons_biomasa",3,6.9899999999999997E-3,"cons_biomasa,3",6.9899999999999997E-3]
[148,"n/a",null,null,null,null,0,0,"",0,"148","08103","Chiguayante",8,11,"BioB","",null,null,null,null,null,null,null,null,null,null,null,"cons_biomasa",4,6.9899999999999997E-3,"cons_biomasa,4",6.9899999999999997E-3]
[149,"n/a",null,null,null,null,0,0,"",0,"149","08104","Florida",8,11,"BioB","",null,null,null,null,null,null,null,null,null,null,null,"cons_biomasa",5,6.9899999999999997E-3,"cons_biomasa,5",6.9899999999999997E-3]
[150,"n/a","Servicio de Salud de Viña del Mar Quillota",null,null,"Ministerio de Salud",0,0,"",3,"150","08105","Hualqui",8,11,"BioB","",null,null,null,null,null,null,null,null,null,null,null,"cons_biomasa",6,6.9899999999999997E-3,"cons_biomasa,6",6.9899999999999997E-3]
[151,"n/a",null,null,null,null,0,0,"",0,"151","08106","Lota",8,11,"BioB","",null,null,null,null,null,null,null,null,null,null,null,"cons_biomasa",7,6.9899999999999997E-3,"cons_biomasa,7",6.9899999999999997E-3]
[152,"n/a",null,null,null,null,0,0,"",0,"152","08107","Penco",8,11,"BioB","",null,null,null,null,null,null,null,null,null,null,null,"cons_biomasa",8,6.9899999999999997E-3,"cons_biomasa,8",6.9899999999999997E-3]
[153,"n/a",null,null,null,null,0,0,"",0,"153","08108","San Pedro de la Paz",8,11,"BioB","",null,null,null,null,null,null,null,null,null,null,null,"cons_biomasa",9,6.9899999999999997E-3,"cons_biomasa,9",6.9899999999999997E-3]
[154,"n/a",null,null,null,null,0,0,"",0,"154","08109","Santa Juana",8,11,"BioB","",null,null,null,null,null,null,null,null,null,null,null,"cons_biomasa",10,6.9899999999999997E-3,"cons_biomasa,10",6.9899999999999997E-3]
[155,"n/a",null,null,null,null,0,0,"",0,"155","08110","Talcahuano",8,11,"BioB","",null,null,null,null,null,null,null,null,null,null,null,"cons_biomasa",11,6.9899999999999997E-3,"cons_biomasa,11",6.9899999999999997E-3]
[156,"n/a",null,null,null,null,0,0,"",0,"156","08111","Tomé",8,11,"BioB","",null,null,null,null,null,null,null,null,null,null,null,"cons_biomasa",12,6.9899999999999997E-3,"cons_biomasa,12",6.9899999999999997E-3]
[157,"n/a",null,null,null,null,0,0,"",0,"157","08112","Hualpén",8,11,"BioB","",null,null,null,null,null,null,null,null,null,null,null,"cons_biomasa",13,6.9899999999999997E-3,"cons_biomasa,13",6.9899999999999997E-3]
[158,"n/a",null,null,null,null,0,0,"",0,"158","08201","Lebu",8,11,"BioB","",null,null,null,null,null,null,null,null,null,null,null,"cons_biomasa",14,6.9899999999999997E-3,"cons_biomasa,14",6.9899999999999997E-3]
[159,"n/a","Servicio de Salud Valdivia",null,null,"Ministerio de Salud",0,0,"",4,"159","08202","Arauco",8,11,"BioB","",null,null,null,null,null,null,null,null,null,null,null,"cons_biomasa",15,6.9899999999999997E-3,"cons_biomasa,15",6.9899999999999997E-3]
[160,"n/a",null,null,null,null,0,0,"",0,"160","08203","Cañete",8,11,"BioB","",null,null,null,null,null,null,null,null,null,null,null,"cons_biomasa",16,6.9899999999999997E-3,"cons_biomasa,16",6.9899999999999997E-3]
[161,"n/a","Servicio de Salud Aconcagua",null,null,"Ministerio de Salud",0,0,"",3,"161","08204","Contulmo",8,11,"BioB","",null,null,null,null,null,null,null,null,null,null,null,"cons_ifo",1,0.26466000000000001,"cons_ifo,1",0.26466000000000001]
[162,"n/a",null,null,null,null,0,0,"",0,"162","08205","Curanilahue",8,11,"BioB","",null,null,null,null,null,null,null,null,null,null,null,"cons_ifo",2,0.26466000000000001,"cons_ifo,2",0.26466000000000001]
[163,"n/a",null,null,null,null,0,0,"",0,"163","08206","Los Álamos",8,11,"BioB","",null,null,null,null,null,null,null,null,null,null,null,"cons_ifo",3,0.26466000000000001,"cons_ifo,3",0.26466000000000001]
[164,"n/a",null,null,null,null,0,0,"",0,"164","08207","Tirúa",8,11,"BioB","",null,null,null,null,null,null,null,null,null,null,null,"cons_ifo",4,0.26466000000000001,"cons_ifo,4",0.26466000000000001]
[165,"n/a",null,null,null,null,0,0,"",0,"165","08301","Los Ángeles",8,11,"BioB","",null,null,null,null,null,null,null,null,null,null,null,"cons_ifo",5,0.26466000000000001,"cons_ifo,5",0.26466000000000001]
[166,"n/a","Servicio de Salud Atacama",null,null,"Ministerio de Salud",0,0,"",4,"166","08302","Antuco",8,11,"BioB","",null,null,null,null,null,null,null,null,null,null,null,"cons_ifo",6,0.26466000000000001,"cons_ifo,6",0.26466000000000001]
[167,"n/a","Servicio de Salud Iquique",null,null,"Ministerio de Salud",0,0,"",4,"167","08303","Cabrero",8,11,"BioB","",null,null,null,null,null,null,null,null,null,null,null,"cons_ifo",7,0.26466000000000001,"cons_ifo,7",0.26466000000000001]
[168,"n/a",null,null,null,null,0,0,"",0,"168","08304","Laja",8,11,"BioB","",null,null,null,null,null,null,null,null,null,null,null,"cons_ifo",8,0.26466000000000001,"cons_ifo,8",0.26466000000000001]
[169,"n/a",null,null,null,null,0,0,"",0,"169","08305","Mulchén",8,11,"BioB","",null,null,null,null,null,null,null,null,null,null,null,"cons_ifo",9,0.26466000000000001,"cons_ifo,9",0.26466000000000001]
[170,"n/a",null,null,null,null,0,0,"",0,"170","08306","Nacimiento",8,11,"BioB","",null,null,null,null,null,null,null,null,null,null,null,"cons_ifo",10,0.26466000000000001,"cons_ifo,10",0.26466000000000001]
[171,"n/a",null,null,null,null,0,0,"",0,"171","08307","Negrete",8,11,"BioB","",null,null,null,null,null,null,null,null,null,null,null,"cons_ifo",11,0.26466000000000001,"cons_ifo,11",0.26466000000000001]
[172,"n/a",null,null,null,null,0,0,"",0,"172","08308","Quilaco",8,11,"BioB","",null,null,null,null,null,null,null,null,null,null,null,"cons_ifo",12,0.26466000000000001,"cons_ifo,12",0.26466000000000001]
[173,"n/a",null,null,null,null,0,0,"",0,"173","08309","Quilleco",8,11,"BioB","",null,null,null,null,null,null,null,null,null,null,null,"cons_ifo",13,0.26466000000000001,"cons_ifo,13",0.26466000000000001]
[174,"n/a",null,null,null,null,0,0,"",0,"174","08310","San Rosendo",8,11,"BioB","",null,null,null,null,null,null,null,null,null,null,null,"cons_ifo",14,0.26466000000000001,"cons_ifo,14",0.26466000000000001]
[175,"n/a",null,null,null,null,0,0,"",0,"175","08311","Santa Bárbara",8,11,"BioB","",null,null,null,null,null,null,null,null,null,null,null,"cons_ifo",15,0.26466000000000001,"cons_ifo,15",0.26466000000000001]
[176,"n/a",null,null,null,null,0,0,"",0,"176","08312","Tucapel",8,11,"BioB","",null,null,null,null,null,null,null,null,null,null,null,"cons_ifo",16,0.26466000000000001,"cons_ifo,16",0.26466000000000001]
[177,"n/a",null,null,null,null,0,0,"",0,"177","08313","Yumbel",8,11,"BioB","",null,null,null,null,null,null,null,null,null,null,null,"cons_carbon",1,6.9899999999999997E-3,"cons_carbon,1",6.9899999999999997E-3]
[178,"n/a",null,null,null,null,0,0,"",0,"178","08314","Alto Biobío",8,11,"BioB","",null,null,null,null,null,null,null,null,null,null,null,"cons_carbon",2,6.9899999999999997E-3,"cons_carbon,2",6.9899999999999997E-3]
[179,"n/a",null,null,null,null,0,0,"",0,"179","08401","Chillán",16,10,"Ñubl","",null,null,null,null,null,null,null,null,null,null,null,"cons_carbon",3,6.9899999999999997E-3,"cons_carbon,3",6.9899999999999997E-3]
[180,"n/a",null,null,null,null,0,0,"",0,"180","08402","Bulnes",16,10,"Ñubl","",null,null,null,null,null,null,null,null,null,null,null,"cons_carbon",4,6.9899999999999997E-3,"cons_carbon,4",6.9899999999999997E-3]
[181,"n/a",null,null,null,null,0,0,"",0,"181","08403","Cobquecura",16,10,"Ñubl","",null,null,null,null,null,null,null,null,null,null,null,"cons_carbon",5,6.9899999999999997E-3,"cons_carbon,5",6.9899999999999997E-3]
[182,"n/a",null,null,null,null,0,0,"",0,"182","08404","Coelemu",16,10,"Ñubl","",null,null,null,null,null,null,null,null,null,null,null,"cons_carbon",6,6.9899999999999997E-3,"cons_carbon,6",6.9899999999999997E-3]
[183,"n/a",null,null,null,null,0,0,"",0,"183","08405","Coihueco",16,10,"Ñubl","",null,null,null,null,null,null,null,null,null,null,null,"cons_carbon",7,6.9899999999999997E-3,"cons_carbon,7",6.9899999999999997E-3]
[184,"n/a",null,null,null,null,0,0,"",0,"184","08406","Chillán Viejo",16,10,"Ñubl","",null,null,null,null,null,null,null,null,null,null,null,"cons_carbon",8,6.9899999999999997E-3,"cons_carbon,8",6.9899999999999997E-3]
[185,"n/a",null,null,null,null,0,0,"",0,"185","08407","El Carmen",16,10,"Ñubl","",null,null,null,null,null,null,null,null,null,null,null,"cons_carbon",9,6.9899999999999997E-3,"cons_carbon,9",6.9899999999999997E-3]
[186,"n/a",null,null,null,null,0,0,"",0,"186","08408","Ninhue",16,10,"Ñubl","",null,null,null,null,null,null,null,null,null,null,null,"cons_carbon",10,6.9899999999999997E-3,"cons_carbon,10",6.9899999999999997E-3]
[187,"n/a",null,null,null,null,0,0,"",0,"187","08409","Ñiquén",16,10,"Ñubl","",null,null,null,null,null,null,null,null,null,null,null,"cons_carbon",11,6.9899999999999997E-3,"cons_carbon,11",6.9899999999999997E-3]
[188,"n/a",null,null,null,null,0,0,"",0,"188","08410","Pemuco",16,10,"Ñubl","",null,null,null,null,null,null,null,null,null,null,null,"cons_carbon",12,6.9899999999999997E-3,"cons_carbon,12",6.9899999999999997E-3]
[189,"n/a",null,null,null,null,0,0,"",0,"189","08411","Pinto",16,10,"Ñubl","",null,null,null,null,null,null,null,null,null,null,null,"cons_carbon",13,6.9899999999999997E-3,"cons_carbon,13",6.9899999999999997E-3]
[190,"n/a",null,null,null,null,0,0,"",0,"190","08412","Portezuelo",16,10,"Ñubl","",null,null,null,null,null,null,null,null,null,null,null,"cons_carbon",14,6.9899999999999997E-3,"cons_carbon,14",6.9899999999999997E-3]
[191,"n/a",null,null,null,null,0,0,"",0,"191","08413","Quillón",16,10,"Ñubl","",null,null,null,null,null,null,null,null,null,null,null,"cons_carbon",15,6.9899999999999997E-3,"cons_carbon,15",6.9899999999999997E-3]
[192,"n/a",null,null,null,null,0,0,"",0,"192","08414","Quirihue",16,10,"Ñubl","",null,null,null,null,null,null,null,null,null,null,null,"cons_carbon",16,6.9899999999999997E-3,"cons_carbon,16",6.9899999999999997E-3]
[193,"n/a",null,null,null,null,0,0,"",0,"193","08415","Ránquil",16,10,"Ñubl",""]
[194,"n/a",null,null,null,null,0,0,"",0,"194","08416","San Carlos",16,10,"Ñubl",""]
[195,"n/a",null,null,null,null,0,0,"",0,"195","08417","San Fabián",16,10,"Ñubl",""]
[196,"n/a",null,null,null,null,0,0,"",0,"196","08418","San Ignacio",16,10,"Ñubl",""]
[197,"n/a",null,null,null,null,0,0,"",0,"197","08419","San Nicolás",16,10,"Ñubl",""]
[198,"n/a",null,null,null,null,0,0,"",0,"198","08420","Treguaco",16,10,"Ñubl",""]
[199,"n/a",null,null,null,null,0,0,"",0,"199","08421","Yungay",16,10,"Ñubl",""]
[200,"n/a",null,null,null,null,0,0,"",0,"200","09101","Temuco",9,12,"Arau",""]
[201,"n/a",null,null,null,null,0,0,"",0,"201","09102","Carahue",9,12,"Arau",""]
[202,"n/a",null,null,null,null,0,0,"",0,"202","09103","Cunco",9,12,"Arau",""]
[203,"n/a",null,null,null,null,0,0,"",0,"203","09104","Curarrehue",9,12,"Arau",""]
[204,"n/a",null,null,null,null,0,0,"",0,"204","09105","Freire",9,12,"Arau",""]
[205,"n/a",null,null,null,null,0,0,"",0,"205","09106","Galvarino",9,12,"Arau",""]
[206,"n/a",null,null,null,null,0,0,"",0,"206","09107","Gorbea",9,12,"Arau",""]
[207,"n/a",null,null,null,null,0,0,"",0,"207","09108","Lautaro",9,12,"Arau",""]
[208,"n/a",null,null,null,null,0,0,"",0,"208","09109","Loncoche",9,12,"Arau",""]
[209,"n/a",null,null,null,null,0,0,"",0,"209","09110","Melipeuco",9,12,"Arau",""]
[210,"n/a",null,null,null,null,0,0,"",0,"210","09111","Nueva Imperial",9,12,"Arau",""]
[211,"n/a",null,null,null,null,0,0,"",0,"211","09112","Padre las Casas",9,12,"Arau",""]
[212,"n/a",null,null,null,null,0,0,"",0,"212","09113","Perquenco",9,12,"Arau",""]
[213,"n/a",null,null,null,null,0,0,"",0,"213","09114","Pitrufquén",9,12,"Arau",""]
[214,"n/a",null,null,null,null,0,0,"",0,"214","09115","Pucón",9,12,"Arau",""]
[215,"n/a",null,null,null,null,0,0,"",0,"215","09116","Saavedra",9,12,"Arau",""]
[216,"n/a",null,null,null,null,0,0,"",0,"216","09117","Teodoro Schmidt",9,12,"Arau",""]
[217,"n/a",null,null,null,null,0,0,"",0,"217","09118","Toltén",9,12,"Arau",""]
[218,"n/a",null,null,null,null,0,0,"",0,"218","09119","Vilcún",9,12,"Arau",""]
[219,"n/a",null,null,null,null,0,0,"",0,"219","09120","Villarrica",9,12,"Arau",""]
[220,"n/a",null,null,null,null,0,0,"",0,"220","09121","Cholchol",9,12,"Arau",""]
[221,"n/a",null,null,null,null,0,0,"",0,"221","09201","Angol",9,12,"Arau",""]
[222,"n/a",null,null,null,null,0,0,"",0,"222","09202","Collipulli",9,12,"Arau",""]
[223,"n/a",null,null,null,null,0,0,"",0,"223","09203","Curacautín",9,12,"Arau",""]
[224,"n/a",null,null,null,null,0,0,"",0,"224","09204","Ercilla",9,12,"Arau",""]
[225,"n/a",null,null,null,null,0,0,"",0,"225","09205","Lonquimay",9,12,"Arau",""]
[226,"n/a",null,null,null,null,0,0,"",0,"226","09206","Los Sauces",9,12,"Arau",""]
[227,"n/a",null,null,null,null,0,0,"",0,"227","09207","Lumaco",9,12,"Arau",""]
[228,"n/a",null,null,null,null,0,0,"",0,"228","09208","Purén",9,12,"Arau",""]
[229,"n/a",null,null,null,null,0,0,"",0,"229","09209","Renaico",9,12,"Arau",""]
[230,"n/a",null,null,null,null,0,0,"",0,"230","09210","Traiguén",9,12,"Arau",""]
[231,"n/a",null,null,null,null,0,0,"",0,"231","09211","Victoria",9,12,"Arau",""]
[232,"n/a",null,null,null,null,0,0,"",0,"232","14101","Valdivia",14,13,"Lrio",""]
[233,"n/a",null,null,null,null,0,0,"",0,"233","14102","Corral",14,13,"Lrio",""]
[234,"n/a",null,null,null,null,0,0,"",0,"234","14103","Lanco",14,13,"Lrio",""]
[235,"n/a",null,null,null,null,0,0,"",0,"235","14104","Los Lagos",14,13,"Lrio",""]
[236,"n/a",null,null,null,null,0,0,"",0,"236","14105","Máfil",14,13,"Lrio",""]
[237,"n/a",null,null,null,null,0,0,"",0,"237","14106","Mariquina",14,13,"Lrio",""]
[238,"n/a",null,null,null,null,0,0,"",0,"238","14107","Paillaco",14,13,"Lrio",""]
[239,"n/a",null,null,null,null,0,0,"",0,"239","14108","Panguipulli",14,13,"Lrio",""]
[240,"n/a",null,null,null,null,0,0,"",0,"240","14201","La Unión",14,13,"Lrio",""]
[241,"n/a",null,null,null,null,0,0,"",0,"241","14202","Futrono",14,13,"Lrio",""]
[242,"n/a",null,null,null,null,0,0,"",0,"242","14203","Lago Ranco",14,13,"Lrio",""]
[243,"n/a",null,null,null,null,0,0,"",0,"243","14204","Río Bueno",14,13,"Lrio",""]
[244,"n/a",null,null,null,null,0,0,"",0,"244","10101","Puerto Montt",10,14,"Llag",""]
[245,"n/a",null,null,null,null,0,0,"",0,"245","10102","Calbuco",10,14,"Llag",""]
[246,"n/a",null,null,null,null,0,0,"",0,"246","10103","Cochamó",10,14,"Llag",""]
[247,"n/a",null,null,null,null,0,0,"",0,"247","10104","Fresia",10,14,"Llag",""]
[248,"n/a",null,null,null,null,0,0,"",0,"248","10105","Frutillar",10,14,"Llag",""]
[249,"n/a",null,null,null,null,0,0,"",0,"249","10106","Los Muermos",10,14,"Llag",""]
[250,"n/a",null,null,null,null,0,0,"",0,"250","10107","Llanquihue",10,14,"Llag",""]
[251,"n/a",null,null,null,null,0,0,"",0,"251","10108","Maullín",10,14,"Llag",""]
[252,"n/a",null,null,null,null,0,0,"",0,"252","10109","Puerto Varas",10,14,"Llag",""]
[253,"n/a",null,null,null,null,0,0,"",0,"253","10201","Castro",10,14,"Llag",""]
[254,"n/a",null,null,null,null,0,0,"",0,"254","10202","Ancud",10,14,"Llag",""]
[255,"n/a","Servicio de Salud Maule",null,null,"Ministerio de Salud",0,0,"",4,"255","10203","Chonchi",10,14,"Llag",""]
[256,"n/a",null,null,null,null,0,0,"",0,"256","10204","Curaco de Vélez",10,14,"Llag",""]
[257,"n/a",null,null,null,null,0,0,"",0,"257","10205","Dalcahue",10,14,"Llag",""]
[258,"n/a",null,null,null,null,0,0,"",0,"258","10206","Puqueldón",10,14,"Llag",""]
[259,"n/a",null,null,null,null,0,0,"",0,"259","10207","Queilén",10,14,"Llag",""]
[260,"n/a",null,null,null,null,0,0,"",0,"260","10208","Quellón",10,14,"Llag",""]
[261,"n/a",null,null,null,null,0,0,"",0,"261","10209","Quemchi",10,14,"Llag",""]
[262,"n/a",null,null,null,null,0,0,"",0,"262","10210","Quinchao",10,14,"Llag",""]
[263,"n/a",null,null,null,null,0,0,"",0,"263","10301","Osorno",10,14,"Llag",""]
[264,"n/a",null,null,null,null,0,0,"",0,"264","10302","Puerto Octay",10,14,"Llag",""]
[265,"n/a",null,null,null,null,0,0,"",0,"265","10303","Purranque",10,14,"Llag",""]
[266,"n/a",null,null,null,null,0,0,"",0,"266","10304","Puyehue",10,14,"Llag",""]
[267,"n/a",null,null,null,null,0,0,"",0,"267","10305","Río Negro",10,14,"Llag",""]
[268,"n/a",null,null,null,null,0,0,"",0,"268","10306","San Juan de la Costa",10,14,"Llag",""]
[269,"n/a",null,null,null,null,0,0,"",0,"269","10307","San Pablo",10,14,"Llag",""]
[270,"n/a",null,null,null,null,0,0,"",0,"270","10401","Chaitén",10,14,"Llag",""]
[271,"n/a",null,null,null,null,0,0,"",0,"271","10402","Futaleufú",10,14,"Llag",""]
[272,"n/a",null,null,null,null,0,0,"",0,"272","10403","Hualaihué",10,14,"Llag",""]
[273,"n/a",null,null,null,null,0,0,"",0,"273","10404","Palena",10,14,"Llag",""]
[274,"n/a",null,null,null,null,0,0,"",0,"274","11101","Coihaique",11,15,"Ayse",""]
[275,"n/a",null,null,null,null,0,0,"",0,"275","11102","Lago Verde",11,15,"Ayse",""]
[276,"n/a",null,null,null,null,0,0,"",0,"276","11201","Aysén",11,15,"Ayse",""]
[277,"n/a",null,null,null,null,0,0,"",0,"277","11202","Cisnes",11,15,"Ayse",""]
[278,"n/a",null,null,null,null,0,0,"",0,"278","11203","Guaitecas",11,15,"Ayse",""]
[279,"n/a",null,null,null,null,0,0,"",0,"279","11301","Cochrane",11,15,"Ayse",""]
[280,"n/a",null,null,null,null,0,0,"",0,"280","11302","O’Higgins",11,15,"Ayse",""]
[281,"n/a",null,null,null,null,0,0,"",0,"281","11303","Tortel",11,15,"Ayse",""]
[282,"n/a",null,null,null,null,0,0,"",0,"282","11401","Chile Chico",11,15,"Ayse",""]
[283,"n/a",null,null,null,null,0,0,"",0,"283","11402","Río Ibáñez",11,15,"Ayse",""]
[284,"n/a",null,null,null,null,0,0,"",0,"284","12101","Punta Arenas",12,16,"Maga",""]
[285,"n/a",null,null,null,null,0,0,"",0,"285","12102","Laguna Blanca",12,16,"Maga",""]
[286,"n/a",null,null,null,null,0,0,"",0,"286","12103","Río Verde",12,16,"Maga",""]
[287,"n/a",null,null,null,null,0,0,"",0,"287","12104","San Gregorio",12,16,"Maga",""]
[288,"n/a",null,null,null,null,0,0,"",0,"288","12201","Cabo de Hornos (Ex Navarino)",12,16,"Maga",""]
[289,"n/a",null,null,null,null,0,0,"",0,"289","12202","Antártica",12,16,"Maga",""]
[290,"n/a",null,null,null,null,0,0,"",0,"290","12301","Porvenir",12,16,"Maga",""]
[291,"n/a",null,null,null,null,0,0,"",0,"291","12302","Primavera",12,16,"Maga",""]
[292,"n/a",null,null,null,null,0,0,"",0,"292","12303","Timaukel",12,16,"Maga",""]
[293,"n/a",null,null,null,null,0,0,"",0,"293","12401","Natales",12,16,"Maga",""]
[294,"n/a",null,null,null,null,0,0,"",0,"294","12402","Torres del Paine",12,16,"Maga",""]
[295,"n/a",null,null,null,null,0,0,"",0,"295","13101","Santiago",13,7,"RM",""]
[296,"n/a",null,null,null,null,0,0,"",0,"296","13102","Cerrillos",13,7,"RM",""]
[297,"n/a",null,null,null,null,0,0,"",0,"297","13103","Cerro Navia",13,7,"RM",""]
[298,"n/a",null,null,null,null,0,0,"",0,"298","13104","Conchalí",13,7,"RM",""]
[299,"n/a",null,null,null,null,0,0,"",0,"299","13105","El Bosque",13,7,"RM",""]
[300,"n/a",null,null,null,null,0,0,"",0,"300","13106","Estación Central",13,7,"RM",""]
[301,"n/a",null,null,null,null,0,0,"",0,"301","13107","Huechuraba",13,7,"RM",""]
[302,"n/a",null,null,null,null,0,0,"",0,"302","13108","Independencia",13,7,"RM",""]
[303,"n/a",null,null,null,null,0,0,"",0,"303","13109","La Cisterna",13,7,"RM",""]
[304,"n/a",null,null,null,null,0,0,"",0,"304","13110","La Florida",13,7,"RM",""]
[305,"n/a",null,null,null,null,0,0,"",0,"305","13111","La Granja",13,7,"RM",""]
[306,"n/a",null,null,null,null,0,0,"",0,"306","13112","La Pintana",13,7,"RM",""]
[307,"n/a",null,null,null,null,0,0,"",0,"307","13113","La Reina",13,7,"RM",""]
[308,"n/a",null,null,null,null,0,0,"",0,"308","13114","Las Condes",13,7,"RM",""]
[309,"n/a",null,null,null,null,0,0,"",0,"309","13115","Lo Barnechea",13,7,"RM",""]
[310,"n/a",null,null,null,null,0,0,"",0,"310","13116","Lo Espejo",13,7,"RM",""]
[311,"n/a",null,null,null,null,0,0,"",0,"311","13117","Lo Prado",13,7,"RM",""]
[312,"n/a",null,null,null,null,0,0,"",0,"312","13118","Macul",13,7,"RM",""]
[313,"n/a",null,null,null,null,0,0,"",0,"313","13119","Maipú",13,7,"RM",""]
[314,"n/a",null,null,null,null,0,0,"",0,"314","13120","Ñuñoa",13,7,"RM",""]
[315,"n/a",null,null,null,null,0,0,"",0,"315","13121","Pedro Aguirre Cerda",13,7,"RM",""]
[316,"n/a",null,null,null,null,0,0,"",0,"316","13122","Peñalolén",13,7,"RM",""]
[317,"n/a",null,null,null,null,0,0,"",0,"317","13123","Providencia",13,7,"RM",""]
[318,"n/a",null,null,null,null,0,0,"",0,"318","13124","Pudahuel",13,7,"RM",""]
[319,"n/a",null,null,null,null,0,0,"",0,"319","13125","Quilicura",13,7,"RM",""]
[320,"n/a",null,null,null,null,0,0,"",0,"320","13126","Quinta Normal",13,7,"RM",""]
[321,"n/a",null,null,null,null,0,0,"",0,"321","13127","Recoleta",13,7,"RM",""]
[322,"n/a",null,null,null,null,0,0,"",0,"322","13128","Renca",13,7,"RM",""]
[323,"n/a",null,null,null,null,0,0,"",0,"323","13129","San Joaquín",13,7,"RM",""]
[324,"n/a",null,null,null,null,0,0,"",0,"324","13130","San Miguel",13,7,"RM",""]
[325,"n/a",null,null,null,null,0,0,"",0,"325","13131","San Ramón",13,7,"RM",""]
[326,"n/a",null,null,null,null,0,0,"",0,"326","13132","Vitacura",13,7,"RM",""]
[327,"n/a",null,null,null,null,0,0,"",0,"327","13201","Puente Alto",13,7,"RM",""]
[328,"n/a",null,null,null,null,0,0,"",0,"328","13202","Pirque",13,7,"RM",""]
[329,"n/a",null,null,null,null,0,0,"",0,"329","13203","San José de Maipo",13,7,"RM",""]
[330,"n/a",null,null,null,null,0,0,"",0,"330","13301","Colina",13,7,"RM",""]
[331,"n/a",null,null,null,null,0,0,"",0,"331","13302","Lampa",13,7,"RM",""]
[332,"n/a",null,null,null,null,0,0,"",0,"332","13303","Tiltil",13,7,"RM",""]
[333,"n/a",null,null,null,null,0,0,"",0,"333","13401","San Bernardo",13,7,"RM",""]
[334,"n/a",null,null,null,null,0,0,"",0,"334","13402","Buin",13,7,"RM",""]
[335,"n/a",null,null,null,null,0,0,"",0,"335","13403","Calera de Tango",13,7,"RM",""]
[336,"n/a",null,null,null,null,0,0,"",0,"336","13404","Paine",13,7,"RM",""]
[337,"n/a",null,null,null,null,0,0,"",0,"337","13501","Melipilla",13,7,"RM",""]
[338,"n/a",null,null,null,null,0,0,"",0,"338","13502","Alhué",13,7,"RM",""]
[339,"n/a",null,null,null,null,0,0,"",0,"339","13503","Curacaví",13,7,"RM",""]
[340,"n/a",null,null,null,null,0,0,"",0,"340","13504","María Pinto",13,7,"RM",""]
[341,"n/a",null,null,null,null,0,0,"",0,"341","13505","San Pedro",13,7,"RM",""]
[342,"n/a",null,null,null,null,0,0,"",0,"342","13601","Talagante",13,7,"RM",""]
[343,"n/a",null,null,null,null,0,0,"",0,"343","13602","El Monte",13,7,"RM",""]
[344,"n/a",null,null,null,null,0,0,"",0,"344","13603","Isla de Maipo",13,7,"RM",""]
[345,"n/a",null,null,null,null,0,0,"",0,"345","13604","Padre Hurtado",13,7,"RM",""]
[346,"n/a",null,null,null,null,0,0,"",0,"346","13605","Peñaflor",13,7,"RM",""]
[347,"n/a",null,null,null,null,0,0,"",0,null,null,null,null,null,null,""]
[348,"n/a",null,null,null,null,0,0,"",0,null,null,null,null,null,null,""]
[349,"n/a",null,null,null,null,0,0,"",0,null,null,null,null,null,null,""]
[350,"n/a",null,null,null,null,0,0,"",0,null,"region_id","region_ordgeografico","Nombre Region",null,null,""]
[351,"n/a",null,null,null,null,0,0,"",0,null,1,2,"Tara",null,null,""]
[352,"n/a",null,null,null,null,0,0,"",0,null,2,3,"Anto",null,null,""]
[353,"n/a",null,null,null,null,0,0,"",0,null,3,4,"Atac",null,null,""]
[354,"n/a",null,null,null,null,0,0,"",0,null,4,5,"Coqu",null,null,""]
[355,"n/a",null,null,null,null,0,0,"",0,null,5,6,"Valp",null,null,""]
[356,"n/a",null,null,null,null,0,0,"",0,null,6,8,"Libe",null,null,""]
[357,"n/a",null,null,null,null,0,0,"",0,null,7,9,"Maul",null,null,""]
[358,"n/a",null,null,null,null,0,0,"",0,null,8,11,"BioB",null,null,""]
[359,"n/a",null,null,null,null,0,0,"",0,null,9,12,"Arau",null,null,""]
[360,"n/a",null,null,null,null,0,0,"",0,null,10,14,"Llag",null,null,""]
[361,"n/a",null,null,null,null,0,0,"",0,null,11,15,"Ayse",null,null,""]
[362,"n/a",null,null,null,null,0,0,"",0,null,12,16,"Maga",null,null,""]
[363,"n/a",null,null,null,null,0,0,"",0,null,13,7,"RM",null,null,""]
[364,"n/a",null,null,null,null,0,0,"",0,null,14,13,"Lrio",null,null,""]
[365,"n/a",null,null,null,null,0,0,"",0,null,15,1,"Aric",null,null,""]
[366,"n/a",null,null,null,null,0,0,"",0,null,16,10,"Ñubl",null,null,""]
[367,"n/a",null,null,null,null,0,0,"",0,null,null,null,null,null,null,""]
[368,"n/a",null,null,null,null,0,0,"",0,null,null,null,null,null,null,""]
[369,"n/a",null,null,null,null,0,0,"",0,null,null,null,null,null,null,""]
[370,"n/a",null,null,null,null,0,0,"",0,null,null,null,null,null,null,""]
[371,"n/a",null,null,null,null,0,0,"",0,null,null,null,null,null,null,""]
[372,"n/a",null,null,null,null,0,0,"",0,null,null,null,null,null,null,""]
[373,"n/a",null,null,null,null,0,0,"",0,null,null,null,null,null,null,""]
[374,"n/a",null,null,null,null,0,0,"",0,null,null,null,null,null,null,""]
[375,"n/a",null,null,null,null,0,0,"",0,null,null,null,null,null,null,""]
[376,"n/a","Junta Nacional de Jardines Infantiles",1,"PMG","Ministerio de Educación",8788425.4207253959,235703,"2228.96097631122;9.45665085430061",1,null,null,null,null,null,null,149]
[377,"n/a",null,null,null,null,0,0,"",0,null,null,null,null,null,null,""]
[378,"n/a",null,null,null,null,0,0,"",0,null,null,null,null,null,null,""]
[379,"n/a",null,null,null,null,0,0,"",0,null,null,null,null,null,null,""]
[380,"n/a",null,null,null,null,0,0,"",0,null,null,null,null,null,null,""]
[381,"n/a",null,null,null,null,0,0,"",0,null,null,null,null,null,null,""]
[382,"n/a",null,null,null,null,0,0,"",0,null,null,null,null,null,null,""]
[383,"n/a",null,null,null,null,0,0,"",0,null,null,null,null,null,null,""]
[384,"n/a",null,null,null,null,0,0,"",0,null,null,null,null,null,null,""]
[385,"n/a",null,null,null,null,0,0,"",0,null,null,null,null,null,null,""]
[386,"n/a",null,null,null,null,0,0,"",0,null,null,null,null,null,null,""]
[387,"n/a",null,null,null,null,0,0,"",0,null,null,null,null,null,null,""]
[388,"n/a",null,null,null,null,0,0,"",0,null,null,null,null,null,null,""]
[389,"n/a",null,null,null,null,0,0,"",0,null,null,null,null,null,null,""]
[390,"n/a",null,null,null,null,0,0,"",0,null,null,null,null,null,null,""]
[391,"n/a",null,null,null,null,0,0,"",0,null,null,null,null,null,null,""]
[392,"n/a",null,null,null,null,0,0,"",0,null,null,null,null,null,null,""]
[393,"n/a",null,null,null,null,0,0,"",0,null,null,null,null,null,null,""]
[394,"n/a",null,null,null,null,0,0,"",0,null,null,null,null,null,null,""]
[395,"n/a",null,null,null,null,0,0,"",0,null,null,null,null,null,null,""]
[396,"n/a",null,null,null,null,0,0,"",0,null,null,null,null,null,null,""]
[397,"n/a","Servicio de Salud Ñuble",null,null,"Ministerio de Salud",0,0,"",4,null,null,null,null,null,null,""]
[398,"n/a",null,null,null,null,0,0,"",0,null,null,null,null,null,null,""]
[399,"n/a","Servicio de Salud Valparaíso San Antonio",null,null,"Ministerio de Salud",0,0,"",4,null,null,null,null,null,null,""]
[400,"n/a","Servicio de Salud Arauco",null,null,"Ministerio de Salud",0,0,"",4,null,null,null,null,null,null,""]
[401,"n/a","Servicio de Salud Antofagasta",null,null,"Ministerio de Salud",0,0,"",4,null,null,null,null,null,null,""]
[402,"n/a",null,null,null,null,0,0,"",0,null,null,null,null,null,null,""]
[403,"n/a","Servicio de Salud Metropolitano Central",null,null,"Ministerio de Salud",0,0,"",4,null,null,null,null,null,null,""]
[404,"n/a","Servicio de Salud Metropolitano Oriente",null,null,"Ministerio de Salud",0,0,"",4,null,null,null,null,null,null,""]
[405,"n/a",null,null,null,null,0,0,"",0,null,null,null,null,null,null,""]
[406,"n/a",null,null,null,null,0,0,"",0,null,null,null,null,null,null,""]
[407,"n/a",null,null,null,null,0,0,"",0,null,null,null,null,null,null,""]
[408,"n/a",null,null,null,null,0,0,"",0,null,null,null,null,null,null,""]
[409,"n/a","Servicio de Salud Metropolitano Sur Oriente",null,null,"Ministerio de Salud",0,0,"",4,null,null,null,null,null,null,""]
[410,"n/a",null,null,null,null,0,0,"",0,null,null,null,null,null,null,""]
[411,"n/a","Servicio Salud Araucanía Norte",null,null,"Ministerio de Salud",0,0,"",4,null,null,null,null,null,null,""]
[412,"n/a","Servicio de Salud del Reloncaví",null,null,"Ministerio de Salud",0,0,"",4,null,null,null,null,null,null,""]
[413,"n/a",null,null,null,null,0,0,"",0,null,null,null,null,null,null,""]
[414,"n/a","Servicio de Salud de Osorno",null,null,"Ministerio de Salud",0,0,"",4,null,null,null,null,null,null,""]
[415,"n/a","Servicio de Salud de Concepción",null,null,"Ministerio de Salud",0,0,"",4,null,null,null,null,null,null,""]
[416,"n/a","Servicio de Salud de Chiloé",null,null,"Ministerio de Salud",0,0,"",4,null,null,null,null,null,null,""]
[417,"n/a","Servicio de Salud Bio Bio",null,null,"Ministerio de Salud",0,0,"",4,null,null,null,null,null,null,""]
[418,"n/a",null,null,null,null,0,0,"",0,null,null,null,null,null,null,""]
[419,"n/a",null,null,null,null,0,0,"",0,null,null,null,null,null,null,""]
[420,"n/a",null,null,null,null,0,0,"",0,null,null,null,null,null,null,""]
[421,"n/a",null,null,null,null,0,0,"",0,null,null,null,null,null,null,""]
[422,"n/a",null,null,null,null,0,0,"",0,null,null,null,null,null,null,""]
[423,"n/a",null,null,null,null,0,0,"",0,null,null,null,null,null,null,""]
[424,"n/a",null,null,null,null,0,0,"",0,null,null,null,null,null,null,""]
[425,"n/a",null,null,null,null,0,0,"",0,null,null,null,null,null,null,""]
[426,"n/a",null,null,null,null,0,0,"",0,null,null,null,null,null,null,""]
[427,"n/a",null,null,null,null,0,0,"",0,null,null,null,null,null,null,""]
[428,"n/a",null,null,null,null,0,0,"",0,null,null,null,null,null,null,""]
[429,"n/a",null,null,null,null,0,0,"",0,null,null,null,null,null,null,""]
[430,"n/a",null,null,null,null,0,0,"",0,null,null,null,null,null,null,""]
[431,"n/a",null,null,null,null,0,0,"",0,null,null,null,null,null,null,""]
[432,"n/a",null,null,null,null,0,0,"",0,null,null,null,null,null,null,""]
[433,"n/a",null,null,null,null,0,0,"",0,null,null,null,null,null,null,""]
[434,"n/a",null,null,null,null,0,0,"",0,null,null,null,null,null,null,""]
[435,"n/a",null,null,null,null,0,0,"",0,null,null,null,null,null,null,""]
[436,"n/a",null,null,null,null,0,0,"",0,null,null,null,null,null,null,""]
[437,"n/a","Presidencia de la República",2,"PMG","Presidencia de la República",287211.81016700505,25375,"72.4661188037243;2.8558076375852",4,null,null,null,null,null,null,157]
[438,"n/a","Senado",null,null,"Congreso Nacional",0,0,"",4,null,null,null,null,null,null,""]
[439,"n/a","Cámara de DIputados",null,null,"Congreso Nacional",0,0,"",4,null,null,null,null,null,null,""]
[440,"n/a","Biblioteca del Congreso",null,null,"Congreso Nacional",0,0,"",4,null,null,null,null,null,null,""]
[441,"n/a","Consejo Resolutivo de Asignaciones Parlamentarias",null,null,"Congreso Nacional",0,0,"",4,null,null,null,null,null,null,""]
[442,"n/a","Poder Judicial",null,null,"Poder Judicial",0,0,"",4,null,null,null,null,null,null,""]
[443,"n/a","Corporación Administrativa del Poder Judicial",null,null,"Poder Judicial",0,0,"",4,null,null,null,null,null,null,""]
[444,"n/a","Academia Judicial",null,null,"Poder Judicial",0,0,"",4,null,null,null,null,null,null,""]
[445,"n/a","Contraloría General de la República",null,null,"Contraloría General de la República",0,0,"",4,null,null,null,null,null,null,""]
[446,"n/a","Subsecretaría de Bienes Nacionales",3,"PMG","Ministerio de Bienes Nacionales",882942.47329888784,18297.68,"255.052168396056;13.9390440971782",3,null,null,null,null,null,null,196]
[447,"n/a","Secretaría y Administración General Min. Minería",4,"PMG","Ministerio de Minería",252900.44985524038,3697,"67.6169460913692;18.2896797650444",3,null,null,null,null,null,null,206]
[448,"n/a","Comisión Chilena del Cobre",5,"PMG","Ministerio de Minería",142117.14285714287,2310,"42.7204131428571;18.4936853432282",4,null,null,null,null,null,null,12]
[449,"n/a","Servicio Nacional de Geología y Minería",6,"PMG","Ministerio de Minería",1321665.9351178575,15004,"387.098487329309;25.7996859057124",3,null,null,null,null,null,null,174]
[450,"n/a","Secretaría y Administración General de Transportes",7,"PMG","Ministerio de Transportes y Telecomunicaciones",1276155.2179179052,8535,"383.612258506122;44.9457830704303",3,null,null,null,null,null,null,213]
[451,"n/a","Subsecretaría de Telecomunicaciones",8,"PMG","Ministerio de Transportes y Telecomunicaciones",118339.37775151522,2148,"35.5728169521055;16.5609017467903",4,null,null,null,null,null,null,212]
[452,"n/a","Junta de Aeronáutica Civil",9,"PMG","Ministerio de Transportes y Telecomunicaciones",0,0,"",4,null,null,null,null,null,null,150]
[453,"n/a","Secretaría General de Gobierno",10,"PMG","Ministerio Secretaría General de Gobierno",128937.21993361431,3308,"38.8037918489263;11.7302877415134",4,null,null,null,null,null,null,158]
[454,"n/a","Consejo Nacional de Televisión",11,"PMG","Ministerio Secretaría General de Gobierno",255905.37376662163,1298,"72.2639951450133;55.6733398651874",4,null,null,null,null,null,null,22]
[455,"n/a",null,null,null,null,0,0,"",0,null,null,null,null,null,null,""]
[456,"n/a","Secretaría General de la Presidencia de la República",12,"PMG","Ministerio Secretaría General de la Presidencia de la República",180034.29523809525,1850,"54.1183091485714;29.2531400803089",4,null,null,null,null,null,null,159]
[457,"n/a","Ministerio Público",null,null,"Ministerio Público",0,0,"",4,null,null,null,null,null,null,""]
[458,"n/a","Subsecretaría de Energía",13,"PMG","Ministerio de Energía",361812.22942964413,5056,"100.786244575371;19.933988246711",4,null,null,null,null,null,null,10064]
[459,"n/a","Comisión Nacional de Energía",14,"PMG","Ministerio de Energía",128986.89655172414,1362,"38.7734611034483;28.4680331156008",4,null,null,null,null,null,null,14]
[460,"n/a","Comisión Chilena de Energía Nuclear",15,"PMG","Ministerio de Energía",2135910.7292255512,27670,"642.054765205201;23.204003079335",4,null,null,null,null,null,null,11]
[461,"n/a","Superintendencia de Electricidad y Combustibles",16,"PMG","Ministerio de Energía",496901.62001543492,32601,"144.078964182245;4.41946456189213",3,null,null,null,null,null,null,221]
[462,"n/a","Subsecretaría del Medio Ambiente",17,"PMG","Ministerio del Medio Ambiente",1111497.2982283453,10553,"317.595332829958;30.0952651217623",4,null,null,null,null,null,null,10066]
[463,"n/a","Servicio de Evaluación Ambiental",18,"PMG","Ministerio del Medio Ambiente",491636.65749667987,7472,"125.933962479176;16.854117034151",3,null,null,null,null,null,null,10067]
[464,"n/a","Superintendencia del Medio Ambiente",19,"PMG","Ministerio del Medio Ambiente",304185.25030759355,4133,"85.9239729231481;20.7897345567743",4,null,null,null,null,null,null,10068]
[465,"n/a","Subsecretaría del Deporte",20,"PMG","Ministerio del Deporte",235868.20461605623,1860,"57.4161927237344;30.868920819212",4,null,null,null,null,null,null,10080]
[466,"n/a","Instituto Nacional de Deportes",21,"PMG","Ministerio del Deporte",3554902.7972273137,161383.85,"965.658376196807;5.98361221520497",3,null,null,null,null,null,null,227]
[467,"n/a","Secretaría y Administración General y Servicio Exterior",22,"PMG","Ministerio de Relaciones Exteriores",1226.6590000000001,4408,"0.3687336954;0.0836510198275862",4,null,null,null,null,null,null,210]
[468,"n/a","Subsecretaría de Relaciones Económicas Internacionales",23,"PMG","Ministerio de Relaciones Exteriores",114365.25345622121,1687,"34.3781951889401;20.3783018310255",4,null,null,null,null,null,null,10101]
[469,"n/a","Dirección de Fronteras y Límites del Estado",24,"PMG","Ministerio de Relaciones Exteriores",30075.303524062139,2461,"9.04063623933308;3.67356206393055",4,null,null,null,null,null,null,40]
[470,"n/a","Instituto Antártico Chileno",25,"PMG","Ministerio de Relaciones Exteriores",914217.09371183929,2337,"255.266181949524;109.228148031461",4,null,null,null,null,null,null,124]
[471,"n/a","Agencia de Cooperación Internacional de Chile",null,null,null,0,0,"",4,null,null,null,null,null,null,""]
[472,"n/a",null,null,null,null,0,0,"",0,null,null,null,null,null,null,""]
[473,"n/a",null,null,null,null,0,0,"",0,null,null,null,null,null,null,""]
[474,"n/a",null,null,null,null,0,0,"",0,null,null,null,null,null,null,""]
[475,"n/a",null,null,null,null,0,0,"",0,null,null,null,null,null,null,""]
[476,"n/a",null,null,null,null,0,0,"",0,null,null,null,null,null,null,""]
[477,"n/a",null,null,null,null,0,0,"",0,null,null,null,null,null,null,""]
[478,"n/a",null,null,null,null,0,0,"",0,null,null,null,null,null,null,""]
[479,"n/a",null,null,null,null,0,0,"",0,null,null,null,null,null,null,""]
[480,"n/a",null,null,null,null,0,0,"",0,null,null,null,null,null,null,""]
[481,"n/a",null,null,null,null,0,0,"",0,null,null,null,null,null,null,""]
[482,"n/a",null,null,null,null,0,0,"",0,null,null,null,null,null,null,""]
[483,"n/a",null,null,null,null,0,0,"",0,null,null,null,null,null,null,""]
[484,"n/a",null,null,null,null,0,0,"",0,null,null,null,null,null,null,""]
[485,"n/a",null,null,null,null,0,0,"",0,null,null,null,null,null,null,""]
[486,"n/a",null,null,null,null,0,0,"",0,null,null,null,null,null,null,""]
[487,"n/a",null,null,null,null,0,0,"",0,null,null,null,null,null,null,""]
[488,"n/a",null,null,null,null,0,0,"",0,null,null,null,null,null,null,""]
[489,"n/a",null,null,null,null,0,0,"",0,null,null,null,null,null,null,""]
[490,"n/a",null,null,null,null,0,0,"",0,null,null,null,null,null,null,""]
[491,"n/a","Servicio de Gobierno Interior",26,"PMG","Ministerio del Interior y Seguridad Pública",3079980.895785816,40554.199999999997,"866.791948889781;21.373666571891",2,null,null,null,null,null,null,109]
[492,"n/a","Servicio Electoral",null,null,"Ministerio del Interior y Seguridad Pública",0,0,"",4,null,null,null,null,null,null,""]
[493,"n/a","SERVICIO NACIONAL DE PREVENCIÓN Y RESPUESTA ANTE DESASTRES",27,"PMG","Ministerio del Interior y Seguridad Pública",1564958.2935449176,9918,"461.810082847242;46.5628234369068",4,null,null,null,null,null,null,10119]
[494,"n/a","Subsecretaría de Desarrollo Regional y Administrativo",28,"PMG","Ministerio del Interior y Seguridad Pública",203881.48062860582,1889,"48.6291846348933;25.7433481391706",4,null,null,null,null,null,null,193]
[495,"n/a","Agencia Nacional de Inteligencia",null,null,"Ministerio del Interior y Seguridad Pública",0,0,"",4,null,null,null,null,null,null,""]
[496,"n/a","Subsecretaría de Prevención del Delito",29,"PMG","Ministerio del Interior y Seguridad Pública",374291.10905410041,5812,"100.83285993991;17.3490812009481",3,null,null,null,null,null,null,10073]
[497,"n/a","Carabineros de Chile",null,null,"Ministerio del Interior y Seguridad Pública",0,0,"",3,null,null,null,null,null,null,""]
[498,"n/a",null,null,null,null,0,0,"",0,null,null,null,null,null,null,""]
[499,"n/a","Policía de Investigaciones de Chile",null,null,"Ministerio del Interior y Seguridad Pública",0,0,"",3,null,null,null,null,null,null,""]
[500,"n/a","Servicio Nacional para Prevención y Rehabilitación Consumo de Drogas y Alcohol",30,"PMG","Ministerio del Interior y Seguridad Pública",247951.14630390095,6282,"67.1689369245739;10.6922854066498",4,null,null,null,null,null,null,10074]
[501,"n/a","Subsecretaría del Interior",31,"PMG","Ministerio del Interior y Seguridad Pública",77741.431451612894,628,"23.3690742943548;37.2119017426032",4,null,null,null,null,null,null,160]
[502,"n/a","Gobierno Regional Región Tarapacá",32,"PMG","Ministerio del Interior y Seguridad Pública",108868.12413793102,1125,"32.7257581158621;29.0895627696552",4,null,null,null,null,null,null,110]
[503,"n/a","Gobierno Regional Región Antofagasta",33,"PMG","Ministerio del Interior y Seguridad Pública",63769.005040322576,1995.1,"19.168962915121;9.60802110927822",4,null,null,null,null,null,null,111]
[504,"n/a","Gobierno Regional Región Atacama",34,"PMG","Ministerio del Interior y Seguridad Pública",103629.10225970198,2023,"31.1509081392664;15.3983727826329",4,null,null,null,null,null,null,112]
[505,"n/a","Gobierno Regional Región Coquimbo",35,"PMG","Ministerio del Interior y Seguridad Pública",2399.7419354838712,299,"0.721362425806452;2.41258336390118",4,null,null,null,null,null,null,113]
[506,"n/a","Gobierno Regional Región Valparaíso",36,"PMG","Ministerio del Interior y Seguridad Pública",20286.878787878788,686,"6.09823576363636;8.88955650675855",4,null,null,null,null,null,null,116]
[507,"n/a","Gobierno Regional Región Libertador General Bernardo O'higgins",37,"PMG","Ministerio del Interior y Seguridad Pública",56529.543937708557,648,"16.9927809076752;26.2234273266592",4,null,null,null,null,null,null,117]
[508,"n/a","Gobierno Regional Región Maule",38,"PMG","Ministerio del Interior y Seguridad Pública",415226.91590656282,6962,"124.817210921513;17.9283554900191",4,null,null,null,null,null,null,118]
[509,"n/a","Gobierno Regional Región Biobío",39,"PMG","Ministerio del Interior y Seguridad Pública",0,0,"",4,null,null,null,null,null,null,119]
[510,"n/a","Gobierno Regional Región Araucanía",40,"PMG","Ministerio del Interior y Seguridad Pública",0,0,"",4,null,null,null,null,null,null,114]
[511,"n/a","Gobierno Regional Región Los lagos",41,"PMG","Ministerio del Interior y Seguridad Pública",172578.63633357381,1314,"51.8771380818723;39.4803181749409",4,null,null,null,null,null,null,120]
[512,"n/a","Gobierno Regional Región Aysén del Gral. Carlos Ibáñez del Campo",42,"PMG","Ministerio del Interior y Seguridad Pública",168932.72080088989,3453,"51.5124232849206;14.9181648667595",4,null,null,null,null,null,null,121]
[513,"n/a","Gobierno Regional Región Magallanes y Antártica Chilena",43,"PMG","Ministerio del Interior y Seguridad Pública",573930.9530605115,1542,"153.957651467557;99.842834933565",4,null,null,null,null,null,null,122]
[514,"n/a","Gobierno Regional Región Metropolitana de Santiago",44,"PMG","Ministerio del Interior y Seguridad Pública",588152.73399014783,29200,"176.798711837438;6.05475040539173",4,null,null,null,null,null,null,115]
[515,"n/a","Gobierno Regional Región Los Ríos",45,"PMG","Ministerio del Interior y Seguridad Pública",253108.89146505375,3177,"76.0845327743952;23.9485466711977",4,null,null,null,null,null,null,10051]
[516,"n/a","Gobierno Regional Región Arica y Parinacota",46,"PMG","Ministerio del Interior y Seguridad Pública",0,0,"",4,null,null,null,null,null,null,10052]
[517,"n/a",null,null,null,null,0,0,"",0,null,null,null,null,null,null,""]
[518,"n/a",null,null,null,null,0,0,"",0,null,null,null,null,null,null,""]
[519,"n/a",null,null,null,null,0,0,"",0,null,null,null,null,null,null,""]
[520,"n/a",null,null,null,null,0,0,"",0,null,null,null,null,null,null,""]
[521,"n/a",null,null,null,null,0,0,"",0,null,null,null,null,null,null,""]
[522,"n/a",null,null,null,null,0,0,"",0,null,null,null,null,null,null,""]
[523,"n/a",null,null,null,null,0,0,"",0,null,null,null,null,null,null,""]
[524,"n/a",null,null,null,null,0,0,"",0,null,null,null,null,null,null,""]
[525,"n/a","Subsecretaría de Economía y Empresas de Menor Tamaño",47,"PMG","Ministerio de Economía, Fomento y Turismo",504505.2724494267,8047,"152.756183571681;18.9829978341843",4,null,null,null,null,null,null,225]
[526,"n/a","Servicio Nacional del Consumidor",48,"PMG","Ministerio de Economía, Fomento y Turismo",428528.99982544786,5881,"113.795475632501;19.3496812842206",3,null,null,null,null,null,null,177]
[527,"n/a","Subsecretaría de Pesca y Acuicultura",49,"PMG","Ministerio de Economía, Fomento y Turismo",332706.60007875704,5656,"86.941048030153;15.3714724240016",3,null,null,null,null,null,null,208]
[528,"n/a","Servicio Nacional de Pesca y Acuicultura",50,"PMG","Ministerio de Economía, Fomento y Turismo",1584140.9488835118,17036,"427.628834558274;25.1014812490182",3,null,null,null,null,null,null,175]
[529,"n/a","Corporación de Fomento de la Producción",51,"PMG","Ministerio de Economía, Fomento y Turismo",1685395.3514565276,21965,"480.380348323212;21.8702639801144",4,null,null,null,null,null,null,25]
[530,"n/a",null,null,null,null,0,0,"",0,null,null,null,null,null,null,""]
[531,"n/a",null,null,null,null,0,0,"",0,null,null,null,null,null,null,""]
[532,"n/a",null,null,null,null,0,0,"",0,null,null,null,null,null,null,""]
[533,"n/a","Fiscalía Nacional Económica",52,"PMG","Ministerio de Economía, Fomento y Turismo",72197.467495760313,1817,"21.7025587292255;11.944171012232",4,null,null,null,null,null,null,53]
[534,"n/a","Servicio Nacional de Turismo",53,"PMG","Ministerio de Economía, Fomento y Turismo",434439.83902557468,6821.7999999999993,"116.662166619527;17.1013759740138",3,null,null,null,null,null,null,176]
[535,"n/a","Servicio de Cooperación Técnica",54,"PMG","Ministerio de Economía, Fomento y Turismo",305389.95667144458,6714,"88.031055533209;13.1115662098911",3,null,null,null,null,null,null,167]
[536,"n/a","Comité Innova Chile",null,null,"Ministerio de Economía, Fomento y Turismo",0,0,"",4,null,null,null,null,null,null,""]
[537,"n/a","Agencia de Promoción de la Inversión Extranjera",55,"PMG","Ministerio de Economía, Fomento y Turismo",0,0,"",4,null,null,null,null,null,null,16]
[538,"n/a","Instituto Nacional de Propiedad Industrial",56,"PMG","Ministerio de Economía, Fomento y Turismo",351571,4362,"105.6822426;24.2279327372765",4,null,null,null,null,null,null,10062]
[539,"n/a","Subsecretaría de Turismo",57,"PMG","Ministerio de Economía, Fomento y Turismo",0,0,"",4,null,null,null,null,null,null,10072]
[540,"n/a","Superintendencia de Insolvencia y Reemprendimiento",58,"PMG","Ministerio de Economía, Fomento y Turismo",107546.89655172414,1566,"32.3285971034483;20.6440594530321",4,null,null,null,null,null,null,10081]
[541,"n/a","Secretaría y Administración General Min. de Hacienda",59,"PMG","Ministerio de Hacienda",51986.600985221674,1542,"15.6271722561576;10.1343529547066",4,null,null,null,null,null,null,198]
[542,"n/a","Secretaría y Administración General Min. de Hacienda - UATTA",null,null,"Ministerio de Hacienda",0,0,"",4,null,null,null,null,null,null,""]
[543,"n/a","Dirección de Presupuestos",60,"PMG","Ministerio de Hacienda",0,0,"",4,null,null,null,null,null,null,43]
[544,"n/a","Servicio de Impuestos Internos",null,null,"Ministerio de Hacienda",0,0,"",4,null,null,null,null,null,null,""]
[545,"n/a","Servicio Nacional de Aduanas",61,"PMG","Ministerio de Hacienda",1894667.2457648574,33708.9,"590.600363441875;17.5206062328309",4,null,null,null,null,null,null,173]
[546,"n/a","Servicio de Tesorerías",62,"PMG","Ministerio de Hacienda",2173926.4912753669,33391,"637.495604985868;19.091839267643",3,null,null,null,null,null,null,223]
[547,"n/a","Dirección de Compras y Contratación Pública",63,"PMG","Ministerio de Hacienda",70580.709677419334,1770,"21.2165613290323;11.9867578130126",4,null,null,null,null,null,null,44]
[548,"n/a","Comisión para el Mercado Financiero",64,"PMG","Ministerio de Hacienda",1054379.7037184171,15124,"316.946538937756;20.9565286258765",3,null,null,null,null,null,null,220]
[549,"n/a","Superintendencia de Bancos e Instituciones Financieras",null,null,"Ministerio de Hacienda",0,0,"",4,null,null,null,null,null,null,""]
[550,"n/a","Dirección Nacional del Servicio Civil",65,"PMG","Ministerio de Hacienda",93557.7139361195,2165.3900000000003,"28.1234488091975;12.9877060525806",4,null,null,null,null,null,null,10045]
[551,"n/a","Unidad de Análisis Financiero",66,"PMG","Ministerio de Hacienda",127757,1097,"38.4037542;35.0079801276208",4,null,null,null,null,null,null,10046]
[552,"n/a","Superintendencia de Casinos de Juego",67,"PMG","Ministerio de Hacienda",125181.71428571429,1690,"37.6296233142857;22.2660492983939",4,null,null,null,null,null,null,10047]
[553,"n/a",null,null,null,null,0,0,"",0,null,null,null,null,null,null,""]
[554,"n/a","Subsecretaría de Educación",68,"PMG","Ministerio de Educación",3818735.3317428734,77583,"1068.48530583035;13.7721576354402",2,null,null,null,null,null,null,199]
[555,"n/a","Superintentencia de Educación",69,"PMG","Ministerio de Educación",325175.9128586537,6273,"97.8081247434634;15.5919216871455",3,null,null,null,null,null,null,10078]
[556,"n/a","Agencia de Calidad de la Educación",70,"PMG","Ministerio de Educación",289349.86740854388,4865,"82.0099900397416;16.8571408098133",4,null,null,null,null,null,null,10079]
[557,"n/a","Servicio Nacional del Patrimonio Cultural",71,"PMG","Ministerio de las Culturas, las Artes y el Patrimonio",4813888.3404767066,145245,"1281.41113472545;8.82241133757064",3,null,null,null,null,null,null,10089]
[558,"n/a","Agencia Nacional de Investigación y Desarrollo",72,"PMG","Ministerio de Ciencia, Tecnología, Conocimiento e Innovación",1103035.7137567361,5392,"331.572535555275;61.493422766186",4,null,null,null,null,null,null,19]
[559,"n/a","Junta Nacional de Auxilio Escolar y Becas",73,"PMG","Ministerio de Educación",1062900.7952936559,31745,"306.175306892898;9.64483562428406",3,null,null,null,null,null,null,148]
[560,"n/a",null,null,null,null,0,0,"",0,null,null,null,null,null,null,""]
[561,"n/a",null,null,null,null,0,0,"",0,null,null,null,null,null,null,""]
[562,"n/a",null,null,null,null,0,0,"",0,null,null,null,null,null,null,""]
[563,"n/a","Consejo de Rectores",null,null,"Ministerio de Educación",0,0,"",4,null,null,null,null,null,null,""]
[564,"n/a","Consejo Nacional de Educación",74,"PMG","Ministerio de Educación",47045.426540284359,643,"14.1418552180095;21.9935539937939",4,null,null,null,null,null,null,23]
[565,"n/a",null,null,null,null,0,0,"",0,null,null,null,null,null,null,""]
[566,"n/a","Secretaría y Administración General Min. de Justicia",75,"PMG","Ministerio de Justicia",897326.59283976327,14150,"260.326484156617;18.3976313891602",4,null,null,null,null,null,null,203]
[567,"n/a","Servicio de Registro Civil E Identificación",76,"PMG","Ministerio de Justicia",5091044.2777407328,96400.64999999998,"1465.85932423962;15.2059070580916",1,null,null,null,null,null,null,169]
[568,"n/a","Servicio Médico Legal",77,"PMG","Ministerio de Justicia",3524954.7024097522,29706,"1037.83672819832;34.9369396148362",3,null,null,null,null,null,null,172]
[569,1,"Gendarmería de Chile",78,"PMG","Ministerio de Justicia",61922734.740581118,648979.24000000011,"17824.930043219;27.4661020639411",1,null,null,null,null,null,null,58]
[570,"n/a",null,null,null,null,0,0,"",0,null,null,null,null,null,null,""]
[571,"n/a","Defensoría Penal Pública",79,"PMG","Ministerio de Justicia",1805596.8813270242,22734,"538.138668883554;23.6710947868195",2,null,null,null,null,null,null,231]
[572,"n/a",null,null,null,null,0,0,"",0,null,null,null,null,null,null,""]
[573,"n/a",null,null,null,null,0,0,"",0,null,null,null,null,null,null,""]
[574,"n/a",null,null,null,null,0,0,"",0,null,null,null,null,null,null,""]
[575,"n/a",null,null,null,null,0,0,"",0,null,null,null,null,null,null,""]
[576,"n/a",null,null,null,null,0,0,"",0,null,null,null,null,null,null,""]
[577,"n/a",null,null,null,null,0,0,"",0,null,null,null,null,null,null,""]
[578,"n/a",null,null,null,null,0,0,"",0,null,null,null,null,null,null,""]
[579,"n/a",null,null,null,null,0,0,"",0,null,null,null,null,null,null,""]
[580,"n/a",null,null,null,null,0,0,"",0,null,null,null,null,null,null,""]
[581,"n/a",null,null,null,null,0,0,"",0,null,null,null,null,null,null,""]
[582,"n/a",null,null,null,null,0,0,"",0,null,null,null,null,null,null,""]
[583,"n/a",null,null,null,null,0,0,"",0,null,null,null,null,null,null,""]
[584,"n/a",null,null,null,null,0,0,"",0,null,null,null,null,null,null,""]
[585,"n/a",null,null,null,null,0,0,"",0,null,null,null,null,null,null,""]
[586,"n/a",null,null,null,null,0,0,"",0,null,null,null,null,null,null,""]
[587,"n/a",null,null,null,null,0,0,"",0,null,null,null,null,null,null,""]
[588,"n/a",null,null,null,null,0,0,"",0,null,null,null,null,null,null,""]
[589,"n/a",null,null,null,null,0,0,"",0,null,null,null,null,null,null,""]
[590,"n/a",null,null,null,null,0,0,"",0,null,null,null,null,null,null,""]
[591,"n/a",null,null,null,null,0,0,"",0,null,null,null,null,null,null,""]
[592,"n/a",null,null,null,null,0,0,"",0,null,null,null,null,null,null,""]
[593,"n/a",null,null,null,null,0,0,"",0,null,null,null,null,null,null,""]
[594,"n/a",null,null,null,null,0,0,"",0,null,null,null,null,null,null,""]
[595,"n/a",null,null,null,null,0,0,"",0,null,null,null,null,null,null,""]
[596,"n/a",null,null,null,null,0,0,"",0,null,null,null,null,null,null,""]
[597,"n/a",null,null,null,null,0,0,"",0,null,null,null,null,null,null,""]
[598,"n/a",null,null,null,null,0,0,"",0,null,null,null,null,null,null,""]
[599,"n/a",null,null,null,null,0,0,"",0,null,null,null,null,null,null,""]
[600,"n/a","Dirección General de Territorio Marítimo",null,null,"Ministerio de Defensa Nacional",0,0,"",4,null,null,null,null,null,null,""]
[601,"n/a","Dirección General de Movilización Nacional",null,null,"Ministerio de Defensa Nacional",0,0,"",4,null,null,null,null,null,null,""]
[602,"n/a","Instituto Geográfico Militar",null,null,"Ministerio de Defensa Nacional",0,0,"",4,null,null,null,null,null,null,""]
[603,"n/a","Servicio Hidrográfico y Oceanográfico de la Armada de Chile",null,null,"Ministerio de Defensa Nacional",0,0,"",4,null,null,null,null,null,null,""]
[604,"n/a","Dirección General de Aeronáutica Civil",80,"PMG","Ministerio de Defensa Nacional",11991597.816689502,81414,"3665.11950447002;45.0182954340779",4,null,null,null,null,null,null,36]
[605,"n/a","Servicio Aerofotogramétrico de la Fuerza Aérea de Chile",null,null,"Ministerio de Defensa Nacional",0,0,"",4,null,null,null,null,null,null,""]
[606,"n/a","Subsecretaría para las Fuerzas Armadas",81,"PMG","Ministerio de Defensa Nacional",0,0,"",4,null,null,null,null,null,null,10069]
[607,"n/a","Subsecretaría de Defensa",82,"PMG","Ministerio de Defensa Nacional",0,0,"",4,null,null,null,null,null,null,10070]
[608,"n/a",null,null,null,null,0,0,"",0,null,null,null,null,null,null,""]
[609,"n/a",null,null,null,null,0,0,"",0,null,null,null,null,null,null,""]
[610,"n/a",null,null,null,null,0,0,"",0,null,null,null,null,null,null,""]
[611,"n/a","Organismos de Salud del Ejército",null,null,"Ministerio de Defensa Nacional",0,0,"",4,null,null,null,null,null,null,""]
[612,"n/a","Organismos de Industria Militar",null,null,"Ministerio de Defensa Nacional",0,0,"",4,null,null,null,null,null,null,""]
[613,"n/a",null,null,null,null,0,0,"",0,null,null,null,null,null,null,""]
[614,"n/a",null,null,null,null,0,0,"",0,null,null,null,null,null,null,""]
[615,"n/a",null,null,null,null,0,0,"",0,null,null,null,null,null,null,""]
[616,"n/a","Dirección de Sanidad",null,null,"Ministerio de Defensa Nacional",0,0,"",4,null,null,null,null,null,null,""]
[617,"n/a","Fuerza Aérea de Chile",null,null,"Ministerio de Defensa Nacional",0,0,"",3,null,null,null,null,null,null,""]
[618,"n/a","Organismos de Salud de la Fach",null,null,"Ministerio de Defensa Nacional",0,0,"",4,null,null,null,null,null,null,""]
[619,"n/a","Estado Mayor Conjunto",null,null,"Ministerio de Defensa Nacional",0,0,"",4,null,null,null,null,null,null,""]
[620,"n/a","Secretaría y Administración General Min. Obras Públicas",83,"PMG","Ministerio de Obras Públicas",23012.344827586207,415,"6.91751085517241;16.6687008558371",4,null,null,null,null,null,null,207]
[621,"n/a","Dirección General de Obras Públicas",84,"PMG","Ministerio de Obras Públicas",0,0,"",4,null,null,null,null,null,null,37]
[622,"n/a","Fiscalía",85,"PMG","Ministerio de Obras Públicas",0,0,"",4,null,null,null,null,null,null,51]
[623,"n/a","Dirección de Contabilidad y Finanzas",86,"PMG","Ministerio de Obras Públicas",0,0,"",4,null,null,null,null,null,null,35]
[624,"n/a","Dirección de Arquitectura",87,"PMG","Ministerio de Obras Públicas",14214.111111111111,809,"4.2727618;5.28153498145859",4,null,null,null,null,null,null,30]
[625,"n/a","Dirección de Obras Hidráulicas",88,"PMG","Ministerio de Obras Públicas",168073.15834752683,3911,"49.2997060226355;12.6053965795539",4,null,null,null,null,null,null,49]
[626,"n/a","Dirección de Vialidad",89,"PMG","Ministerio de Obras Públicas",2694774.6638349611,186941,"810.246625895238;4.33423714377926",2,null,null,null,null,null,null,34]
[627,"n/a","Dirección de Obras Portuarias",90,"PMG","Ministerio de Obras Públicas",29826.179255610292,1001,"8.96574948423645;8.95679269154491",4,null,null,null,null,null,null,32]
[628,"n/a","Dirección de Aeropuertos",91,"PMG","Ministerio de Obras Públicas",71289.31757508342,1186,"21.4295688630701;18.0687764444098",4,null,null,null,null,null,null,29]
[629,"n/a","Administración Sistema Concesiones",null,null,"Ministerio de Obras Públicas",0,0,"",4,null,null,null,null,null,null,""]
[630,"n/a","Dirección de Planeamiento",92,"PMG","Ministerio de Obras Públicas",0,0,"",4,null,null,null,null,null,null,33]
[631,"n/a",null,null,null,null,0,0,"",0,null,null,null,null,null,null,""]
[632,"n/a","Dirección General de Aguas",93,"PMG","Ministerio de Obras Públicas",158438.06927968544,2881,"46.979214429022;16.3065652304832",4,null,null,null,null,null,null,31]
[633,"n/a","Instituto Nacional de Hidráulica",94,"PMG","Ministerio de Obras Públicas",132422.1724137931,11041,"39.8061050275862;3.605298888469",4,null,null,null,null,null,null,125]
[634,"n/a","Superintendencia de Servicios Sanitarios",95,"PMG","Ministerio de Obras Públicas",497607.08591014886,4523,"140.83158874431;31.1367651435575",4,null,null,null,null,null,null,228]
[635,"n/a","Subsecretaría de Agricultura",96,"PMG","Ministerio de Agricultura",314419.89818018698,7286,"94.5234788890562;12.9733020709657",4,null,null,null,null,null,null,194]
[636,"n/a","Oficina de Estudios y Políticas Agrarias",97,"PMG","Ministerio de Agricultura",195834.3448275862,1752,"58.8678040551724;33.6003447803496",4,null,null,null,null,null,null,152]
[637,"n/a","Instituto de Desarrollo Agropecuario",98,"PMG","Ministerio de Agricultura",2522990.7053140141,37523.97,"686.654942770878;18.299101688091",2,null,null,null,null,null,null,128]
[638,"n/a","Servicio Agrícola y Ganadero",99,"PMG","Ministerio de Agricultura",4979389.5283208964,65123,"1475.47046426552;22.6566722089817",2,null,null,null,null,null,null,166]
[639,"n/a","Corporación Nacional Forestal",100,"PMG","Ministerio de Agricultura",1676028.7276748081,24771.39,"462.620176635595;18.6755840764525",2,null,null,null,null,null,null,27]
[640,"n/a","Comisión Nacional de Riego",101,"PMG","Ministerio de Agricultura",228654.39696558114,2971,"67.4286467194504;22.6956064353586",4,null,null,null,null,null,null,15]
[641,"n/a","Subsecretaría del Trabajo",102,"PMG","Ministerio del Trabajo y Previsión Social",36902.329860721409,829,"11.1086639581035;13.4000771509089",4,null,null,null,null,null,null,215]
[642,"n/a","Dirección del Trabajo",103,"PMG","Ministerio del Trabajo y Previsión Social",2255269.4113149764,48029,"619.754218783633;12.9037502089078",2,null,null,null,null,null,null,46]
[643,"n/a","Subsecretaría de Previsión Social",104,"PMG","Ministerio del Trabajo y Previsión Social",808461.71726755239,7867,"243.023592210626;30.8915205555645",4,null,null,null,null,null,null,209]
[644,"n/a","Dirección General del Crédito Prendario",105,"PMG","Ministerio del Trabajo y Previsión Social",629845.95181824313,48801,"187.898593777396;3.85030212039499",3,null,null,null,null,null,null,39]
[645,"n/a","Servicio Nacional de Capacitación y Empleo",106,"PMG","Ministerio del Trabajo y Previsión Social",938595.54982344143,10690,"275.464290607536;25.768408850097",4,null,null,null,null,null,null,163]
[646,"n/a","Superintendencia de Seguridad Social",107,"PMG","Ministerio del Trabajo y Previsión Social",202037.95268817208,3664,"60.7326085780645;16.5754936075504",4,null,null,null,null,null,null,217]
[647,"n/a","Superintendencia de Pensiones",108,"PMG","Ministerio del Trabajo y Previsión Social",426737.15362903231,4860,"128.277188380887;26.3944832059438",4,null,null,null,null,null,null,216]
[648,"n/a","Instituto de Previsión Social",109,"PMG","Ministerio del Trabajo y Previsión Social",2083963.250206168,52604,"622.881821365331;11.840959268598",1,null,null,null,null,null,null,127]
[649,"n/a","Instituto de Seguridad Laboral",110,"PMG","Ministerio del Trabajo y Previsión Social",332971.37021647714,7475,"100.185552370272;13.4027494809728",4,null,null,null,null,null,null,10061]
[650,"n/a",null,null,null,null,0,0,"",0,null,null,null,null,null,null,""]
[651,"n/a",null,null,null,null,0,0,"",0,null,null,null,null,null,null,""]
[652,"n/a","Fondo Nacional de Salud",111,"PMG","Ministerio de Salud",1587426.423905469,22867,"468.109901993509;20.470980102047",2,null,null,null,null,null,null,55]
[653,"n/a","Instituto de Salud Pública de Chile",112,"PMG","Ministerio de Salud",4941740.1722192625,28025,"1400.36633477765;49.9684686807367",4,null,null,null,null,null,null,130]
[654,"n/a","Central de Abastecimiento del Sistema Nacional de Salud",113,"PMG","Ministerio de Salud",321189.61041666666,3500,"96.54959689125;27.5855991117857",4,null,null,null,null,null,null,9]
[655,"n/a","Subsecretaría de Salud Pública",114,"PMG","Ministerio de Salud",6448306.6306629768,78849,"1892.79849284028;24.0053582523593",1,null,null,null,null,null,null,211]
[656,"n/a","Subsecretaría de Redes Asistenciales",115,"PMG","Ministerio de Salud",225806.45857874869,1951,"67.8774214487719;34.7910924904007",4,null,null,null,null,null,null,10048]
[657,"n/a","Superintendencia de Salud",116,"PMG","Ministerio de Salud",236272.55007084593,6196,"72.5448594721983;11.708337552001",4,null,null,null,null,null,null,222]
[658,"n/a","Programa Contingencias Operacionales",null,null,"Ministerio de Salud",0,0,"",4,null,null,null,null,null,null,""]
[659,"n/a",null,null,null,null,0,0,"",0,null,null,null,null,null,null,""]
[660,"n/a",null,null,null,null,0,0,"",0,null,null,null,null,null,null,""]
[661,"n/a",null,null,null,null,0,0,"",0,null,null,null,null,null,null,""]
[662,"n/a",null,null,null,null,0,0,"",0,null,null,null,null,null,null,""]
[663,"n/a",null,null,null,null,0,0,"",0,null,null,null,null,null,null,""]
[664,"n/a",null,null,null,null,0,0,"",0,null,null,null,null,null,null,""]
[665,"n/a",null,null,null,null,0,0,"",0,null,null,null,null,null,null,""]
[666,"n/a",null,null,null,null,0,0,"",0,null,null,null,null,null,null,""]
[667,"n/a",null,null,null,null,0,0,"",0,null,null,null,null,null,null,""]
[668,"n/a",null,null,null,null,0,0,"",0,null,null,null,null,null,null,""]
[669,"n/a",null,null,null,null,0,0,"",0,null,null,null,null,null,null,""]
[670,"n/a",null,null,null,null,0,0,"",0,null,null,null,null,null,null,""]
[671,"n/a",null,null,null,null,0,0,"",0,null,null,null,null,null,null,""]
[672,"n/a",null,null,null,null,0,0,"",0,null,null,null,null,null,null,""]
[673,"n/a",null,null,null,null,0,0,"",0,null,null,null,null,null,null,""]
[674,"n/a","Servicio de Salud Talcahuano",null,null,"Ministerio de Salud",0,0,"",4,null,null,null,null,null,null,""]
[675,"n/a",null,null,null,null,0,0,"",0,null,null,null,null,null,null,""]
[676,"n/a","Hospital Padre Alberto Hurtado",null,null,"Ministerio de Salud",0,0,"",4,null,null,null,null,null,null,""]
[677,"n/a","Centro de Referencia de Salud Maipú",null,null,"Ministerio de Salud",0,0,"",4,null,null,null,null,null,null,""]
[678,"n/a","Centro de Referencia de Salud de Peñalolén Cordillera Oriente",null,null,"Ministerio de Salud",0,0,"",4,null,null,null,null,null,null,""]
[679,"n/a","Subsecretaría de Vivienda y Urbanismo",117,"PMG","Ministerio de Vivienda y Urbanismo",868333.85939948773,15566,"249.485421829548;16.0275871662308",3,null,null,null,null,null,null,214]
[680,"n/a","Parque Metropolitano",118,"PMG","Ministerio de Vivienda y Urbanismo",1418119.9583031279,7370000,"426.28685946592;0.0578408221799077",4,null,null,null,null,null,null,154]
[681,"n/a","SERVIU Región de Tarapacá",119,"PMG","Ministerio de Vivienda y Urbanismo",103785.48387096774,2955,"31.1979164516129;10.557670542001",4,null,null,null,null,null,null,179]
[682,"n/a","SERVIU Región de Antofagasta",120,"PMG","Ministerio de Vivienda y Urbanismo",6812.2480533926591,330,"2.04776176484983;6.20533868136313",4,null,null,null,null,null,null,180]
[683,"n/a","SERVIU Región de Atacama",121,"PMG","Ministerio de Vivienda y Urbanismo",85476.756985729327,2166,"25.6943131499102;11.862563781122",4,null,null,null,null,null,null,181]
[684,"n/a","SERVIU Región de Coquimbo",122,"PMG","Ministerio de Vivienda y Urbanismo",25303.807545724754,957,"7.60632454824486;7.94809252690163",4,null,null,null,null,null,null,182]
[685,"n/a","SERVIU Región de Valparaíso",123,"PMG","Ministerio de Vivienda y Urbanismo",292066.73738058819,7732.57,"87.2278781867356;11.2805804779958",3,null,null,null,null,null,null,185]
[686,"n/a","SERVIU Región del Libertador General Bernardo O'higgins",124,"PMG","Ministerio de Vivienda y Urbanismo",434323.00950129773,5975,"130.55749665609;21.8506270554126",4,null,null,null,null,null,null,186]
[687,"n/a","SERVIU Región de Maule",125,"PMG","Ministerio de Vivienda y Urbanismo",84617.996607341498,1439,"25.4361697801668;17.6762819876073",4,null,null,null,null,null,null,187]
[688,"n/a","SERVIU Región del Biobío",126,"PMG","Ministerio de Vivienda y Urbanismo",633370.43317799829,11423,"184.820569736742;16.1796874495966",4,null,null,null,null,null,null,188]
[689,"n/a","SERVIU Región de la Araucanía",127,"PMG","Ministerio de Vivienda y Urbanismo",201375.54796996663,2824,"60.533489719772;21.4353717138003",4,null,null,null,null,null,null,183]
[690,"n/a","SERVIU Región Los Lagos",128,"PMG","Ministerio de Vivienda y Urbanismo",122003.22915459481,1776,"36.6741706838712;20.6498708805581",4,null,null,null,null,null,null,189]
[691,"n/a","SERVIU Región de Aysén del General Carlos Ibáñez del Campo",129,"PMG","Ministerio de Vivienda y Urbanismo",73945.286196423156,1519,"22.5480348887785;14.8439992684519",4,null,null,null,null,null,null,190]
[692,"n/a","SERVIU Región de Magallanes y de la Antártica Chilena",130,"PMG","Ministerio de Vivienda y Urbanismo",284049.79939686146,511,"64.9879143224931;127.177914525427",4,null,null,null,null,null,null,191]
[693,"n/a","SERVIU Región Metropolitana",131,"PMG","Ministerio de Vivienda y Urbanismo",672209.02247791342,21024,"202.066032156861;9.61120777001811",4,null,null,null,null,null,null,184]
[694,"n/a","SERVIU Región de Los Ríos",132,"PMG","Ministerio de Vivienda y Urbanismo",60925.296296296299,1441,"18.3141440666667;12.709329678464",4,null,null,null,null,null,null,10057]
[695,"n/a","SERVIU Región de Arica y Parinacota",133,"PMG","Ministerio de Vivienda y Urbanismo",79399.851559934308,1615,"23.8675953789163;14.7786968290503",4,null,null,null,null,null,null,10058]
[696,"n/a","Subsecretaría de Servicios Sociales",134,"PMG","Ministerio de Desarrollo Social",420725.76254046045,10504.279999999999,"137.088524460522;13.0507302223972",3,null,null,null,null,null,null,205]
[697,"n/a","Fondo de Solidaridad e Inversión Social",135,"PMG","Ministerio de Desarrollo Social",867466.3859623163,13934,"229.755291615038;16.4888252917351",3,null,null,null,null,null,null,57]
[698,"n/a",null,null,null,null,0,0,"",0,null,null,null,null,null,null,""]
[699,"n/a","Instituto Nacional de la Juventud",136,"PMG","Ministerio de Desarrollo Social",282384.31185351365,5188,"79.0208910322143;15.2314747556311",4,null,null,null,null,null,null,126]
[700,"n/a","Corporación Nacional de Desarrollo Indígena",137,"PMG","Ministerio de Desarrollo Social",567486.31781031191,11270,"155.824948026664;13.8265260005913",3,null,null,null,null,null,null,17]
[701,"n/a","Servicio Nacional de la Discapacidad",138,"PMG","Ministerio de Desarrollo Social",120349.41537322661,3102,"31.1130997718511;10.0300128213575",4,null,null,null,null,null,null,54]
[702,"n/a","Servicio Nacional del Adulto Mayor",139,"PMG","Ministerio de Desarrollo Social",404280.8778921772,5082,"101.015769129138;19.877168266261",4,null,null,null,null,null,null,10013]
[703,"n/a","Subsecretaría de Evaluación Social",140,"PMG","Ministerio de Desarrollo Social",590595.72854803107,1844,"177.533076001538;96.2760715843482",4,null,null,null,null,null,null,10077]
[704,"n/a",null,null,null,null,0,0,"",0,null,null,null,null,null,null,""]
[705,"n/a",null,null,null,null,0,0,"",0,null,null,null,null,null,null,""]
[706,"n/a",null,null,null,null,0,0,"",0,null,null,null,null,null,null,""]
[707,"n/a","Fisco",null,null,"Tesoro Público",0,0,"",4,null,null,null,null,null,null,""]
[708,"n/a",null,null,null,null,0,0,"",0,null,null,null,null,null,null,""]
[709,"n/a","Servicio Nacional de Menores",141,"PMG","Ministerio de Justicia",6662039.9190709591,782107.7,"1992.82966100731;2.54802460199192",3,null,null,null,null,null,null,162]
[710,"n/a","Instituto Nacional de Estadísticas (INE)",142,"PMG","Ministerio de Economía, Fomento y Turismo",1367462.9501659151,24449,"401.700353857594;16.4301343145975",3,null,null,null,null,null,null,133]
[711,"n/a","Subsecretaría de la Mujer y Equidad de Género",143,"PMG","Ministerio de la Mujer y Equidad de Género",293580.03955486708,3617,"75.2403731300019;20.801872582251",4,null,null,null,null,null,null,10083]
[712,"n/a",null,null,null,null,0,0,"",0,null,null,null,null,null,null,""]
[713,"n/a",null,null,null,null,0,0,"",0,null,null,null,null,null,null,""]
[714,"n/a",null,null,null,null,0,0,"",0,null,null,null,null,null,null,""]
[715,"n/a",null,null,null,null,0,0,"",0,null,null,null,null,null,null,""]
[716,"n/a","Servicio Nacional de la Mujer",144,"PMG","Ministerio de la Mujer y Equidad de Género",785469.27977021993,8599.07,"210.580218218146;24.4887200846308",4,null,null,null,null,null,null,226]
[717,"n/a","Corporación de Asistencia Judicial",null,null,"Ministerio de Justicia",0,0,"",4,null,null,null,null,null,null,""]
[718,"n/a","Subsecretaría de Educación Parvularia",145,"PMG","Ministerio de Educación",53994.28571428571,679,"16.2306822857143;23.9038030717442",4,null,null,null,null,null,null,10082]
[719,"n/a","Consejo de Defensa del Estado",146,"PMG","Ministerio de Hacienda",345796.39505052706,4221,"96.4844479539419;22.8581966249566",3,null,null,null,null,null,null,20]
[720,"n/a","Dirección de Previsión de Carabineros de Chile",147,"PMG","Ministerio del Trabajo y Previsión Social",321032.46289211186,5767,"82.8466636851892;14.3656430874266",4,null,null,null,null,null,null,42]
[721,"n/a","Caja de Previsión de la Defensa Nacional",148,"PMG","Ministerio del Trabajo y Previsión Social",1931320.3835371449,36429.229999999996,"562.325243048574;15.4361001604638",3,null,null,null,null,null,null,7]
[722,"n/a","Subsecretaría de las Culturas y las artes",149,"PMG","Ministerio de las Culturas, las Artes y el Patrimonio",1200340.0096505899,29283,"364.719715614718;12.454998313517",3,null,null,null,null,null,null,10087]
[723,"n/a","Municipalidad de Talca",null,null,"Municipalidades",0,0,"",4,null,null,null,null,null,null,""]
[724,"n/a","Municipalidad de Constitución",null,null,"Municipalidades",0,0,"",4,null,null,null,null,null,null,""]
[725,"n/a","Municipalidad de Curepto",null,null,"Municipalidades",0,0,"",4,null,null,null,null,null,null,""]
[726,"n/a","Municipalidad de Empedrado",null,null,"Municipalidades",0,0,"",4,null,null,null,null,null,null,""]
[727,"n/a","Municipalidad de Maule",null,null,"Municipalidades",0,0,"",4,null,null,null,null,null,null,""]
[728,"n/a","Municipalidad de Pelarco",null,null,"Municipalidades",0,0,"",4,null,null,null,null,null,null,""]
[729,"n/a","Municipalidad de Pencahue",null,null,"Municipalidades",0,0,"",4,null,null,null,null,null,null,""]
[730,"n/a","Municipalidad de Río Claro",null,null,"Municipalidades",0,0,"",4,null,null,null,null,null,null,""]
[731,"n/a","Municipalidad de San Clemente",null,null,"Municipalidades",0,0,"",4,null,null,null,null,null,null,""]
[732,"n/a","Municipalidad de San Rafael",null,null,"Municipalidades",0,0,"",4,null,null,null,null,null,null,""]
[733,"n/a","Municipalidad de Cauquenes",null,null,"Municipalidades",0,0,"",4,null,null,null,null,null,null,""]
[734,"n/a","Municipalidad de Chanco",null,null,"Municipalidades",0,0,"",4,null,null,null,null,null,null,""]
[735,"n/a","Municipalidad de Pelluhue",null,null,"Municipalidades",0,0,"",4,null,null,null,null,null,null,""]
[736,"n/a","Municipalidad de Curicó",null,null,"Municipalidades",0,0,"",4,null,null,null,null,null,null,""]
[737,"n/a","Municipalidad de Hualañé",null,null,"Municipalidades",0,0,"",4,null,null,null,null,null,null,""]
[738,"n/a","Municipalidad de Licantén",null,null,"Municipalidades",0,0,"",4,null,null,null,null,null,null,""]
[739,"n/a","Municipalidad de Molina",null,null,"Municipalidades",0,0,"",4,null,null,null,null,null,null,""]
[740,"n/a","Municipalidad de Rauco",null,null,"Municipalidades",0,0,"",4,null,null,null,null,null,null,""]
[741,"n/a","Municipalidad de Romeral",null,null,"Municipalidades",0,0,"",4,null,null,null,null,null,null,""]
[742,"n/a","Municipalidad de Sagrada Familia",null,null,"Municipalidades",0,0,"",4,null,null,null,null,null,null,""]
[743,"n/a","Municipalidad de Teno",null,null,"Municipalidades",0,0,"",4,null,null,null,null,null,null,""]
[744,"n/a","Municipalidad de Vichuquén",null,null,"Municipalidades",0,0,"",4,null,null,null,null,null,null,""]
[745,"n/a","Municipalidad de Linares",null,null,"Municipalidades",0,0,"",4,null,null,null,null,null,null,""]
[746,"n/a","Municipalidad de Colbún",null,null,"Municipalidades",0,0,"",4,null,null,null,null,null,null,""]
[747,"n/a","Municipalidad de Longaví",null,null,"Municipalidades",0,0,"",4,null,null,null,null,null,null,""]
[748,"n/a","Municipalidad de Parral",null,null,"Municipalidades",0,0,"",4,null,null,null,null,null,null,""]
[749,"n/a","Municipalidad de Retiro",null,null,"Municipalidades",0,0,"",4,null,null,null,null,null,null,""]
[750,"n/a","Municipalidad de San Javier",null,null,"Municipalidades",0,0,"",4,null,null,null,null,null,null,""]
[751,"n/a","Municipalidad de Villa Alegre",null,null,"Municipalidades",0,0,"",4,null,null,null,null,null,null,""]
[752,"n/a","Municipalidad de Yerbas Buenas",null,null,"Municipalidades",0,0,"",4,null,null,null,null,null,null,""]
[753,"n/a","Municipalidad de Concepción",null,null,"Municipalidades",0,0,"",4,null,null,null,null,null,null,""]
[754,"n/a","Municipalidad de Coronel",null,null,"Municipalidades",0,0,"",4,null,null,null,null,null,null,""]
[755,"n/a","Municipalidad de Chiguayante",null,null,"Municipalidades",0,0,"",4,null,null,null,null,null,null,""]
[756,"n/a","Municipalidad de Florida",null,null,"Municipalidades",0,0,"",4,null,null,null,null,null,null,""]
[757,"n/a","Municipalidad de Hualqui",null,null,"Municipalidades",0,0,"",4,null,null,null,null,null,null,""]
[758,"n/a","Municipalidad de Lota",null,null,"Municipalidades",0,0,"",4,null,null,null,null,null,null,""]
[759,"n/a","Municipalidad de Penco",null,null,"Municipalidades",0,0,"",4,null,null,null,null,null,null,""]
[760,"n/a","Municipalidad de San Pedro de la Paz",null,null,"Municipalidades",0,0,"",4,null,null,null,null,null,null,""]
[761,"n/a","Municipalidad de Santa Juana",null,null,"Municipalidades",0,0,"",4,null,null,null,null,null,null,""]
[762,"n/a","Municipalidad de Talcahuano",null,null,"Municipalidades",0,0,"",4,null,null,null,null,null,null,""]
[763,"n/a","Municipalidad de Tomé",null,null,"Municipalidades",0,0,"",4,null,null,null,null,null,null,""]
[764,"n/a","Municipalidad de Hualpén",null,null,"Municipalidades",0,0,"",4,null,null,null,null,null,null,""]
[765,"n/a","Municipalidad de Lebu",null,null,"Municipalidades",0,0,"",4,null,null,null,null,null,null,""]
[766,"n/a","Municipalidad de Arauco",null,null,"Municipalidades",0,0,"",4,null,null,null,null,null,null,""]
[767,"n/a","Municipalidad de Cañete",null,null,"Municipalidades",0,0,"",4,null,null,null,null,null,null,""]
[768,"n/a","Municipalidad de Contulmo",null,null,"Municipalidades",0,0,"",4,null,null,null,null,null,null,""]
[769,"n/a","Municipalidad de Curanilahue",null,null,"Municipalidades",0,0,"",4,null,null,null,null,null,null,""]
[770,"n/a","Municipalidad de Los Álamos",null,null,"Municipalidades",0,0,"",4,null,null,null,null,null,null,""]
[771,"n/a","Municipalidad de Tirúa",null,null,"Municipalidades",0,0,"",4,null,null,null,null,null,null,""]
[772,"n/a","Municipalidad de Los Ángeles",null,null,"Municipalidades",0,0,"",4,null,null,null,null,null,null,""]
[773,"n/a","Municipalidad de Antuco",null,null,"Municipalidades",0,0,"",4,null,null,null,null,null,null,""]
[774,"n/a","Municipalidad de Cabrero",null,null,"Municipalidades",0,0,"",4,null,null,null,null,null,null,""]
[775,"n/a","Municipalidad de Laja",null,null,"Municipalidades",0,0,"",4,null,null,null,null,null,null,""]
[776,"n/a","Municipalidad de Mulchén",null,null,"Municipalidades",0,0,"",4,null,null,null,null,null,null,""]
[777,"n/a","Municipalidad de Nacimiento",null,null,"Municipalidades",0,0,"",4,null,null,null,null,null,null,""]
[778,"n/a","Municipalidad de Negrete",null,null,"Municipalidades",0,0,"",4,null,null,null,null,null,null,""]
[779,"n/a","Municipalidad de Quilaco",null,null,"Municipalidades",0,0,"",4,null,null,null,null,null,null,""]
[780,"n/a","Municipalidad de Quilleco",null,null,"Municipalidades",0,0,"",4,null,null,null,null,null,null,""]
[781,"n/a","Municipalidad de San Rosendo",null,null,"Municipalidades",0,0,"",4,null,null,null,null,null,null,""]
[782,"n/a","Municipalidad de Santa Bárbara",null,null,"Municipalidades",0,0,"",4,null,null,null,null,null,null,""]
[783,"n/a","Municipalidad de Tucapel",null,null,"Municipalidades",0,0,"",4,null,null,null,null,null,null,""]
[784,"n/a","Municipalidad de Yumbel",null,null,"Municipalidades",0,0,"",4,null,null,null,null,null,null,""]
[785,"n/a","Municipalidad de Alto Biobío",null,null,"Municipalidades",0,0,"",4,null,null,null,null,null,null,""]
[786,"n/a","Municipalidad de Chillán",null,null,"Municipalidades",0,0,"",4,null,null,null,null,null,null,""]
[787,"n/a","Municipalidad de Bulnes",null,null,"Municipalidades",0,0,"",4,null,null,null,null,null,null,""]
[788,"n/a","Municipalidad de Cobquecura",null,null,"Municipalidades",0,0,"",4,null,null,null,null,null,null,""]
[789,"n/a","Municipalidad de Coelemu",null,null,"Municipalidades",0,0,"",4,null,null,null,null,null,null,""]
[790,"n/a","Municipalidad de Coihueco",null,null,"Municipalidades",0,0,"",4,null,null,null,null,null,null,""]
[791,"n/a","Municipalidad de Chillán Viejo",null,null,"Municipalidades",0,0,"",4,null,null,null,null,null,null,""]
[792,"n/a","Municipalidad de El Carmen",null,null,"Municipalidades",0,0,"",4,null,null,null,null,null,null,""]
[793,"n/a","Municipalidad de Ninhue",null,null,"Municipalidades",0,0,"",4,null,null,null,null,null,null,""]
[794,"n/a","Municipalidad de Ñiquén",null,null,"Municipalidades",0,0,"",4,null,null,null,null,null,null,""]
[795,"n/a","Municipalidad de Pemuco",null,null,"Municipalidades",0,0,"",4,null,null,null,null,null,null,""]
[796,"n/a","Municipalidad de Pinto",null,null,"Municipalidades",0,0,"",4,null,null,null,null,null,null,""]
[797,"n/a","Municipalidad de Portezuelo",null,null,"Municipalidades",0,0,"",4,null,null,null,null,null,null,""]
[798,"n/a","Municipalidad de Quillón",null,null,"Municipalidades",0,0,"",4,null,null,null,null,null,null,""]
[799,"n/a","Municipalidad de Quirihue",null,null,"Municipalidades",0,0,"",4,null,null,null,null,null,null,""]
[800,"n/a","Municipalidad de Ránquil",null,null,"Municipalidades",0,0,"",4,null,null,null,null,null,null,""]
[801,"n/a","Municipalidad de San Carlos",null,null,"Municipalidades",0,0,"",4,null,null,null,null,null,null,""]
[802,"n/a","Municipalidad de San Fabián",null,null,"Municipalidades",0,0,"",4,null,null,null,null,null,null,""]
[803,"n/a","Municipalidad de San Ignacio",null,null,"Municipalidades",0,0,"",4,null,null,null,null,null,null,""]
[804,"n/a","Municipalidad de San Nicolás",null,null,"Municipalidades",0,0,"",4,null,null,null,null,null,null,""]
[805,"n/a","Municipalidad de Treguaco",null,null,"Municipalidades",0,0,"",4,null,null,null,null,null,null,""]
[806,"n/a","Municipalidad de Yungay",null,null,"Municipalidades",0,0,"",4,null,null,null,null,null,null,""]
[807,"n/a","Municipalidad de Temuco",null,null,"Municipalidades",0,0,"",4,null,null,null,null,null,null,""]
[808,"n/a","Municipalidad de Carahue",null,null,"Municipalidades",0,0,"",4,null,null,null,null,null,null,""]
[809,"n/a","Municipalidad de Cunco",null,null,"Municipalidades",0,0,"",4,null,null,null,null,null,null,""]
[810,"n/a","Municipalidad de Curarrehue",null,null,"Municipalidades",0,0,"",4,null,null,null,null,null,null,""]
[811,"n/a","Municipalidad de Freire",null,null,"Municipalidades",0,0,"",4,null,null,null,null,null,null,""]
[812,"n/a","Municipalidad de Galvarino",null,null,"Municipalidades",0,0,"",4,null,null,null,null,null,null,""]
[813,"n/a","Municipalidad de Gorbea",null,null,"Municipalidades",0,0,"",4,null,null,null,null,null,null,""]
[814,"n/a","Municipalidad de Lautaro",null,null,"Municipalidades",0,0,"",4,null,null,null,null,null,null,""]
[815,"n/a","Municipalidad de Loncoche",null,null,"Municipalidades",0,0,"",4,null,null,null,null,null,null,""]
[816,"n/a","Municipalidad de Melipeuco",null,null,"Municipalidades",0,0,"",4,null,null,null,null,null,null,""]
[817,"n/a","Municipalidad de Nueva Imperial",null,null,"Municipalidades",0,0,"",4,null,null,null,null,null,null,""]
[818,"n/a","Municipalidad de Padre Las Casas",null,null,"Municipalidades",0,0,"",4,null,null,null,null,null,null,""]
[819,"n/a","Municipalidad de Perquenco",null,null,"Municipalidades",0,0,"",4,null,null,null,null,null,null,""]
[820,"n/a","Municipalidad de Pitrufquén",null,null,"Municipalidades",0,0,"",4,null,null,null,null,null,null,""]
[821,"n/a","Municipalidad de Pucón",null,null,"Municipalidades",0,0,"",4,null,null,null,null,null,null,""]
[822,"n/a","Municipalidad de Saavedra",null,null,"Municipalidades",0,0,"",4,null,null,null,null,null,null,""]
[823,"n/a","Municipalidad de Teodoro Schmidt",null,null,"Municipalidades",0,0,"",4,null,null,null,null,null,null,""]
[824,"n/a","Municipalidad de Toltén",null,null,"Municipalidades",0,0,"",4,null,null,null,null,null,null,""]
[825,"n/a","Municipalidad de Vilcún",null,null,"Municipalidades",0,0,"",4,null,null,null,null,null,null,""]
[826,"n/a","Municipalidad de Villarrica",null,null,"Municipalidades",0,0,"",4,null,null,null,null,null,null,""]
[827,"n/a","Municipalidad de Cholchol",null,null,"Municipalidades",0,0,"",4,null,null,null,null,null,null,""]
[828,"n/a","Municipalidad de Angol",null,null,"Municipalidades",0,0,"",4,null,null,null,null,null,null,""]
[829,"n/a","Municipalidad de Collipulli",null,null,"Municipalidades",0,0,"",4,null,null,null,null,null,null,""]
[830,"n/a","Municipalidad de Curacautín",null,null,"Municipalidades",0,0,"",4,null,null,null,null,null,null,""]
[831,"n/a","Municipalidad de Ercilla",null,null,"Municipalidades",0,0,"",4,null,null,null,null,null,null,""]
[832,"n/a","Municipalidad de Lonquimay",null,null,"Municipalidades",0,0,"",4,null,null,null,null,null,null,""]
[833,"n/a","Municipalidad de Los Sauces",null,null,"Municipalidades",0,0,"",4,null,null,null,null,null,null,""]
[834,"n/a","Municipalidad de Lumaco",null,null,"Municipalidades",0,0,"",4,null,null,null,null,null,null,""]
[835,"n/a","Municipalidad de Purén",null,null,"Municipalidades",0,0,"",4,null,null,null,null,null,null,""]
[836,"n/a","Municipalidad de Renaico",null,null,"Municipalidades",0,0,"",4,null,null,null,null,null,null,""]
[837,"n/a","Municipalidad de Traiguén",null,null,"Municipalidades",0,0,"",4,null,null,null,null,null,null,""]
[838,"n/a","Municipalidad de Victoria",null,null,"Municipalidades",0,0,"",4,null,null,null,null,null,null,""]
[839,"n/a","Municipalidad de Arica",null,null,"Municipalidades",0,0,"",4,null,null,null,null,null,null,""]
[840,"n/a","Municipalidad de Camarones",null,null,"Municipalidades",0,0,"",4,null,null,null,null,null,null,""]
[841,"n/a","Municipalidad de Putre",null,null,"Municipalidades",0,0,"",4,null,null,null,null,null,null,""]
[842,"n/a","Municipalidad de General Lagos",null,null,"Municipalidades",0,0,"",4,null,null,null,null,null,null,""]
[843,"n/a","Municipalidad de Iquique",null,null,"Municipalidades",0,0,"",4,null,null,null,null,null,null,""]
[844,"n/a","Municipalidad de Alto Hospicio",null,null,"Municipalidades",0,0,"",4,null,null,null,null,null,null,""]
[845,"n/a","Municipalidad de Pozo Almonte",null,null,"Municipalidades",0,0,"",4,null,null,null,null,null,null,""]
[846,"n/a","Municipalidad de Camiña",null,null,"Municipalidades",0,0,"",4,null,null,null,null,null,null,""]
[847,"n/a","Municipalidad de Colchane",null,null,"Municipalidades",0,0,"",4,null,null,null,null,null,null,""]
[848,"n/a","Municipalidad de Huara",null,null,"Municipalidades",0,0,"",4,null,null,null,null,null,null,""]
[849,"n/a","Municipalidad de Pica",null,null,"Municipalidades",0,0,"",4,null,null,null,null,null,null,""]
[850,"n/a","Municipalidad de Antofagasta",null,null,"Municipalidades",0,0,"",4,null,null,null,null,null,null,""]
[851,"n/a","Municipalidad de Mejillones",null,null,"Municipalidades",0,0,"",4,null,null,null,null,null,null,""]
[852,"n/a","Municipalidad de Sierra Gorda",null,null,"Municipalidades",0,0,"",4,null,null,null,null,null,null,""]
[853,"n/a","Municipalidad de Taltal",null,null,"Municipalidades",0,0,"",4,null,null,null,null,null,null,""]
[854,"n/a","Municipalidad de Calama",null,null,"Municipalidades",0,0,"",4,null,null,null,null,null,null,""]
[855,"n/a","Municipalidad de Ollagüe",null,null,"Municipalidades",0,0,"",4,null,null,null,null,null,null,""]
[856,"n/a","Municipalidad de San Pedro de Atacama",null,null,"Municipalidades",0,0,"",4,null,null,null,null,null,null,""]
[857,"n/a","Municipalidad de Tocopilla",null,null,"Municipalidades",0,0,"",4,null,null,null,null,null,null,""]
[858,"n/a","Municipalidad de María Elena",null,null,"Municipalidades",0,0,"",4,null,null,null,null,null,null,""]
[859,"n/a","Municipalidad de Copiapó",null,null,"Municipalidades",0,0,"",4,null,null,null,null,null,null,""]
[860,"n/a","Municipalidad de Caldera",null,null,"Municipalidades",0,0,"",4,null,null,null,null,null,null,""]
[861,"n/a","Municipalidad de Tierra Amarilla",null,null,"Municipalidades",0,0,"",4,null,null,null,null,null,null,""]
[862,"n/a","Municipalidad de Chañaral",null,null,"Municipalidades",0,0,"",4,null,null,null,null,null,null,""]
[863,"n/a","Municipalidad de Diego de Almagro",null,null,"Municipalidades",0,0,"",4,null,null,null,null,null,null,""]
[864,"n/a","Municipalidad de Vallenar",null,null,"Municipalidades",0,0,"",4,null,null,null,null,null,null,""]
[865,"n/a","Municipalidad de Alto del Carmen",null,null,"Municipalidades",0,0,"",4,null,null,null,null,null,null,""]
[866,"n/a","Municipalidad de Freirina",null,null,"Municipalidades",0,0,"",4,null,null,null,null,null,null,""]
[867,"n/a","Municipalidad de Huasco",null,null,"Municipalidades",0,0,"",4,null,null,null,null,null,null,""]
[868,"n/a","Municipalidad de La Serena",null,null,"Municipalidades",0,0,"",4,null,null,null,null,null,null,""]
[869,"n/a","Municipalidad de Coquimbo",null,null,"Municipalidades",0,0,"",4,null,null,null,null,null,null,""]
[870,"n/a","Municipalidad de Andacollo",null,null,"Municipalidades",0,0,"",4,null,null,null,null,null,null,""]
[871,"n/a","Municipalidad de La Higuera",null,null,"Municipalidades",0,0,"",4,null,null,null,null,null,null,""]
[872,"n/a","Municipalidad de Paiguano",null,null,"Municipalidades",0,0,"",4,null,null,null,null,null,null,""]
[873,"n/a","Municipalidad de Vicuña",null,null,"Municipalidades",0,0,"",4,null,null,null,null,null,null,""]
[874,"n/a","Municipalidad de Illapel",null,null,"Municipalidades",0,0,"",4,null,null,null,null,null,null,""]
[875,"n/a","Municipalidad de Canela",null,null,"Municipalidades",0,0,"",4,null,null,null,null,null,null,""]
[876,"n/a","Municipalidad de Los Vilos",null,null,"Municipalidades",0,0,"",4,null,null,null,null,null,null,""]
[877,"n/a","Municipalidad de Salamanca",null,null,"Municipalidades",0,0,"",4,null,null,null,null,null,null,""]
[878,"n/a","Municipalidad de Ovalle",null,null,"Municipalidades",0,0,"",4,null,null,null,null,null,null,""]
[879,"n/a","Municipalidad de Combarbalá",null,null,"Municipalidades",0,0,"",4,null,null,null,null,null,null,""]
[880,"n/a","Municipalidad de Monte Patria",null,null,"Municipalidades",0,0,"",4,null,null,null,null,null,null,""]
[881,"n/a","Municipalidad de Punitaqui",null,null,"Municipalidades",0,0,"",4,null,null,null,null,null,null,""]
[882,"n/a","Municipalidad de Río Hurtado",null,null,"Municipalidades",0,0,"",4,null,null,null,null,null,null,""]
[883,"n/a","Municipalidad de Valparaíso",null,null,"Municipalidades",0,0,"",4,null,null,null,null,null,null,""]
[884,"n/a","Municipalidad de Casablanca",null,null,"Municipalidades",0,0,"",4,null,null,null,null,null,null,""]
[885,"n/a","Municipalidad de Concón",null,null,"Municipalidades",0,0,"",4,null,null,null,null,null,null,""]
[886,"n/a","Municipalidad de Juan Fernández",null,null,"Municipalidades",0,0,"",4,null,null,null,null,null,null,""]
[887,"n/a","Municipalidad de Puchuncaví",null,null,"Municipalidades",0,0,"",4,null,null,null,null,null,null,""]
[888,"n/a","Municipalidad de Quintero",null,null,"Municipalidades",0,0,"",4,null,null,null,null,null,null,""]
[889,"n/a","Municipalidad de Viña del Mar",null,null,"Municipalidades",0,0,"",4,null,null,null,null,null,null,""]
[890,"n/a","Municipalidad de Isla de Pascua",null,null,"Municipalidades",0,0,"",4,null,null,null,null,null,null,""]
[891,"n/a","Municipalidad de Los Andes",null,null,"Municipalidades",0,0,"",4,null,null,null,null,null,null,""]
[892,"n/a","Municipalidad de Calle Larga",null,null,"Municipalidades",0,0,"",4,null,null,null,null,null,null,""]
[893,"n/a","Municipalidad de Rinconada",null,null,"Municipalidades",0,0,"",4,null,null,null,null,null,null,""]
[894,"n/a","Municipalidad de San Esteban",null,null,"Municipalidades",0,0,"",4,null,null,null,null,null,null,""]
[895,"n/a","Municipalidad de La Ligua",null,null,"Municipalidades",0,0,"",4,null,null,null,null,null,null,""]
[896,"n/a","Municipalidad de Cabildo",null,null,"Municipalidades",0,0,"",4,null,null,null,null,null,null,""]
[897,"n/a","Municipalidad de Papudo",null,null,"Municipalidades",0,0,"",4,null,null,null,null,null,null,""]
[898,"n/a","Municipalidad de Petorca",null,null,"Municipalidades",0,0,"",4,null,null,null,null,null,null,""]
[899,"n/a","Municipalidad de Zapallar",null,null,"Municipalidades",0,0,"",4,null,null,null,null,null,null,""]
[900,"n/a","Municipalidad de Quillota",null,null,"Municipalidades",0,0,"",4,null,null,null,null,null,null,""]
[901,"n/a","Municipalidad de Calera",null,null,"Municipalidades",0,0,"",4,null,null,null,null,null,null,""]
[902,"n/a","Municipalidad de Hijuelas",null,null,"Municipalidades",0,0,"",4,null,null,null,null,null,null,""]
[903,"n/a","Municipalidad de La Cruz",null,null,"Municipalidades",0,0,"",4,null,null,null,null,null,null,""]
[904,"n/a","Municipalidad de Nogales",null,null,"Municipalidades",0,0,"",4,null,null,null,null,null,null,""]
[905,"n/a","Municipalidad de San Antonio",null,null,"Municipalidades",0,0,"",4,null,null,null,null,null,null,""]
[906,"n/a","Municipalidad de Algarrobo",null,null,"Municipalidades",0,0,"",4,null,null,null,null,null,null,""]
[907,"n/a","Municipalidad de Cartagena",null,null,"Municipalidades",0,0,"",4,null,null,null,null,null,null,""]
[908,"n/a","Municipalidad de El Quisco",null,null,"Municipalidades",0,0,"",4,null,null,null,null,null,null,""]
[909,"n/a","Municipalidad de El Tabo",null,null,"Municipalidades",0,0,"",4,null,null,null,null,null,null,""]
[910,"n/a","Municipalidad de Santo Domingo",null,null,"Municipalidades",0,0,"",4,null,null,null,null,null,null,""]
[911,"n/a","Municipalidad de San Felipe",null,null,"Municipalidades",0,0,"",4,null,null,null,null,null,null,""]
[912,"n/a","Municipalidad de Catemu",null,null,"Municipalidades",0,0,"",4,null,null,null,null,null,null,""]
[913,"n/a","Municipalidad de Llaillay",null,null,"Municipalidades",0,0,"",4,null,null,null,null,null,null,""]
[914,"n/a","Municipalidad de Panquehue",null,null,"Municipalidades",0,0,"",4,null,null,null,null,null,null,""]
[915,"n/a","Municipalidad de Putaendo",null,null,"Municipalidades",0,0,"",4,null,null,null,null,null,null,""]
[916,"n/a","Municipalidad de Santa María",null,null,"Municipalidades",0,0,"",4,null,null,null,null,null,null,""]
[917,"n/a","Municipalidad de Quilpué",null,null,"Municipalidades",0,0,"",4,null,null,null,null,null,null,""]
[918,"n/a","Municipalidad de Limache",null,null,"Municipalidades",0,0,"",4,null,null,null,null,null,null,""]
[919,"n/a","Municipalidad de Olmué",null,null,"Municipalidades",0,0,"",4,null,null,null,null,null,null,""]
[920,"n/a","Municipalidad de Villa Alemana",null,null,"Municipalidades",0,0,"",4,null,null,null,null,null,null,""]
[921,"n/a","Municipalidad de Rancagua",null,null,"Municipalidades",0,0,"",4,null,null,null,null,null,null,""]
[922,"n/a","Municipalidad de Codegua",null,null,"Municipalidades",0,0,"",4,null,null,null,null,null,null,""]
[923,"n/a","Municipalidad de Coinco",null,null,"Municipalidades",0,0,"",4,null,null,null,null,null,null,""]
[924,"n/a","Municipalidad de Coltauco",null,null,"Municipalidades",0,0,"",4,null,null,null,null,null,null,""]
[925,"n/a","Municipalidad de Doñihue",null,null,"Municipalidades",0,0,"",4,null,null,null,null,null,null,""]
[926,"n/a","Municipalidad de Graneros",null,null,"Municipalidades",0,0,"",4,null,null,null,null,null,null,""]
[927,"n/a","Municipalidad de Las Cabras",null,null,"Municipalidades",0,0,"",4,null,null,null,null,null,null,""]
[928,"n/a","Municipalidad de Machalí",null,null,"Municipalidades",0,0,"",4,null,null,null,null,null,null,""]
[929,"n/a","Municipalidad de Malloa",null,null,"Municipalidades",0,0,"",4,null,null,null,null,null,null,""]
[930,"n/a","Municipalidad de Mostazal",null,null,"Municipalidades",0,0,"",4,null,null,null,null,null,null,""]
[931,"n/a","Municipalidad de Olivar",null,null,"Municipalidades",0,0,"",4,null,null,null,null,null,null,""]
[932,"n/a","Municipalidad de Peumo",null,null,"Municipalidades",0,0,"",4,null,null,null,null,null,null,""]
[933,"n/a","Municipalidad de Pichidegua",null,null,"Municipalidades",0,0,"",4,null,null,null,null,null,null,""]
[934,"n/a","Municipalidad de Quinta de Tilcoco",null,null,"Municipalidades",0,0,"",4,null,null,null,null,null,null,""]
[935,"n/a","Municipalidad de Rengo",null,null,"Municipalidades",0,0,"",4,null,null,null,null,null,null,""]
[936,"n/a","Municipalidad de Requínoa",null,null,"Municipalidades",0,0,"",4,null,null,null,null,null,null,""]
[937,"n/a","Municipalidad de San Vicente",null,null,"Municipalidades",0,0,"",4,null,null,null,null,null,null,""]
[938,"n/a","Municipalidad de Pichilemu",null,null,"Municipalidades",0,0,"",4,null,null,null,null,null,null,""]
[939,"n/a","Municipalidad de La Estrella",null,null,"Municipalidades",0,0,"",4,null,null,null,null,null,null,""]
[940,"n/a","Municipalidad de Litueche",null,null,"Municipalidades",0,0,"",4,null,null,null,null,null,null,""]
[941,"n/a","Municipalidad de Marchihue",null,null,"Municipalidades",0,0,"",4,null,null,null,null,null,null,""]
[942,"n/a","Municipalidad de Navidad",null,null,"Municipalidades",0,0,"",4,null,null,null,null,null,null,""]
[943,"n/a","Municipalidad de Paredones",null,null,"Municipalidades",0,0,"",4,null,null,null,null,null,null,""]
[944,"n/a","Municipalidad de San Fernando",null,null,"Municipalidades",0,0,"",4,null,null,null,null,null,null,""]
[945,"n/a","Municipalidad de Chépica",null,null,"Municipalidades",0,0,"",4,null,null,null,null,null,null,""]
[946,"n/a","Municipalidad de Chimbarongo",null,null,"Municipalidades",0,0,"",4,null,null,null,null,null,null,""]
[947,"n/a","Municipalidad de Lolol",null,null,"Municipalidades",0,0,"",4,null,null,null,null,null,null,""]
[948,"n/a","Municipalidad de Nancagua",null,null,"Municipalidades",0,0,"",4,null,null,null,null,null,null,""]
[949,"n/a","Municipalidad de Palmilla",null,null,"Municipalidades",0,0,"",4,null,null,null,null,null,null,""]
[950,"n/a","Municipalidad de Peralillo",null,null,"Municipalidades",0,0,"",4,null,null,null,null,null,null,""]
[951,"n/a","Municipalidad de Placilla",null,null,"Municipalidades",0,0,"",4,null,null,null,null,null,null,""]
[952,"n/a","Municipalidad de Pumanque",null,null,"Municipalidades",0,0,"",4,null,null,null,null,null,null,""]
[953,"n/a","Municipalidad de Santa Cruz",null,null,"Municipalidades",0,0,"",4,null,null,null,null,null,null,""]
[954,"n/a","Municipalidad de Valdivia",null,null,"Municipalidades",0,0,"",4,null,null,null,null,null,null,""]
[955,"n/a","Municipalidad de Corral",null,null,"Municipalidades",0,0,"",4,null,null,null,null,null,null,""]
[956,"n/a","Municipalidad de Lanco",null,null,"Municipalidades",0,0,"",4,null,null,null,null,null,null,""]
[957,"n/a","Municipalidad de Los Lagos",null,null,"Municipalidades",0,0,"",4,null,null,null,null,null,null,""]
[958,"n/a","Municipalidad de Máfil",null,null,"Municipalidades",0,0,"",4,null,null,null,null,null,null,""]
[959,"n/a","Municipalidad de Mariquina",null,null,"Municipalidades",0,0,"",4,null,null,null,null,null,null,""]
[960,"n/a","Municipalidad de Paillaco",null,null,"Municipalidades",0,0,"",4,null,null,null,null,null,null,""]
[961,"n/a","Municipalidad de Panguipulli",null,null,"Municipalidades",0,0,"",4,null,null,null,null,null,null,""]
[962,"n/a","Municipalidad de La Unión",null,null,"Municipalidades",0,0,"",4,null,null,null,null,null,null,""]
[963,"n/a","Municipalidad de Futrono",null,null,"Municipalidades",0,0,"",4,null,null,null,null,null,null,""]
[964,"n/a","Municipalidad de Lago Ranco",null,null,"Municipalidades",0,0,"",4,null,null,null,null,null,null,""]
[965,"n/a","Municipalidad de Río Bueno",null,null,"Municipalidades",0,0,"",4,null,null,null,null,null,null,""]
[966,"n/a","Municipalidad de Puerto Montt",null,null,"Municipalidades",0,0,"",4,null,null,null,null,null,null,""]
[967,"n/a","Municipalidad de Calbuco",null,null,"Municipalidades",0,0,"",4,null,null,null,null,null,null,""]
[968,"n/a","Municipalidad de Cochamó",null,null,"Municipalidades",0,0,"",4,null,null,null,null,null,null,""]
[969,"n/a","Municipalidad de Fresia",null,null,"Municipalidades",0,0,"",4,null,null,null,null,null,null,""]
[970,"n/a","Municipalidad de Frutillar",null,null,"Municipalidades",0,0,"",4,null,null,null,null,null,null,""]
[971,"n/a","Municipalidad de Los Muermos",null,null,"Municipalidades",0,0,"",4,null,null,null,null,null,null,""]
[972,"n/a","Municipalidad de Llanquihue",null,null,"Municipalidades",0,0,"",4,null,null,null,null,null,null,""]
[973,"n/a","Municipalidad de Maullín",null,null,"Municipalidades",0,0,"",4,null,null,null,null,null,null,""]
[974,"n/a","Municipalidad de Puerto Varas",null,null,"Municipalidades",0,0,"",4,null,null,null,null,null,null,""]
[975,"n/a","Municipalidad de Castro",null,null,"Municipalidades",0,0,"",4,null,null,null,null,null,null,""]
[976,"n/a","Municipalidad de Ancud",null,null,"Municipalidades",0,0,"",4,null,null,null,null,null,null,""]
[977,"n/a","Municipalidad de Chonchi",null,null,"Municipalidades",0,0,"",4,null,null,null,null,null,null,""]
[978,"n/a","Municipalidad de Curaco de Vélez",null,null,"Municipalidades",0,0,"",4,null,null,null,null,null,null,""]
[979,"n/a","Municipalidad de Dalcahue",null,null,"Municipalidades",0,0,"",4,null,null,null,null,null,null,""]
[980,"n/a","Municipalidad de Puqueldón",null,null,"Municipalidades",0,0,"",4,null,null,null,null,null,null,""]
[981,"n/a","Municipalidad de Queilén",null,null,"Municipalidades",0,0,"",4,null,null,null,null,null,null,""]
[982,"n/a","Municipalidad de Quellón",null,null,"Municipalidades",0,0,"",4,null,null,null,null,null,null,""]
[983,"n/a","Municipalidad de Quemchi",null,null,"Municipalidades",0,0,"",4,null,null,null,null,null,null,""]
[984,"n/a","Municipalidad de Quinchao",null,null,"Municipalidades",0,0,"",4,null,null,null,null,null,null,""]
[985,"n/a","Municipalidad de Osorno",null,null,"Municipalidades",0,0,"",4,null,null,null,null,null,null,""]
[986,"n/a","Municipalidad de Puerto Octay",null,null,"Municipalidades",0,0,"",4,null,null,null,null,null,null,""]
[987,"n/a","Municipalidad de Purranque",null,null,"Municipalidades",0,0,"",4,null,null,null,null,null,null,""]
[988,"n/a","Municipalidad de Puyehue",null,null,"Municipalidades",0,0,"",4,null,null,null,null,null,null,""]
[989,"n/a","Municipalidad de Río Negro",null,null,"Municipalidades",0,0,"",4,null,null,null,null,null,null,""]
[990,"n/a","Municipalidad de San Juan de la Costa",null,null,"Municipalidades",0,0,"",4,null,null,null,null,null,null,""]
[991,"n/a","Municipalidad de San Pablo",null,null,"Municipalidades",0,0,"",4,null,null,null,null,null,null,""]
[992,"n/a","Municipalidad de Chaitén",null,null,"Municipalidades",0,0,"",4,null,null,null,null,null,null,""]
[993,"n/a","Municipalidad de Futaleufú",null,null,"Municipalidades",0,0,"",4,null,null,null,null,null,null,""]
[994,"n/a","Municipalidad de Hualaihué",null,null,"Municipalidades",0,0,"",4,null,null,null,null,null,null,""]
[995,"n/a","Municipalidad de Palena",null,null,"Municipalidades",0,0,"",4,null,null,null,null,null,null,""]
[996,"n/a","Municipalidad de Coyhaique",null,null,"Municipalidades",0,0,"",4,null,null,null,null,null,null,""]
[997,"n/a","Municipalidad de Lago Verde",null,null,"Municipalidades",0,0,"",4,null,null,null,null,null,null,""]
[998,"n/a","Municipalidad de Aysén",null,null,"Municipalidades",0,0,"",4,null,null,null,null,null,null,""]
[999,"n/a","Municipalidad de Cisnes",null,null,"Municipalidades",0,0,"",4,null,null,null,null,null,null,""]
[1000,"n/a","Municipalidad de Guaitecas",null,null,"Municipalidades",0,0,"",4,null,null,null,null,null,null,""]
[1001,"n/a","Municipalidad de Cochrane",null,null,"Municipalidades",0,0,"",4,null,null,null,null,null,null,""]
[1002,"n/a","Municipalidad de O’Higgins",null,null,"Municipalidades",0,0,"",4,null,null,null,null,null,null,""]
[1003,"n/a","Municipalidad de Tortel",null,null,"Municipalidades",0,0,"",4,null,null,null,null,null,null,""]
[1004,"n/a","Municipalidad de Chile Chico",null,null,"Municipalidades",0,0,"",4,null,null,null,null,null,null,""]
[1005,"n/a","Municipalidad de Río Ibáñez",null,null,"Municipalidades",0,0,"",4,null,null,null,null,null,null,""]
[1006,"n/a","Municipalidad de Punta Arenas",null,null,"Municipalidades",0,0,"",4,null,null,null,null,null,null,""]
[1007,"n/a","Municipalidad de Laguna Blanca",null,null,"Municipalidades",0,0,"",4,null,null,null,null,null,null,""]
[1008,"n/a","Municipalidad de Río Verde",null,null,"Municipalidades",0,0,"",4,null,null,null,null,null,null,""]
[1009,"n/a","Municipalidad de San Gregorio",null,null,"Municipalidades",0,0,"",4,null,null,null,null,null,null,""]
[1010,"n/a","Municipalidad de Cabo de Hornos (Ex - Navarino)",null,null,"Municipalidades",0,0,"",4,null,null,null,null,null,null,""]
[1011,"n/a","Municipalidad de Antártica",null,null,"Municipalidades",0,0,"",4,null,null,null,null,null,null,""]
[1012,"n/a","Municipalidad de Porvenir",null,null,"Municipalidades",0,0,"",4,null,null,null,null,null,null,""]
[1013,"n/a","Municipalidad de Primavera",null,null,"Municipalidades",0,0,"",4,null,null,null,null,null,null,""]
[1014,"n/a","Municipalidad de Timaukel",null,null,"Municipalidades",0,0,"",4,null,null,null,null,null,null,""]
[1015,"n/a","Municipalidad de Natales",null,null,"Municipalidades",0,0,"",4,null,null,null,null,null,null,""]
[1016,"n/a","Municipalidad de Torres del Paine",null,null,"Municipalidades",0,0,"",4,null,null,null,null,null,null,""]
[1017,"n/a","Municipalidad de Santiago",null,null,"Municipalidades",0,0,"",4,null,null,null,null,null,null,""]
[1018,"n/a","Municipalidad de Cerrillos",null,null,"Municipalidades",0,0,"",4,null,null,null,null,null,null,""]
[1019,"n/a","Municipalidad de Cerro Navia",null,null,"Municipalidades",0,0,"",4,null,null,null,null,null,null,""]
[1020,"n/a","Municipalidad de Conchalí",null,null,"Municipalidades",0,0,"",4,null,null,null,null,null,null,""]
[1021,"n/a","Municipalidad de El Bosque",null,null,"Municipalidades",0,0,"",4,null,null,null,null,null,null,""]
[1022,"n/a","Municipalidad de Estación Central",null,null,"Municipalidades",0,0,"",4,null,null,null,null,null,null,""]
[1023,"n/a","Municipalidad de Huechuraba",null,null,"Municipalidades",0,0,"",4,null,null,null,null,null,null,""]
[1024,"n/a","Municipalidad de Independencia",null,null,"Municipalidades",0,0,"",4,null,null,null,null,null,null,""]
[1025,"n/a","Municipalidad de La Cisterna",null,null,"Municipalidades",0,0,"",4,null,null,null,null,null,null,""]
[1026,"n/a","Municipalidad de La Florida",null,null,"Municipalidades",0,0,"",4,null,null,null,null,null,null,""]
[1027,"n/a","Municipalidad de La Granja",null,null,"Municipalidades",0,0,"",4,null,null,null,null,null,null,""]
[1028,"n/a","Municipalidad de La Pintana",null,null,"Municipalidades",0,0,"",4,null,null,null,null,null,null,""]
[1029,"n/a","Municipalidad de La Reina",null,null,"Municipalidades",0,0,"",4,null,null,null,null,null,null,""]
[1030,"n/a","Municipalidad de Las Condes",null,null,"Municipalidades",0,0,"",4,null,null,null,null,null,null,""]
[1031,"n/a","Municipalidad de Lo Barnechea",null,null,"Municipalidades",0,0,"",4,null,null,null,null,null,null,""]
[1032,"n/a","Municipalidad de Lo Espejo",null,null,"Municipalidades",0,0,"",4,null,null,null,null,null,null,""]
[1033,"n/a","Municipalidad de Lo Prado",null,null,"Municipalidades",0,0,"",4,null,null,null,null,null,null,""]
[1034,"n/a","Municipalidad de Macul",null,null,"Municipalidades",0,0,"",4,null,null,null,null,null,null,""]
[1035,"n/a","Municipalidad de Maipú",null,null,"Municipalidades",0,0,"",4,null,null,null,null,null,null,""]
[1036,"n/a","Municipalidad de Ñuñoa",null,null,"Municipalidades",0,0,"",4,null,null,null,null,null,null,""]
[1037,"n/a","Municipalidad de Pedro Aguirre Cerda",null,null,"Municipalidades",0,0,"",4,null,null,null,null,null,null,""]
[1038,"n/a","Municipalidad de Peñalolén",null,null,"Municipalidades",0,0,"",4,null,null,null,null,null,null,""]
[1039,"n/a","Municipalidad de Providencia",null,null,"Municipalidades",0,0,"",4,null,null,null,null,null,null,""]
[1040,"n/a","Municipalidad de Pudahuel",null,null,"Municipalidades",0,0,"",4,null,null,null,null,null,null,""]
[1041,"n/a","Municipalidad de Quilicura",null,null,"Municipalidades",0,0,"",4,null,null,null,null,null,null,""]
[1042,"n/a","Municipalidad de Quinta Normal",null,null,"Municipalidades",0,0,"",4,null,null,null,null,null,null,""]
[1043,"n/a","Municipalidad de Recoleta",null,null,"Municipalidades",0,0,"",4,null,null,null,null,null,null,""]
[1044,"n/a","Municipalidad de Renca",null,null,"Municipalidades",0,0,"",4,null,null,null,null,null,null,""]
[1045,"n/a","Municipalidad de San Joaquín",null,null,"Municipalidades",0,0,"",4,null,null,null,null,null,null,""]
[1046,"n/a","Municipalidad de San Miguel",null,null,"Municipalidades",0,0,"",4,null,null,null,null,null,null,""]
[1047,"n/a","Municipalidad de San Ramón",null,null,"Municipalidades",0,0,"",4,null,null,null,null,null,null,""]
[1048,"n/a","Municipalidad de Vitacura",null,null,"Municipalidades",0,0,"",4,null,null,null,null,null,null,""]
[1049,"n/a","Municipalidad de Puente Alto",null,null,"Municipalidades",0,0,"",4,null,null,null,null,null,null,""]
[1050,"n/a","Municipalidad de Pirque",null,null,"Municipalidades",0,0,"",4,null,null,null,null,null,null,""]
[1051,"n/a","Municipalidad de San José de Maipo",null,null,"Municipalidades",0,0,"",4,null,null,null,null,null,null,""]
[1052,"n/a","Municipalidad de Colina",null,null,"Municipalidades",0,0,"",4,null,null,null,null,null,null,""]
[1053,"n/a","Municipalidad de Lampa",null,null,"Municipalidades",0,0,"",4,null,null,null,null,null,null,""]
[1054,"n/a","Municipalidad de Tiltil",null,null,"Municipalidades",0,0,"",4,null,null,null,null,null,null,""]
[1055,"n/a","Municipalidad de San Bernardo",null,null,"Municipalidades",0,0,"",4,null,null,null,null,null,null,""]
[1056,"n/a","Municipalidad de Buin",null,null,"Municipalidades",0,0,"",4,null,null,null,null,null,null,""]
[1057,"n/a","Municipalidad de Calera de Tango",null,null,"Municipalidades",0,0,"",4,null,null,null,null,null,null,""]
[1058,"n/a","Municipalidad de Paine",null,null,"Municipalidades",0,0,"",4,null,null,null,null,null,null,""]
[1059,"n/a","Municipalidad de Melipilla",null,null,"Municipalidades",0,0,"",4,null,null,null,null,null,null,""]
[1060,"n/a","Municipalidad de Alhué",null,null,"Municipalidades",0,0,"",4,null,null,null,null,null,null,""]
[1061,"n/a","Municipalidad de Curacaví",null,null,"Municipalidades",0,0,"",4,null,null,null,null,null,null,""]
[1062,"n/a","Municipalidad de María Pinto",null,null,"Municipalidades",0,0,"",4,null,null,null,null,null,null,""]
[1063,"n/a","Municipalidad de San Pedro",null,null,"Municipalidades",0,0,"",4,null,null,null,null,null,null,""]
[1064,"n/a","Municipalidad de Talagante",null,null,"Municipalidades",0,0,"",4,null,null,null,null,null,null,""]
[1065,"n/a","Municipalidad de El Monte",null,null,"Municipalidades",0,0,"",4,null,null,null,null,null,null,""]
[1066,"n/a","Municipalidad de Isla de Maipo",null,null,"Municipalidades",0,0,"",4,null,null,null,null,null,null,""]
[1067,"n/a","Municipalidad de Padre Hurtado",null,null,"Municipalidades",0,0,"",4,null,null,null,null,null,null,""]
[1068,"n/a","Municipalidad de Peñaflor",null,null,"Municipalidades",0,0,"",4,null,null,null,null,null,null,""]
[1069,"n/a",null,null,null,null,0,0,"",0,null,null,null,null,null,null,""]
[1070,"n/a",null,null,null,null,0,0,"",0,null,null,null,null,null,null,""]
[1071,"n/a",null,null,null,null,0,0,"",0,null,null,null,null,null,null,""]
[1072,"n/a",null,null,null,null,0,0,"",0,null,null,null,null,null,null,""]
[1073,"n/a",null,null,null,null,0,0,"",0,null,null,null,null,null,null,""]
[1074,"n/a",null,null,null,null,0,0,"",0,null,null,null,null,null,null,""]
[1075,"n/a",null,null,null,null,0,0,"",0,null,null,null,null,null,null,""]
[1076,"n/a",null,null,null,null,0,0,"",0,null,null,null,null,null,null,""]
[1077,"n/a",null,null,null,null,0,0,"",0,null,null,null,null,null,null,""]
[1078,"n/a",null,null,null,null,0,0,"",0,null,null,null,null,null,null,""]
[1079,"n/a",null,null,null,null,0,0,"",0,null,null,null,null,null,null,""]
[1080,"n/a",null,null,null,null,0,0,"",0,null,null,null,null,null,null,""]
[1081,"n/a",null,null,null,null,0,0,"",0,null,null,null,null,null,null,""]
[1082,"n/a",null,null,null,null,0,0,"",0,null,null,null,null,null,null,""]
[1083,"n/a",null,null,null,null,0,0,"",0,null,null,null,null,null,null,""]
[1084,"n/a",null,null,null,null,0,0,"",0,null,null,null,null,null,null,""]
[1085,"n/a",null,null,null,null,0,0,"",0,null,null,null,null,null,null,""]
[1086,"n/a",null,null,null,null,0,0,"",0,null,null,null,null,null,null,""]
[1087,"n/a",null,null,null,null,0,0,"",0,null,null,null,null,null,null,""]
[1088,"n/a",null,null,null,null,0,0,"",0,null,null,null,null,null,null,""]
[1089,"n/a","Defensa Civil de Chile",null,null,"Ministerio de Defensa Nacional",0,0,"",4,null,null,null,null,null,null,""]
[1090,"n/a","Consejo Nacional para la Transparencia",null,null,"Ministerio Secretaría General de la Presidencia de la República",0,0,"",4,null,null,null,null,null,null,""]
[1091,"n/a","Instituto Nacional de Derechos Humanos",null,null,"Ministerio Secretaría General de la Presidencia de la República",0,0,"",4,null,null,null,null,null,null,""]
[1092,"n/a","Consejo de Calificación Cinematográfica",null,null,"Ministerio de Educación",0,0,"",4,null,null,null,null,null,null,""]
[1093,"n/a","Comisión Nacional de Acreditación",null,null,"Ministerio de Educación",0,0,"",4,null,null,null,null,null,null,""]
[1094,"n/a","Comisión Administradora del Sistema de Créditos para Estudios Superiores",null,null,"Ministerio de Educación",0,0,"",4,null,null,null,null,null,null,""]
[1095,"n/a","Subsecretaría de Derechos Humanos",150,"PMG","Ministerio de Justicia",38802,690,"11.6638812;16.9041756521739",4,null,null,null,null,null,null,10084]
[1096,"n/a","Comisión del Sistema Nacional de Certificación de Competencias Laborales",null,null,"Ministerio del Trabajo y Previsión Social",0,0,"",4,null,null,null,null,null,null,""]
[1097,"n/a",null,null,null,null,0,0,"",0,null,null,null,null,null,null,""]
[1098,"n/a",null,null,null,null,0,0,"",0,null,null,null,null,null,null,""]
[1099,"n/a",null,null,null,null,0,0,"",0,null,null,null,null,null,null,""]
[1100,"n/a",null,null,null,null,0,0,"",0,null,null,null,null,null,null,""]
[1101,"n/a","Universidad de Chile",null,null,"Ministerio de Educación",0,0,"",4,null,null,null,null,null,null,""]
[1102,"n/a","Comité de Auditoria Parlamentaria",null,null,"Congreso Nacional",0,0,"",4,null,null,null,null,null,null,""]
[1103,"n/a","Centros de Formación Técnica Estatales",null,null,"Ministerio de Educación",0,0,"",4,null,null,null,null,null,null,""]
[1104,"n/a","Universidad de O`Higgins",null,null,"Ministerio de Educación",0,0,"",4,null,null,null,null,null,null,""]
[1105,"n/a","Universidad de Aysén",null,null,"Ministerio de Educación",0,0,"",4,null,null,null,null,null,null,""]
[1106,"n/a","Universidad de Playa Ancha de Ciencias de Educación",null,null,"Ministerio de Educación",0,0,"",4,null,null,null,null,null,null,""]
[1107,"n/a","Universidad Tecnológica Metropolitana",null,null,"Ministerio de Educación",0,0,"",4,null,null,null,null,null,null,""]
[1108,"n/a","Universidad Arturo Prat",null,null,"Ministerio de Educación",0,0,"",4,null,null,null,null,null,null,""]
[1109,"n/a","Universidad de Los Lagos",null,null,"Ministerio de Educación",0,0,"",4,null,null,null,null,null,null,""]
[1110,"n/a","Universidad de Santiago de Chile",null,null,"Ministerio de Educación",0,0,"",4,null,null,null,null,null,null,""]
[1111,"n/a","Universidad del Bío Bío",null,null,"Ministerio de Educación",0,0,"",4,null,null,null,null,null,null,""]
[1112,"n/a","Universidad de la Frontera",null,null,"Ministerio de Educación",0,0,"",4,null,null,null,null,null,null,""]
[1113,"n/a","Universidad de Tarapacá",null,null,"Ministerio de Educación",0,0,"",4,null,null,null,null,null,null,""]
[1114,"n/a","Universidad de Antofagasta",null,null,"Ministerio de Educación",0,0,"",4,null,null,null,null,null,null,""]
[1115,"n/a","Universidad de Atacama",null,null,"Ministerio de Educación",0,0,"",4,null,null,null,null,null,null,""]
[1116,"n/a","Universidad de la Serena",null,null,"Ministerio de Educación",0,0,"",4,null,null,null,null,null,null,""]
[1117,"n/a","Universidad de Valparaíso",null,null,"Ministerio de Educación",0,0,"",4,null,null,null,null,null,null,""]
[1118,"n/a","Universidad de Talca",null,null,"Ministerio de Educación",0,0,"",4,null,null,null,null,null,null,""]
[1119,"n/a","Universidad de Magallanes",null,null,"Ministerio de Educación",0,0,"",4,null,null,null,null,null,null,""]
[1120,"n/a","Universidad Metropolitana de Ciencias de la Educación",null,null,"Ministerio de Educación",0,0,"",4,null,null,null,null,null,null,""]
[1121,"n/a","Gobierno Regional Región de Ñuble",151,"PMG","Ministerio del Interior y Seguridad Pública",95557.793103448275,4925,"28.7246726068966;5.83242083388762",4,null,null,null,null,null,null,10085]
[1122,"n/a","SERVIU Región de Ñuble",152,"PMG","Ministerio de Vivienda y Urbanismo",79466.903225806454,1387,"23.8877511096774;17.2226035397818",4,null,null,null,null,null,null,10095]
[1123,"n/a","SUBSECRETARÍA DE LA NIÑEZ",153,"PMG","MINISTERIO DE DESARROLLO SOCIAL",41863.053763440861,1801,"12.5840339612903;6.98724817395354",4,null,null,null,null,null,null,10092]
[1124,"n/a","Dirección General de Concesiones de Obras Públicas",154,"PMG","Ministerio de Obras Públicas",230387.25806451609,4649,"69.2544097741936;14.8966250320915",4,null,null,null,null,null,null,2]
[1125,"n/a","Subsecretaría del Patrimonio Cultural",155,"PMG","Ministerio de las Culturas, las Artes y el Patrimonio",507913.61263552401,6376,"152.678831958239;23.9458644852946",4,null,null,null,null,null,null,10088]
[1126,"n/a",null,null,null,null,0,0,"",0,null,null,null,null,null,null,""]
[1127,"n/a",null,null,null,null,0,0,"",0,null,null,null,null,null,null,""]
[1128,"n/a",null,null,null,null,0,0,"",0,null,null,null,null,null,null,""]
[1129,"n/a",null,null,null,null,0,0,"",0,null,null,null,null,null,null,""]
[1130,"n/a",null,null,null,null,0,0,"",0,null,null,null,null,null,null,""]
[1131,"n/a",null,null,null,null,0,0,"",0,null,null,null,null,null,null,""]
[1132,"n/a",null,null,null,null,0,0,"",0,null,null,null,null,null,null,""]
[1133,"n/a",null,null,null,null,0,0,"",0,null,null,null,null,null,null,""]
[1134,"n/a",null,null,null,null,0,0,"",0,null,null,null,null,null,null,""]
[1135,"n/a",null,null,null,null,0,0,"",0,null,null,null,null,null,null,""]
[1136,"n/a",null,null,null,null,0,0,"",0,null,null,null,null,null,null,""]
[1137,"n/a",null,null,null,null,0,0,"",0,null,null,null,null,null,null,""]
[1138,"n/a",null,null,null,null,0,0,"",0,null,null,null,null,null,null,""]
[1139,"n/a",null,null,null,null,0,0,"",0,null,null,null,null,null,null,""]
[1140,"n/a",null,null,null,null,0,0,"",0,null,null,null,null,null,null,""]
[1141,"n/a",null,null,null,null,0,0,"",0,null,null,null,null,null,null,""]
[1142,"n/a",null,null,null,null,0,0,"",0,null,null,null,null,null,null,""]
[1143,"n/a",null,null,null,null,0,0,"",0,null,null,null,null,null,null,""]
[1144,"n/a",null,null,null,null,0,0,"",0,null,null,null,null,null,null,""]
[1145,"n/a",null,null,null,null,0,0,"",0,null,null,null,null,null,null,""]
[1146,"n/a",null,null,null,null,0,0,"",0,null,null,null,null,null,null,""]
[1147,"n/a",null,null,null,null,0,0,"",0,null,null,null,null,null,null,""]
[1148,"n/a",null,null,null,null,0,0,"",0,null,null,null,null,null,null,""]
[1149,"n/a",null,null,null,null,0,0,"",0,null,null,null,null,null,null,""]
[1150,"n/a",null,null,null,null,0,0,"",0,null,null,null,null,null,null,""]
[1151,"n/a",null,null,null,null,0,0,"",0,null,null,null,null,null,null,""]
[1152,"n/a",null,null,null,null,0,0,"",0,null,null,null,null,null,null,""]
[1153,"n/a",null,null,null,null,0,0,"",0,null,null,null,null,null,null,""]
[1154,"n/a",null,null,null,null,0,0,"",0,null,null,null,null,null,null,""]
[1155,"n/a",null,null,null,null,0,0,"",0,null,null,null,null,null,null,""]
[1156,"n/a",null,null,null,null,0,0,"",0,null,null,null,null,null,null,""]
[1157,"n/a",null,null,null,null,0,0,"",0,null,null,null,null,null,null,""]
[1158,"n/a",null,null,null,null,0,0,"",0,null,null,null,null,null,null,""]
[1159,"n/a",null,null,null,null,0,0,"",0,null,null,null,null,null,null,""]
[1160,"n/a",null,null,null,null,0,0,"",0,null,null,null,null,null,null,""]
[1161,"n/a",null,null,null,null,0,0,"",0,null,null,null,null,null,null,""]
[1162,"n/a",null,null,null,null,0,0,"",0,null,null,null,null,null,null,""]
[1163,"n/a",null,null,null,null,0,0,"",0,null,null,null,null,null,null,""]
[1164,"n/a",null,null,null,null,0,0,"",0,null,null,null,null,null,null,""]
[1165,"n/a",null,null,null,null,0,0,"",0,null,null,null,null,null,null,""]
[1166,"n/a",null,null,null,null,0,0,"",0,null,null,null,null,null,null,""]
[1167,"n/a",null,null,null,null,0,0,"",0,null,null,null,null,null,null,""]
[1168,"n/a",null,null,null,null,0,0,"",0,null,null,null,null,null,null,""]
[1169,"n/a",null,null,null,null,0,0,"",0,null,null,null,null,null,null,""]
[1170,"n/a",null,null,null,null,0,0,"",0,null,null,null,null,null,null,""]
[1171,"n/a",null,null,null,null,0,0,"",0,null,null,null,null,null,null,""]
[1172,"n/a",null,null,null,null,0,0,"",0,null,null,null,null,null,null,""]
[1173,"n/a",null,null,null,null,0,0,"",0,null,null,null,null,null,null,""]
[1174,"n/a",null,null,null,null,0,0,"",0,null,null,null,null,null,null,""]
[1175,"n/a",null,null,null,null,0,0,"",0,null,null,null,null,null,null,""]
[1176,"n/a",null,null,null,null,0,0,"",0,null,null,null,null,null,null,""]
[1177,"n/a",null,null,null,null,0,0,"",0,null,null,null,null,null,null,""]
[1178,"n/a",null,null,null,null,0,0,"",0,null,null,null,null,null,null,""]
[1179,"n/a",null,null,null,null,0,0,"",0,null,null,null,null,null,null,""]
[1180,"n/a",null,null,null,null,0,0,"",0,null,null,null,null,null,null,""]
[1181,"n/a",null,null,null,null,0,0,"",0,null,null,null,null,null,null,""]
[1182,"n/a",null,null,null,null,0,0,"",0,null,null,null,null,null,null,""]
[1183,"n/a",null,null,null,null,0,0,"",0,null,null,null,null,null,null,""]
[1184,"n/a",null,null,null,null,0,0,"",0,null,null,null,null,null,null,""]
[1185,"n/a",null,null,null,null,0,0,"",0,null,null,null,null,null,null,""]
[1186,"n/a",null,null,null,null,0,0,"",0,null,null,null,null,null,null,""]
[1187,"n/a",null,null,null,null,0,0,"",0,null,null,null,null,null,null,""]
[1188,"n/a",null,null,null,null,0,0,"",0,null,null,null,null,null,null,""]
[1189,"n/a",null,null,null,null,0,0,"",0,null,null,null,null,null,null,""]
[1190,"n/a",null,null,null,null,0,0,"",0,null,null,null,null,null,null,""]
[1191,"n/a",null,null,null,null,0,0,"",0,null,null,null,null,null,null,""]
[1192,"n/a",null,null,null,null,0,0,"",0,null,null,null,null,null,null,""]
[1193,"n/a",null,null,null,null,0,0,"",0,null,null,null,null,null,null,""]
[1194,"n/a",null,null,null,null,0,0,"",0,null,null,null,null,null,null,""]
[1195,"n/a",null,null,null,null,0,0,"",0,null,null,null,null,null,null,""]
[1196,"n/a",null,null,null,null,0,0,"",0,null,null,null,null,null,null,""]
[1197,"n/a",null,null,null,null,0,0,"",0,null,null,null,null,null,null,""]
[1198,"n/a",null,null,null,null,0,0,"",0,null,null,null,null,null,null,""]
[1199,"n/a",null,null,null,null,0,0,"",0,null,null,null,null,null,null,""]
[1200,"n/a",null,null,null,null,0,0,"",0,null,null,null,null,null,null,""]
[1201,"n/a",null,null,null,null,0,0,"",0,null,null,null,null,null,null,""]
[1202,"n/a",null,null,null,null,0,0,"",0,null,null,null,null,null,null,""]
[1203,"n/a",null,null,null,null,0,0,"",0,null,null,null,null,null,null,""]
[1204,"n/a",null,null,null,null,0,0,"",0,null,null,null,null,null,null,""]
[1205,"n/a",null,null,null,null,0,0,"",0,null,null,null,null,null,null,""]
[1206,"n/a",null,null,null,null,0,0,"",0,null,null,null,null,null,null,""]
[1207,"n/a",null,null,null,null,0,0,"",0,null,null,null,null,null,null,""]
[1208,"n/a",null,null,null,null,0,0,"",0,null,null,null,null,null,null,""]
[1209,"n/a",null,null,null,null,0,0,"",0,null,null,null,null,null,null,""]
[1210,"n/a",null,null,null,null,0,0,"",0,null,null,null,null,null,null,""]
[1211,"n/a",null,null,null,null,0,0,"",0,null,null,null,null,null,null,""]
[1212,"n/a",null,null,null,null,0,0,"",0,null,null,null,null,null,null,""]
[1213,"n/a",null,null,null,null,0,0,"",0,null,null,null,null,null,null,""]
[1214,"n/a",null,null,null,null,0,0,"",0,null,null,null,null,null,null,""]
[1215,"n/a",null,null,null,null,0,0,"",0,null,null,null,null,null,null,""]
[1216,"n/a",null,null,null,null,0,0,"",0,null,null,null,null,null,null,""]
[1217,"n/a",null,null,null,null,0,0,"",0,null,null,null,null,null,null,""]
[1218,"n/a",null,null,null,null,0,0,"",0,null,null,null,null,null,null,""]
[1219,"n/a",null,null,null,null,0,0,"",0,null,null,null,null,null,null,""]
[1220,"n/a",null,null,null,null,0,0,"",0,null,null,null,null,null,null,""]
[1221,"n/a",null,null,null,null,0,0,"",0,null,null,null,null,null,null,""]
[1222,"n/a",null,null,null,null,0,0,"",0,null,null,null,null,null,null,""]
[1223,"n/a",null,null,null,null,0,0,"",0,null,null,null,null,null,null,""]
[1224,"n/a",null,null,null,null,0,0,"",0,null,null,null,null,null,null,""]
[1225,"n/a",null,null,null,null,0,0,"",0,null,null,null,null,null,null,""]
[1226,"n/a",null,null,null,null,0,0,"",0,null,null,null,null,null,null,""]
[1227,"n/a",null,null,null,null,0,0,"",0,null,null,null,null,null,null,""]
[1228,"n/a",null,null,null,null,0,0,"",0,null,null,null,null,null,null,""]
[1229,"n/a",null,null,null,null,0,0,"",0,null,null,null,null,null,null,""]
[1230,"n/a",null,null,null,null,0,0,"",0,null,null,null,null,null,null,""]
[1231,"n/a",null,null,null,null,0,0,"",0,null,null,null,null,null,null,""]
[1232,"n/a",null,null,null,null,0,0,"",0,null,null,null,null,null,null,""]
[1233,"n/a",null,null,null,null,0,0,"",0,null,null,null,null,null,null,""]
[1234,"n/a",null,null,null,null,0,0,"",0,null,null,null,null,null,null,""]
[1235,"n/a",null,null,null,null,0,0,"",0,null,null,null,null,null,null,""]
[1236,"n/a",null,null,null,null,0,0,"",0,null,null,null,null,null,null,""]
[1237,"n/a",null,null,null,null,0,0,"",0,null,null,null,null,null,null,""]
[1238,"n/a",null,null,null,null,0,0,"",0,null,null,null,null,null,null,""]
[1239,"n/a",null,null,null,null,0,0,"",0,null,null,null,null,null,null,""]
[1240,"n/a",null,null,null,null,0,0,"",0,null,null,null,null,null,null,""]
[1241,"n/a",null,null,null,null,0,0,"",0,null,null,null,null,null,null,""]
[1242,"n/a",null,null,null,null,0,0,"",0,null,null,null,null,null,null,""]
[1243,"n/a",null,null,null,null,0,0,"",0,null,null,null,null,null,null,""]
[1244,"n/a",null,null,null,null,0,0,"",0,null,null,null,null,null,null,""]
[1245,"n/a",null,null,null,null,0,0,"",0,null,null,null,null,null,null,""]
[1246,"n/a",null,null,null,null,0,0,"",0,null,null,null,null,null,null,""]
[1247,"n/a",null,null,null,null,0,0,"",0,null,null,null,null,null,null,""]
[1248,"n/a",null,null,null,null,0,0,"",0,null,null,null,null,null,null,""]
[1249,"n/a",null,null,null,null,0,0,"",0,null,null,null,null,null,null,""]
[1250,"n/a",null,null,null,null,0,0,"",0,null,null,null,null,null,null,""]
[1251,"n/a",null,null,null,null,0,0,"",0,null,null,null,null,null,null,""]
[1252,"n/a",null,null,null,null,0,0,"",0,null,null,null,null,null,null,""]
[1253,"n/a",null,null,null,null,0,0,"",0,null,null,null,null,null,null,""]
[1254,"n/a",null,null,null,null,0,0,"",0,null,null,null,null,null,null,""]
[1255,"n/a",null,null,null,null,0,0,"",0,null,null,null,null,null,null,""]
[1256,"n/a",null,null,null,null,0,0,"",0,null,null,null,null,null,null,""]
[1257,"n/a",null,null,null,null,0,0,"",0,null,null,null,null,null,null,""]
[1258,"n/a",null,null,null,null,0,0,"",0,null,null,null,null,null,null,""]
[1259,"n/a",null,null,null,null,0,0,"",0,null,null,null,null,null,null,""]
[1260,"n/a",null,null,null,null,0,0,"",0,null,null,null,null,null,null,""]
[1261,"n/a",null,null,null,null,0,0,"",0,null,null,null,null,null,null,""]
[1262,"n/a",null,null,null,null,0,0,"",0,null,null,null,null,null,null,""]
[1263,"n/a",null,null,null,null,0,0,"",0,null,null,null,null,null,null,""]
[1264,"n/a",null,null,null,null,0,0,"",0,null,null,null,null,null,null,""]
[1265,"n/a",null,null,null,null,0,0,"",0,null,null,null,null,null,null,""]
[1266,"n/a",null,null,null,null,0,0,"",0,null,null,null,null,null,null,""]
[1267,"n/a",null,null,null,null,0,0,"",0,null,null,null,null,null,null,""]
[1268,"n/a",null,null,null,null,0,0,"",0,null,null,null,null,null,null,""]
[1269,"n/a",null,null,null,null,0,0,"",0,null,null,null,null,null,null,""]
[1270,"n/a",null,null,null,null,0,0,"",0,null,null,null,null,null,null,""]
[1271,"n/a",null,null,null,null,0,0,"",0,null,null,null,null,null,null,""]
[1272,"n/a",null,null,null,null,0,0,"",0,null,null,null,null,null,null,""]
[1273,"n/a",null,null,null,null,0,0,"",0,null,null,null,null,null,null,""]
[1274,"n/a",null,null,null,null,0,0,"",0,null,null,null,null,null,null,""]
[1275,"n/a",null,null,null,null,0,0,"",0,null,null,null,null,null,null,""]
[1276,"n/a",null,null,null,null,0,0,"",0,null,null,null,null,null,null,""]
[1277,"n/a",null,null,null,null,0,0,"",0,null,null,null,null,null,null,""]
[1278,"n/a",null,null,null,null,0,0,"",0,null,null,null,null,null,null,""]
[1279,"n/a",null,null,null,null,0,0,"",0,null,null,null,null,null,null,""]
[1280,"n/a",null,null,null,null,0,0,"",0,null,null,null,null,null,null,""]
[1281,"n/a",null,null,null,null,0,0,"",0,null,null,null,null,null,null,""]
[1282,"n/a",null,null,null,null,0,0,"",0,null,null,null,null,null,null,""]
[1283,"n/a",null,null,null,null,0,0,"",0,null,null,null,null,null,null,""]
[1284,"n/a",null,null,null,null,0,0,"",0,null,null,null,null,null,null,""]
[1285,"n/a",null,null,null,null,0,0,"",0,null,null,null,null,null,null,""]
[1286,"n/a",null,null,null,null,0,0,"",0,null,null,null,null,null,null,""]
[1287,"n/a",null,null,null,null,0,0,"",0,null,null,null,null,null,null,""]
[1288,"n/a",null,null,null,null,0,0,"",0,null,null,null,null,null,null,""]
[1289,"n/a",null,null,null,null,0,0,"",0,null,null,null,null,null,null,""]
[1290,"n/a",null,null,null,null,0,0,"",0,null,null,null,null,null,null,""]
[1291,"n/a",null,null,null,null,0,0,"",0,null,null,null,null,null,null,""]
[1292,"n/a",null,null,null,null,0,0,"",0,null,null,null,null,null,null,""]
[1293,"n/a",null,null,null,null,0,0,"",0,null,null,null,null,null,null,""]
[1294,"n/a",null,null,null,null,0,0,"",0,null,null,null,null,null,null,""]
[1295,"n/a",null,null,null,null,0,0,"",0,null,null,null,null,null,null,""]
[1296,"n/a",null,null,null,null,0,0,"",0,null,null,null,null,null,null,""]
[1297,"n/a",null,null,null,null,0,0,"",0,null,null,null,null,null,null,""]
[1298,"n/a",null,null,null,null,0,0,"",0,null,null,null,null,null,null,""]
[1299,"n/a",null,null,null,null,0,0,"",0,null,null,null,null,null,null,""]
[1300,"n/a",null,null,null,null,0,0,"",0,null,null,null,null,null,null,""]
[1301,"n/a",null,null,null,null,0,0,"",0,null,null,null,null,null,null,""]
[1302,"n/a",null,null,null,null,0,0,"",0,null,null,null,null,null,null,""]
[1303,"n/a",null,null,null,null,0,0,"",0,null,null,null,null,null,null,""]
[1304,"n/a",null,null,null,null,0,0,"",0,null,null,null,null,null,null,""]
[1305,"n/a",null,null,null,null,0,0,"",0,null,null,null,null,null,null,""]
[1306,"n/a",null,null,null,null,0,0,"",0,null,null,null,null,null,null,""]
[1307,"n/a",null,null,null,null,0,0,"",0,null,null,null,null,null,null,""]
[1308,"n/a",null,null,null,null,0,0,"",0,null,null,null,null,null,null,""]
[1309,"n/a",null,null,null,null,0,0,"",0,null,null,null,null,null,null,""]
[1310,"n/a",null,null,null,null,0,0,"",0,null,null,null,null,null,null,""]
[1311,"n/a",null,null,null,null,0,0,"",0,null,null,null,null,null,null,""]
[1312,"n/a",null,null,null,null,0,0,"",0,null,null,null,null,null,null,""]
[1313,"n/a",null,null,null,null,0,0,"",0,null,null,null,null,null,null,""]
[1314,"n/a",null,null,null,null,0,0,"",0,null,null,null,null,null,null,""]
[1315,"n/a",null,null,null,null,0,0,"",0,null,null,null,null,null,null,""]
[1316,"n/a",null,null,null,null,0,0,"",0,null,null,null,null,null,null,""]
[1317,"n/a",null,null,null,null,0,0,"",0,null,null,null,null,null,null,""]
[1318,"n/a",null,null,null,null,0,0,"",0,null,null,null,null,null,null,""]
[1319,"n/a",null,null,null,null,0,0,"",0,null,null,null,null,null,null,""]
[1320,"n/a",null,null,null,null,0,0,"",0,null,null,null,null,null,null,""]
[1321,"n/a",null,null,null,null,0,0,"",0,null,null,null,null,null,null,""]
[1322,"n/a",null,null,null,null,0,0,"",0,null,null,null,null,null,null,""]
[1323,"n/a",null,null,null,null,0,0,"",0,null,null,null,null,null,null,""]
[1324,"n/a",null,null,null,null,0,0,"",0,null,null,null,null,null,null,""]
[1325,"n/a",null,null,null,null,0,0,"",0,null,null,null,null,null,null,""]
[1326,"n/a",null,null,null,null,0,0,"",0,null,null,null,null,null,null,""]
[1327,"n/a",null,null,null,null,0,0,"",0,null,null,null,null,null,null,""]
[1328,"n/a",null,null,null,null,0,0,"",0,null,null,null,null,null,null,""]
[1329,"n/a",null,null,null,null,0,0,"",0,null,null,null,null,null,null,""]
[1330,"n/a",null,null,null,null,0,0,"",0,null,null,null,null,null,null,""]
[1331,"n/a",null,null,null,null,0,0,"",0,null,null,null,null,null,null,""]
[1332,"n/a",null,null,null,null,0,0,"",0,null,null,null,null,null,null,""]
[1333,"n/a",null,null,null,null,0,0,"",0,null,null,null,null,null,null,""]
[1334,"n/a",null,null,null,null,0,0,"",0,null,null,null,null,null,null,""]
[1335,"n/a",null,null,null,null,0,0,"",0,null,null,null,null,null,null,""]
[1336,"n/a",null,null,null,null,0,0,"",0,null,null,null,null,null,null,""]
[1337,"n/a",null,null,null,null,0,0,"",0,null,null,null,null,null,null,""]
[1338,"n/a",null,null,null,null,0,0,"",0,null,null,null,null,null,null,""]
[1339,"n/a",null,null,null,null,0,0,"",0,null,null,null,null,null,null,""]
[1340,"n/a",null,null,null,null,0,0,"",0,null,null,null,null,null,null,""]
[1341,"n/a",null,null,null,null,0,0,"",0,null,null,null,null,null,null,""]
[1342,"n/a",null,null,null,null,0,0,"",0,null,null,null,null,null,null,""]
[1343,"n/a",null,null,null,null,0,0,"",0,null,null,null,null,null,null,""]
[1344,"n/a",null,null,null,null,0,0,"",0,null,null,null,null,null,null,""]
[1345,"n/a",null,null,null,null,0,0,"",0,null,null,null,null,null,null,""]
[1346,"n/a",null,null,null,null,0,0,"",0,null,null,null,null,null,null,""]
[1347,"n/a",null,null,null,null,0,0,"",0,null,null,null,null,null,null,""]
[1348,"n/a",null,null,null,null,0,0,"",0,null,null,null,null,null,null,""]
[1349,"n/a",null,null,null,null,0,0,"",0,null,null,null,null,null,null,""]
[1350,"n/a",null,null,null,null,0,0,"",0,null,null,null,null,null,null,""]
[1351,"n/a",null,null,null,null,0,0,"",0,null,null,null,null,null,null,""]
[1352,"n/a",null,null,null,null,0,0,"",0,null,null,null,null,null,null,""]
[1353,"n/a",null,null,null,null,0,0,"",0,null,null,null,null,null,null,""]
[1354,"n/a",null,null,null,null,0,0,"",0,null,null,null,null,null,null,""]
[1355,"n/a",null,null,null,null,0,0,"",0,null,null,null,null,null,null,""]
[1356,"n/a",null,null,null,null,0,0,"",0,null,null,null,null,null,null,""]
[1357,"n/a",null,null,null,null,0,0,"",0,null,null,null,null,null,null,""]
[1358,"n/a",null,null,null,null,0,0,"",0,null,null,null,null,null,null,""]
[1359,"n/a",null,null,null,null,0,0,"",0,null,null,null,null,null,null,""]
[1360,"n/a",null,null,null,null,0,0,"",0,null,null,null,null,null,null,""]
[1361,"n/a",null,null,null,null,0,0,"",0,null,null,null,null,null,null,""]
[1362,"n/a",null,null,null,null,0,0,"",0,null,null,null,null,null,null,""]
[1363,"n/a",null,null,null,null,0,0,"",0,null,null,null,null,null,null,""]
[1364,"n/a",null,null,null,null,0,0,"",0,null,null,null,null,null,null,""]
[1365,"n/a",null,null,null,null,0,0,"",0,null,null,null,null,null,null,""]
[1366,"n/a",null,null,null,null,0,0,"",0,null,null,null,null,null,null,""]
[1367,"n/a",null,null,null,null,0,0,"",0,null,null,null,null,null,null,""]
[1368,"n/a",null,null,null,null,0,0,"",0,null,null,null,null,null,null,""]
[1369,"n/a",null,null,null,null,0,0,"",0,null,null,null,null,null,null,""]
[1370,"n/a",null,null,null,null,0,0,"",0,null,null,null,null,null,null,""]
[1371,"n/a",null,null,null,null,0,0,"",0,null,null,null,null,null,null,""]
[1372,"n/a",null,null,null,null,0,0,"",0,null,null,null,null,null,null,""]
[1373,"n/a",null,null,null,null,0,0,"",0,null,null,null,null,null,null,""]
[1374,"n/a",null,null,null,null,0,0,"",0,null,null,null,null,null,null,""]
[1375,"n/a",null,null,null,null,0,0,"",0,null,null,null,null,null,null,""]
[1376,"n/a",null,null,null,null,0,0,"",0,null,null,null,null,null,null,""]
[1377,"n/a",null,null,null,null,0,0,"",0,null,null,null,null,null,null,""]
[1378,"n/a",null,null,null,null,0,0,"",0,null,null,null,null,null,null,""]
[1379,"n/a",null,null,null,null,0,0,"",0,null,null,null,null,null,null,""]
[1380,"n/a",null,null,null,null,0,0,"",0,null,null,null,null,null,null,""]
[1381,"n/a",null,null,null,null,0,0,"",0,null,null,null,null,null,null,""]
[1382,"n/a",null,null,null,null,0,0,"",0,null,null,null,null,null,null,""]
[1383,"n/a",null,null,null,null,0,0,"",0,null,null,null,null,null,null,""]
[1384,"n/a",null,null,null,null,0,0,"",0,null,null,null,null,null,null,""]
[1385,"n/a",null,null,null,null,0,0,"",0,null,null,null,null,null,null,""]
[1386,"n/a",null,null,null,null,0,0,"",0,null,null,null,null,null,null,""]
[1387,"n/a",null,null,null,null,0,0,"",0,null,null,null,null,null,null,""]
[1388,"n/a",null,null,null,null,0,0,"",0,null,null,null,null,null,null,""]
[1389,"n/a",null,null,null,null,0,0,"",0,null,null,null,null,null,null,""]
[1390,"n/a",null,null,null,null,0,0,"",0,null,null,null,null,null,null,""]
[1391,"n/a",null,null,null,null,0,0,"",0,null,null,null,null,null,null,""]
[1392,"n/a",null,null,null,null,0,0,"",0,null,null,null,null,null,null,""]
[1393,"n/a",null,null,null,null,0,0,"",0,null,null,null,null,null,null,""]
[1394,"n/a",null,null,null,null,0,0,"",0,null,null,null,null,null,null,""]
[1395,"n/a",null,null,null,null,0,0,"",0,null,null,null,null,null,null,""]
[1396,"n/a",null,null,null,null,0,0,"",0,null,null,null,null,null,null,""]
[1397,"n/a",null,null,null,null,0,0,"",0,null,null,null,null,null,null,""]
[1398,"n/a",null,null,null,null,0,0,"",0,null,null,null,null,null,null,""]
[1399,"n/a",null,null,null,null,0,0,"",0,null,null,null,null,null,null,""]
[1400,"n/a",null,null,null,null,0,0,"",0,null,null,null,null,null,null,""]
[1401,"n/a",null,null,null,null,0,0,"",0,null,null,null,null,null,null,""]
[1402,"n/a",null,null,null,null,0,0,"",0,null,null,null,null,null,null,""]
[1403,"n/a",null,null,null,null,0,0,"",0,null,null,null,null,null,null,""]
[1404,"n/a",null,null,null,null,0,0,"",0,null,null,null,null,null,null,""]
[1405,"n/a",null,null,null,null,0,0,"",0,null,null,null,null,null,null,""]
[1406,"n/a",null,null,null,null,0,0,"",0,null,null,null,null,null,null,""]
[1407,"n/a",null,null,null,null,0,0,"",0,null,null,null,null,null,null,""]
[1408,"n/a",null,null,null,null,0,0,"",0,null,null,null,null,null,null,""]
[1409,"n/a",null,null,null,null,0,0,"",0,null,null,null,null,null,null,""]
[1410,"n/a",null,null,null,null,0,0,"",0,null,null,null,null,null,null,""]
[1411,"n/a",null,null,null,null,0,0,"",0,null,null,null,null,null,null,""]
[1412,"n/a",null,null,null,null,0,0,"",0,null,null,null,null,null,null,""]
[1413,"n/a",null,null,null,null,0,0,"",0,null,null,null,null,null,null,""]
[1414,"n/a",null,null,null,null,0,0,"",0,null,null,null,null,null,null,""]
[1415,"n/a",null,null,null,null,0,0,"",0,null,null,null,null,null,null,""]
[1416,"n/a",null,null,null,null,0,0,"",0,null,null,null,null,null,null,""]
[1417,"n/a",null,null,null,null,0,0,"",0,null,null,null,null,null,null,""]
[1418,"n/a",null,null,null,null,0,0,"",0,null,null,null,null,null,null,""]
[1419,"n/a",null,null,null,null,0,0,"",0,null,null,null,null,null,null,""]
[1420,"n/a",null,null,null,null,0,0,"",0,null,null,null,null,null,null,""]
[1421,"n/a",null,null,null,null,0,0,"",0,null,null,null,null,null,null,""]
[1422,"n/a",null,null,null,null,0,0,"",0,null,null,null,null,null,null,""]
[1423,"n/a",null,null,null,null,0,0,"",0,null,null,null,null,null,null,""]
[1424,"n/a",null,null,null,null,0,0,"",0,null,null,null,null,null,null,""]
[1425,"n/a",null,null,null,null,0,0,"",0,null,null,null,null,null,null,""]
[1426,"n/a",null,null,null,null,0,0,"",0,null,null,null,null,null,null,""]
[1427,"n/a",null,null,null,null,0,0,"",0,null,null,null,null,null,null,""]
[1428,"n/a",null,null,null,null,0,0,"",0,null,null,null,null,null,null,""]
[1429,"n/a",null,null,null,null,0,0,"",0,null,null,null,null,null,null,""]
[1430,"n/a",null,null,null,null,0,0,"",0,null,null,null,null,null,null,""]
[1431,"n/a",null,null,null,null,0,0,"",0,null,null,null,null,null,null,""]
[1432,"n/a",null,null,null,null,0,0,"",0,null,null,null,null,null,null,""]
[1433,"n/a",null,null,null,null,0,0,"",0,null,null,null,null,null,null,""]
[1434,"n/a",null,null,null,null,0,0,"",0,null,null,null,null,null,null,""]
[1435,"n/a",null,null,null,null,0,0,"",0,null,null,null,null,null,null,""]
[1436,"n/a",null,null,null,null,0,0,"",0,null,null,null,null,null,null,""]
[1437,"n/a",null,null,null,null,0,0,"",0,null,null,null,null,null,null,""]
[1438,"n/a",null,null,null,null,0,0,"",0,null,null,null,null,null,null,""]
[1439,"n/a",null,null,null,null,0,0,"",0,null,null,null,null,null,null,""]
[1440,"n/a",null,null,null,null,0,0,"",0,null,null,null,null,null,null,""]
[1441,"n/a",null,null,null,null,0,0,"",0,null,null,null,null,null,null,""]
[1442,"n/a",null,null,null,null,0,0,"",0,null,null,null,null,null,null,""]
[1443,"n/a",null,null,null,null,0,0,"",0,null,null,null,null,null,null,""]
[1444,"n/a",null,null,null,null,0,0,"",0,null,null,null,null,null,null,""]
[1445,"n/a",null,null,null,null,0,0,"",0,null,null,null,null,null,null,""]
[1446,"n/a",null,null,null,null,0,0,"",0,null,null,null,null,null,null,""]
[1447,"n/a",null,null,null,null,0,0,"",0,null,null,null,null,null,null,""]
[1448,"n/a",null,null,null,null,0,0,"",0,null,null,null,null,null,null,""]
[1449,"n/a",null,null,null,null,0,0,"",0,null,null,null,null,null,null,""]
[1450,"n/a",null,null,null,null,0,0,"",0,null,null,null,null,null,null,""]
[1451,"n/a",null,null,null,null,0,0,"",0,null,null,null,null,null,null,""]
[1452,"n/a",null,null,null,null,0,0,"",0,null,null,null,null,null,null,""]
[1453,"n/a",null,null,null,null,0,0,"",0,null,null,null,null,null,null,""]
[1454,"n/a",null,null,null,null,0,0,"",0,null,null,null,null,null,null,""]
[1455,"n/a",null,null,null,null,0,0,"",0,null,null,null,null,null,null,""]
[1456,"n/a",null,null,null,null,0,0,"",0,null,null,null,null,null,null,""]
[1457,"n/a",null,null,null,null,0,0,"",0,null,null,null,null,null,null,""]
[1458,"n/a",null,null,null,null,0,0,"",0,null,null,null,null,null,null,""]
[1459,"n/a",null,null,null,null,0,0,"",0,null,null,null,null,null,null,""]
[1460,"n/a",null,null,null,null,0,0,"",0,null,null,null,null,null,null,""]
[1461,"n/a",null,null,null,null,0,0,"",0,null,null,null,null,null,null,""]
[1462,"n/a",null,null,null,null,0,0,"",0,null,null,null,null,null,null,""]
[1463,"n/a",null,null,null,null,0,0,"",0,null,null,null,null,null,null,""]
[1464,"n/a",null,null,null,null,0,0,"",0,null,null,null,null,null,null,""]
[1465,"n/a",null,null,null,null,0,0,"",0,null,null,null,null,null,null,""]
[1466,"n/a",null,null,null,null,0,0,"",0,null,null,null,null,null,null,""]
[1467,"n/a",null,null,null,null,0,0,"",0,null,null,null,null,null,null,""]
[1468,"n/a",null,null,null,null,0,0,"",0,null,null,null,null,null,null,""]
[1469,"n/a",null,null,null,null,0,0,"",0,null,null,null,null,null,null,""]
[1470,"n/a",null,null,null,null,0,0,"",0,null,null,null,null,null,null,""]
[1471,"n/a",null,null,null,null,0,0,"",0,null,null,null,null,null,null,""]
[1472,"n/a",null,null,null,null,0,0,"",0,null,null,null,null,null,null,""]
[1473,"n/a",null,null,null,null,0,0,"",0,null,null,null,null,null,null,""]
[1474,"n/a",null,null,null,null,0,0,"",0,null,null,null,null,null,null,""]
[1475,"n/a",null,null,null,null,0,0,"",0,null,null,null,null,null,null,""]
[1476,"n/a",null,null,null,null,0,0,"",0,null,null,null,null,null,null,""]
[1477,"n/a",null,null,null,null,0,0,"",0,null,null,null,null,null,null,""]
[1478,"n/a",null,null,null,null,0,0,"",0,null,null,null,null,null,null,""]
[1479,"n/a",null,null,null,null,0,0,"",0,null,null,null,null,null,null,""]
[1480,"n/a",null,null,null,null,0,0,"",0,null,null,null,null,null,null,""]
[1481,"n/a",null,null,null,null,0,0,"",0,null,null,null,null,null,null,""]
[1482,"n/a",null,null,null,null,0,0,"",0,null,null,null,null,null,null,""]
[1483,"n/a",null,null,null,null,0,0,"",0,null,null,null,null,null,null,""]
[1484,"n/a",null,null,null,null,0,0,"",0,null,null,null,null,null,null,""]
[1485,"n/a",null,null,null,null,0,0,"",0,null,null,null,null,null,null,""]
[1486,"n/a",null,null,null,null,0,0,"",0,null,null,null,null,null,null,""]
[1487,"n/a",null,null,null,null,0,0,"",0,null,null,null,null,null,null,""]
[1488,"n/a",null,null,null,null,0,0,"",0,null,null,null,null,null,null,""]
[1489,"n/a",null,null,null,null,0,0,"",0,null,null,null,null,null,null,""]
[1490,"n/a",null,null,null,null,0,0,"",0,null,null,null,null,null,null,""]
[1491,"n/a",null,null,null,null,0,0,"",0,null,null,null,null,null,null,""]
[1492,"n/a",null,null,null,null,0,0,"",0,null,null,null,null,null,null,""]
[1493,"n/a",null,null,null,null,0,0,"",0,null,null,null,null,null,null,""]
[1494,"n/a",null,null,null,null,0,0,"",0,null,null,null,null,null,null,""]
[1495,"n/a",null,null,null,null,0,0,"",0,null,null,null,null,null,null,""]
[1496,"n/a",null,null,null,null,0,0,"",0,null,null,null,null,null,null,""]
[1497,"n/a",null,null,null,null,0,0,"",0,null,null,null,null,null,null,""]
[1498,"n/a",null,null,null,null,0,0,"",0,null,null,null,null,null,null,""]
[1499,"n/a",null,null,null,null,0,0,"",0,null,null,null,null,null,null,""]
[1500,"n/a",null,null,null,null,0,0,"",0,null,null,null,null,null,null,""]
[1501,"n/a",null,null,null,null,0,0,"",0,null,null,null,null,null,null,""]
[1502,"n/a",null,null,null,null,0,0,"",0,null,null,null,null,null,null,""]
[1503,"n/a",null,null,null,null,0,0,"",0,null,null,null,null,null,null,""]
[1504,"n/a","Centro de Referencia de Salud Hospital Provincia Cordillera",null,null,"Ministerio de Salud",0,0,"",4,null,null,null,null,null,null,""]
[1505,"n/a","DIRECCIÓN GENERAL DE PROMOCIÓN DE EXPORTACIONES",156,"PMG","MINISTERIO DE RELACIONES EXTERIORES",204017.43571835198,3044,"53.9936505139502;17.7377301294186",4,null,null,null,null,null,null,10102]
[1506,"n/a","Subsecretaría de Comercio Exterior",null,null,"Ministerio de Relaciones Exteriores",0,0,"",4,null,null,null,null,null,null,""]
[1507,"n/a","DIRECCIÓN DE EDUCACIÓN PÚBLICA",157,"PMG","MINISTERIO DE EDUCACION",86766.061735261392,1984,"26.0818781576196;13.1461079423486",4,null,null,null,null,null,null,10086]
[1508,"n/a",null,null,null,null,0,0,"",0,null,null,null,null,null,null,""]
[1509,"n/a","Subsecretaría de la Niñez",null,null,null,0,0,"",0,null,null,null,null,null,null,""]
[1510,"n/a","SUPERINTENDENCIA DE EDUCACIÓN SUPERIOR",158,"PMG","MINISTERIO DE EDUCACION",48680.714285714283,500,"14.6334227142857;29.2668454285714",4,null,null,null,null,null,null,10099]
[1511,"n/a","Instituto Nacional de Desarrollo Sustentable de la Pesca Artesanal y Acuicultura de Pequeña Escala",159,"PMG","Ministerio de Economía, Fomento y Turismo",39889.60037878788,1050,"11.9908138738636;11.419822737013",4,null,null,null,null,null,null,10104]
[1512,"n/a",null,null,null,null,0,0,"",0,null,null,null,null,null,null,""]
[1513,"n/a","SUBSECRETARIA DE CIENCIA, TECNOLOGIA, CONOCIMIENTO E INNOVACION",160,"PMG","Ministerio de Ciencia, Tecnología, Conocimiento e Innovación",678244.6803664614,2629,"185.519513054724;70.5665701995908",4,null,null,null,null,null,null,10100]
[1514,"n/a","Subsecretaria de Educación Superior",161,"PMG","Ministerio de Educación",122135.1724137931,825,"36.7138328275862;44.5016155485893",4,null,null,null,null,null,null,10103]
[1515,"n/a","Servicio Nacional de Migraciones",162,"PMG","Ministerio del Interior y Seguridad Pública",0,0,"",4,null,null,null,null,null,null,10111]
[1516,"n/a","Servicio Nacional de Protección Especializada a la Niñez y Adolescencia",163,"PMG","Ministerio de Desarrollo Social",0,0,"",4,null,null,null,null,null,null,10109]
[1517,1,"SERVICIO LOCAL DE EDUCACIÓN BARRANCAS",164,"PMG","MINISTERIO DE EDUCACION",1810454.7815668203,128109,"544.222707338986;4.24812235938916",4,null,null,null,null,null,null,10090]
[1518,1,"SERVICIO LOCAL DE EDUCACIÓN COSTA ARAUCANÍA",165,"PMG","MINISTERIO DE EDUCACION",1222434.0359035181,91776,"367.463671192598;3.99908225529833",4,null,null,null,null,null,null,10094]
[1519,1,"SERVICIO LOCAL DE EDUCACIÓN HUASCO",166,"PMG","MINISTERIO DE EDUCACION",1033830.4585890616,85748,"310.769435851872;3.62421789256743",4,null,null,null,null,null,null,10093]
[1520,1,"SERVICIO LOCAL DE EDUCACIÓN PUERTO CORDILLERA",167,"PMG","MINISTERIO DE EDUCACION",44271.321839080454,8914,"13.3079593448276;1.49292790496159",4,null,null,null,null,null,null,10091]
[1521,1,"Servicio Local De Educación Colchagua",168,"PMG","Ministerio de Educación",0,0,"",4,null,null,null,null,null,null,10107]
[1522,"n/a","Defensoría del Contribuyente",169,"PMG","Ministerio de Hacienda",0,0,"",4,null,null,null,null,null,null,10112]
[1523,1,"SERVICIO LOCAL DE EDUCACIÓN ANDALIÉN SUR",170,"PMG","Ministerio de Educación",0,0,"",4,null,null,null,null,null,null,10098]
[1524,1,"SERVICIO LOCAL DE EDUCACIÓN ATACAMA",171,"PMG","Ministerio de Educación",0,0,"",4,null,null,null,null,null,null,10105]
[1525,1,"SERVICIO LOCAL DE EDUCACIÓN AYSÉN",172,"PMG","Ministerio de Educación",0,0,"",4,null,null,null,null,null,null,10117]
[1526,1,"SERVICIO LOCAL DE EDUCACIÓN CHINCHORRO",173,"PMG","Ministerio de Educación",0,0,"",4,null,null,null,null,null,null,10096]
[1527,1,"SERVICIO LOCAL DE EDUCACIÓN GABRIELA MISTRAL",174,"PMG","Ministerio de Educación",0,0,"",4,null,null,null,null,null,null,10097]
[1528,1,"SERVICIO LOCAL DE EDUCACIÓN IQUIQUE",175,"PMG","Ministerio de Educación",0,0,"",4,null,null,null,null,null,null,10113]
[1529,"n/a","SERVICIO LOCAL DE EDUCACIÓN LICANCABUR",null,"PMG","Ministerio de Educación",0,0,"",4,null,null,null,null,null,null,""]
[1530,1,"SERVICIO LOCAL DE EDUCACIÓN LLANQUIHUE",176,"PMG","Ministerio de Educación",0,0,"",4,null,null,null,null,null,null,10108]
[1531,1,"SERVICIO LOCAL DE EDUCACIÓN MAGALLANES",177,"PMG","Ministerio de Educación",0,0,"",4,null,null,null,null,null,null,10118]
[1532,1,"SERVICIO LOCAL DE EDUCACIÓN PUNILLA CORDILLERA",178,"PMG","Ministerio de Educación",0,0,"",4,null,null,null,null,null,null,10116]
[1533,1,"SERVICIO LOCAL DE EDUCACIÓN VALPARAÍSO",179,"PMG","Ministerio de Educación",0,0,"",4,null,null,null,null,null,null,10106]
[1534,"n/a","AGENCIA DE COOPERACION INTERNACIONAL PARA EL DESARROLLO",180,"PMG","Ministerio de Relaciones Exteriores",0,0,"",4,null,null,null,null,null,null,4]
[1535,"n/a","SERVICIO LOCAL DE EDUCACIÓN MAULE COSTA",null,"PMG","Ministerio de Educación",0,0,"",0,null,null,null,null,null,null,""]
[1536,"n/a","SERVICIO LOCAL DE EDUCACIÓN TAMARUGAL",null,null,null,0,0,"",0,null,null,null,null,null,null,""]
[1537,"n/a","SERVICIO LOCAL DE EDUCACIÓN ELQUI",null,null,null,0,0,"",0,null,null,null,null,null,null,""]
[1538,"n/a","SERVICIO LOCAL DE EDUCACIÓN COSTA CENTRAL",null,null,null,0,0,"",0,null,null,null,null,null,null,""]
[1539,"n/a","SERVICIO LOCAL DE EDUCACIÓN MARGA MARGA",null,null,null,0,0,"",0,null,null,null,null,null,null,""]
[1540,"n/a","SERVICIO LOCAL DE EDUCACIÓN LOS LIBERTADORES",null,null,null,0,0,"",0,null,null,null,null,null,null,""]
[1541,"n/a","SERVICIO LOCAL DE EDUCACIÓN SANTA ROSA",null,null,null,0,0,"",0,null,null,null,null,null,null,""]
[1542,"n/a","SERVICIO LOCAL DE EDUCACIÓN SANTA CORINA",null,null,null,0,0,"",0,null,null,null,null,null,null,""]
[1543,"n/a","SERVICIO LOCAL DE EDUCACIÓN DEL PINO",null,null,null,0,0,"",0,null,null,null,null,null,null,""]
[1544,"n/a","SERVICIO LOCAL DE EDUCACIÓN ANDALIÉN COSTA",null,null,null,0,0,"",0,null,null,null,null,null,null,""]
[1545,"n/a","SERVICIO LOCAL DE EDUCACIÓN VALDIVIA",null,null,null,0,0,"",0,null,null,null,null,null,null,""]
[1546,"n/a",null,null,null,null,0,0,"",0,null,null,null,null,null,null,""]
[1547,"n/a",null,null,null,null,0,0,"",0,null,null,null,null,null,null,""]
[1548,"n/a",null,null,null,null,0,0,"",0,null,null,null,null,null,null,""]
[1549,"n/a",null,null,null,null,0,0,"",0,null,null,null,null,null,null,""]
[1550,"n/a",null,null,null,null,0,0,"",0,null,null,null,null,null,null,""]
[1551,"n/a",null,null,null,null,0,0,"",0,null,null,null,null,null,null,""]
[1552,"n/a",null,null,null,null,0,0,"",0,null,null,null,null,null,null,""]
[1553,"n/a",null,null,null,null,0,0,"",0,null,null,null,null,null,null,""]
[1554,"n/a",null,null,null,null,0,0,"",0,null,null,null,null,null,null,""]
[1555,"n/a",null,null,null,null,0,0,"",0,null,null,null,null,null,null,""]
[1556,"n/a",null,null,null,null,0,0,"",0,null,null,null,null,null,null,""]
[1557,"n/a",null,null,null,null,0,0,"",0,null,null,null,null,null,null,""]
[1558,"n/a",null,null,null,null,0,0,"",0,null,null,null,null,null,null,""]
[1559,"n/a",null,null,null,null,0,0,"",0,null,null,null,null,null,null,""]
[1560,"n/a",null,null,null,null,0,0,"",0,null,null,null,null,null,null,""]
[1561,"n/a",null,null,null,null,0,0,"",0,null,null,null,null,null,null,""]
[1562,"n/a",null,null,null,null,0,0,"",0,null,null,null,null,null,null,""]
[1563,"n/a",null,null,null,null,0,0,"",0,null,null,null,null,null,null,""]
[1564,"n/a",null,null,null,null,0,0,"",0,null,null,null,null,null,null,""]
[1565,"n/a",null,null,null,null,0,0,"",0,null,null,null,null,null,null,""]
[1566,"n/a",null,null,null,null,0,0,"",0,null,null,null,null,null,null,""]
[1567,"n/a",null,null,null,null,0,0,"",0,null,null,null,null,null,null,""]
[1568,"n/a",null,null,null,null,0,0,"",0,null,null,null,null,null,null,""]
[1569,"n/a",null,null,null,null,0,0,"",0,null,null,null,null,null,null,""]
[1570,"n/a",null,null,null,null,0,0,"",0,null,null,null,null,null,null,""]
[1571,"n/a",null,null,null,null,0,0,"",0,null,null,null,null,null,null,""]
[1572,"n/a",null,null,null,null,0,0,"",0,null,null,null,null,null,null,""]
[1573,"n/a",null,null,null,null,0,0,"",0,null,null,null,null,null,null,""]
[1574,"n/a",null,null,null,null,0,0,"",0,null,null,null,null,null,null,""]
[1575,"n/a",null,null,null,null,0,0,"",0,null,null,null,null,null,null,""]
[1576,"n/a",null,null,null,null,0,0,"",0,null,null,null,null,null,null,""]
[1577,"n/a",null,null,null,null,0,0,"",0,null,null,null,null,null,null,""]
[1578,"n/a",null,null,null,null,0,0,"",0,null,null,null,null,null,null,""]
[1579,"n/a",null,null,null,null,0,0,"",0,null,null,null,null,null,null,""]
[1580,"n/a",null,null,null,null,0,0,"",0,null,null,null,null,null,null,""]
[1581,"n/a",null,null,null,null,0,0,"",0,null,null,null,null,null,null,""]
[1582,"n/a",null,null,null,null,0,0,"",0,null,null,null,null,null,null,""]
[1583,"n/a",null,null,null,null,0,0,"",0,null,null,null,null,null,null,""]
[1584,"n/a",null,null,null,null,0,0,"",0,null,null,null,null,null,null,""]
[1585,"n/a",null,null,null,null,0,0,"",0,null,null,null,null,null,null,""]
[1586,"n/a",null,null,null,null,0,0,"",0,null,null,null,null,null,null,""]
[1587,"n/a",null,null,null,null,0,0,"",0,null,null,null,null,null,null,""]
[1588,"n/a",null,null,null,null,0,0,"",0,null,null,null,null,null,null,""]
[1589,"n/a",null,null,null,null,0,0,"",0,null,null,null,null,null,null,""]
[1590,"n/a",null,null,null,null,0,0,"",0,null,null,null,null,null,null,""]
[1591,"n/a",null,null,null,null,0,0,"",0,null,null,null,null,null,null,""]
[1592,"n/a",null,null,null,null,0,0,"",0,null,null,null,null,null,null,""]
[1593,"n/a",null,null,null,null,0,0,"",0,null,null,null,null,null,null,""]
[1594,"n/a",null,null,null,null,0,0,"",0,null,null,null,null,null,null,""]
[1595,"n/a",null,null,null,null,0,0,"",0,null,null,null,null,null,null,""]
[1596,"n/a",null,null,null,null,0,0,"",0,null,null,null,null,null,null,""]
[1597,"n/a",null,null,null,null,0,0,"",0,null,null,null,null,null,null,""]
[1598,"n/a",null,null,null,null,0,0,"",0,null,null,null,null,null,null,""]
[1599,"n/a",null,null,null,null,0,0,"",0,null,null,null,null,null,null,""]
[1600,"n/a",null,null,null,null,0,0,"",0,null,null,null,null,null,null,""]
[1601,"n/a",null,null,null,null,0,0,"",0,null,null,null,null,null,null,""]
[1602,"n/a",null,null,null,null,0,0,"",0,null,null,null,null,null,null,""]
[1603,"n/a",null,null,null,null,0,0,"",0,null,null,null,null,null,null,""]
[1604,"n/a",null,null,null,null,0,0,"",0,null,null,null,null,null,null,""]
[1605,"n/a",null,null,null,null,0,0,"",0,null,null,null,null,null,null,""]
[1606,"n/a",null,null,null,null,0,0,"",0,null,null,null,null,null,null,""]
[1607,"n/a",null,null,null,null,0,0,"",0,null,null,null,null,null,null,""]
[1608,"n/a",null,null,null,null,0,0,"",0,null,null,null,null,null,null,""]
[1609,"n/a",null,null,null,null,0,0,"",0,null,null,null,null,null,null,""]
[1610,"n/a",null,null,null,null,0,0,"",0,null,null,null,null,null,null,""]
[1611,"n/a",null,null,null,null,0,0,"",0,null,null,null,null,null,null,""]
[1612,"n/a",null,null,null,null,0,0,"",0,null,null,null,null,null,null,""]
[1613,"n/a",null,null,null,null,0,0,"",0,null,null,null,null,null,null,""]
[1614,"n/a",null,null,null,null,0,0,"",0,null,null,null,null,null,null,""]
[1615,"n/a",null,null,null,null,0,0,"",0,null,null,null,null,null,null,""]
[1616,"n/a",null,null,null,null,0,0,"",0,null,null,null,null,null,null,""]
[1617,"n/a",null,null,null,null,0,0,"",0,null,null,null,null,null,null,""]
[1618,"n/a",null,null,null,null,0,0,"",0,null,null,null,null,null,null,""]
[1619,"n/a",null,null,null,null,0,0,"",0,null,null,null,null,null,null,""]
[1620,"n/a",null,null,null,null,0,0,"",0,null,null,null,null,null,null,""]
[1621,"n/a",null,null,null,null,0,0,"",0,null,null,null,null,null,null,""]
[1622,"n/a",null,null,null,null,0,0,"",0,null,null,null,null,null,null,""]
[1623,"n/a",null,null,null,null,0,0,"",0,null,null,null,null,null,null,""]
[1624,"n/a",null,null,null,null,0,0,"",0,null,null,null,null,null,null,""]
[1625,"n/a",null,null,null,null,0,0,"",0,null,null,null,null,null,null,""]
[1626,"n/a",null,null,null,null,0,0,"",0,null,null,null,null,null,null,""]
[1627,"n/a",null,null,null,null,0,0,"",0,null,null,null,null,null,null,""]
[1628,"n/a",null,null,null,null,0,0,"",0,null,null,null,null,null,null,""]
[1629,"n/a",null,null,null,null,0,0,"",0,null,null,null,null,null,null,""]
[1630,"n/a",null,null,null,null,0,0,"",0,null,null,null,null,null,null,""]
[1631,"n/a",null,null,null,null,0,0,"",0,null,null,null,null,null,null,""]
[1632,"n/a",null,null,null,null,0,0,"",0,null,null,null,null,null,null,""]
[1633,"n/a",null,null,null,null,0,0,"",0,null,null,null,null,null,null,""]
[1634,"n/a",null,null,null,null,0,0,"",0,null,null,null,null,null,null,""]
[1635,"n/a",null,null,null,null,0,0,"",0,null,null,null,null,null,null,""]
[1636,"n/a",null,null,null,null,0,0,"",0,null,null,null,null,null,null,""]
[1637,"n/a",null,null,null,null,0,0,"",0,null,null,null,null,null,null,""]
[1638,"n/a",null,null,null,null,0,0,"",0,null,null,null,null,null,null,""]
[1639,"n/a",null,null,null,null,0,0,"",0,null,null,null,null,null,null,""]
[1640,"n/a",null,null,null,null,0,0,"",0,null,null,null,null,null,null,""]
[1641,"n/a",null,null,null,null,0,0,"",0,null,null,null,null,null,null,""]
[1642,"n/a",null,null,null,null,0,0,"",0,null,null,null,null,null,null,""]
[1643,"n/a",null,null,null,null,0,0,"",0,null,null,null,null,null,null,""]
[1644,"n/a",null,null,null,null,0,0,"",0,null,null,null,null,null,null,""]
[1645,"n/a",null,null,null,null,0,0,"",0,null,null,null,null,null,null,""]
[1646,"n/a",null,null,null,null,0,0,"",0,null,null,null,null,null,null,""]
[1647,"n/a",null,null,null,null,0,0,"",0,null,null,null,null,null,null,""]
[1648,"n/a",null,null,null,null,0,0,"",0,null,null,null,null,null,null,""]
[1649,"n/a",null,null,null,null,0,0,"",0,null,null,null,null,null,null,""]
[1650,"n/a",null,null,null,null,0,0,"",0,null,null,null,null,null,null,""]
[1651,"n/a",null,null,null,null,0,0,"",0,null,null,null,null,null,null,""]
[1652,"n/a",null,null,null,null,0,0,"",0,null,null,null,null,null,null,""]
[1653,"n/a",null,null,null,null,0,0,"",0,null,null,null,null,null,null,""]
[1654,"n/a",null,null,null,null,0,0,"",0,null,null,null,null,null,null,""]
[1655,"n/a",null,null,null,null,0,0,"",0,null,null,null,null,null,null,""]
[1656,"n/a",null,null,null,null,0,0,"",0,null,null,null,null,null,null,""]
[1657,"n/a",null,null,null,null,0,0,"",0,null,null,null,null,null,null,""]
[1658,"n/a",null,null,null,null,0,0,"",0,null,null,null,null,null,null,""]
[1659,"n/a",null,null,null,null,0,0,"",0,null,null,null,null,null,null,""]
[1660,"n/a",null,null,null,null,0,0,"",0,null,null,null,null,null,null,""]
[1661,"n/a",null,null,null,null,0,0,"",0,null,null,null,null,null,null,""]
[1662,"n/a",null,null,null,null,0,0,"",0,null,null,null,null,null,null,""]
[1663,"n/a",null,null,null,null,0,0,"",0,null,null,null,null,null,null,""]
[1664,"n/a",null,null,null,null,0,0,"",0,null,null,null,null,null,null,""]
[1665,"n/a",null,null,null,null,0,0,"",0,null,null,null,null,null,null,""]
[1666,"n/a",null,null,null,null,0,0,"",0,null,null,null,null,null,null,""]
[1667,"n/a",null,null,null,null,0,0,"",0,null,null,null,null,null,null,""]
[1668,"n/a",null,null,null,null,0,0,"",0,null,null,null,null,null,null,""]
[1669,"n/a",null,null,null,null,0,0,"",0,null,null,null,null,null,null,""]
[1670,"n/a",null,null,null,null,0,0,"",0,null,null,null,null,null,null,""]
[1671,"n/a",null,null,null,null,0,0,"",0,null,null,null,null,null,null,""]
[1672,"n/a",null,null,null,null,0,0,"",0,null,null,null,null,null,null,""]
[1673,"n/a",null,null,null,null,0,0,"",0,null,null,null,null,null,null,""]
[1674,"n/a",null,null,null,null,0,0,"",0,null,null,null,null,null,null,""]
[1675,"n/a",null,null,null,null,0,0,"",0,null,null,null,null,null,null,""]
[1676,"n/a",null,null,null,null,0,0,"",0,null,null,null,null,null,null,""]
[1677,"n/a",null,null,null,null,0,0,"",0,null,null,null,null,null,null,""]
[1678,"n/a",null,null,null,null,0,0,"",0,null,null,null,null,null,null,""]
[1679,"n/a",null,null,null,null,0,0,"",0,null,null,null,null,null,null,""]
[1680,"n/a",null,null,null,null,0,0,"",0,null,null,null,null,null,null,""]
[1681,"n/a",null,null,null,null,0,0,"",0,null,null,null,null,null,null,""]
[1682,"n/a",null,null,null,null,0,0,"",0,null,null,null,null,null,null,""]
[1683,"n/a",null,null,null,null,0,0,"",0,null,null,null,null,null,null,""]
[1684,"n/a",null,null,null,null,0,0,"",0,null,null,null,null,null,null,""]
[1685,"n/a",null,null,null,null,0,0,"",0,null,null,null,null,null,null,""]
[1686,"n/a",null,null,null,null,0,0,"",0,null,null,null,null,null,null,""]
[1687,"n/a",null,null,null,null,0,0,"",0,null,null,null,null,null,null,""]
[1688,"n/a",null,null,null,null,0,0,"",0,null,null,null,null,null,null,""]
[1689,"n/a",null,null,null,null,0,0,"",0,null,null,null,null,null,null,""]
[1690,"n/a",null,null,null,null,0,0,"",0,null,null,null,null,null,null,""]
[1691,"n/a",null,null,null,null,0,0,"",0,null,null,null,null,null,null,""]
[1692,"n/a",null,null,null,null,0,0,"",0,null,null,null,null,null,null,""]
[1693,"n/a",null,null,null,null,0,0,"",0,null,null,null,null,null,null,""]
[1694,"n/a",null,null,null,null,0,0,"",0,null,null,null,null,null,null,""]
[1695,"n/a",null,null,null,null,0,0,"",0,null,null,null,null,null,null,""]
[1696,"n/a",null,null,null,null,0,0,"",0,null,null,null,null,null,null,""]
[1697,"n/a",null,null,null,null,0,0,"",0,null,null,null,null,null,null,""]
[1698,"n/a",null,null,null,null,0,0,"",0,null,null,null,null,null,null,""]
[1699,"n/a",null,null,null,null,0,0,"",0,null,null,null,null,null,null,""]
[1700,"n/a",null,null,null,null,0,0,"",0,null,null,null,null,null,null,""]
[1701,"n/a",null,null,null,null,0,0,"",0,null,null,null,null,null,null,""]
[1702,"n/a",null,null,null,null,0,0,"",0,null,null,null,null,null,null,""]
[1703,"n/a",null,null,null,null,0,0,"",0,null,null,null,null,null,null,""]
[1704,"n/a",null,null,null,null,0,0,"",0,null,null,null,null,null,null,""]
[1705,"n/a",null,null,null,null,0,0,"",0,null,null,null,null,null,null,""]
[1706,"n/a",null,null,null,null,0,0,"",0,null,null,null,null,null,null,""]
[1707,"n/a",null,null,null,null,0,0,"",0,null,null,null,null,null,null,""]
[1708,"n/a",null,null,null,null,0,0,"",0,null,null,null,null,null,null,""]
[1709,"n/a",null,null,null,null,0,0,"",0,null,null,null,null,null,null,""]
[1710,"n/a",null,null,null,null,0,0,"",0,null,null,null,null,null,null,""]
[1711,"n/a",null,null,null,null,0,0,"",0,null,null,null,null,null,null,""]
[1712,"n/a",null,null,null,null,0,0,"",0,null,null,null,null,null,null,""]
[1713,"n/a",null,null,null,null,0,0,"",0,null,null,null,null,null,null,""]
[1714,"n/a",null,null,null,null,0,0,"",0,null,null,null,null,null,null,""]
[1715,"n/a",null,null,null,null,0,0,"",0,null,null,null,null,null,null,""]
[1716,"n/a",null,null,null,null,0,0,"",0,null,null,null,null,null,null,""]
[1717,"n/a",null,null,null,null,0,0,"",0,null,null,null,null,null,null,""]
[1718,"n/a",null,null,null,null,0,0,"",0,null,null,null,null,null,null,""]
[1719,"n/a",null,null,null,null,0,0,"",0,null,null,null,null,null,null,""]
[1720,"n/a",null,null,null,null,0,0,"",0,null,null,null,null,null,null,""]
[1721,"n/a",null,null,null,null,0,0,"",0,null,null,null,null,null,null,""]
[1722,"n/a",null,null,null,null,0,0,"",0,null,null,null,null,null,null,""]
[1723,"n/a",null,null,null,null,0,0,"",0,null,null,null,null,null,null,""]
[1724,"n/a",null,null,null,null,0,0,"",0,null,null,null,null,null,null,""]
[1725,"n/a",null,null,null,null,0,0,"",0,null,null,null,null,null,null,""]
[1726,"n/a",null,null,null,null,0,0,"",0,null,null,null,null,null,null,""]
[1727,"n/a",null,null,null,null,0,0,"",0,null,null,null,null,null,null,""]
[1728,"n/a",null,null,null,null,0,0,"",0,null,null,null,null,null,null,""]
[1729,"n/a",null,null,null,null,0,0,"",0,null,null,null,null,null,null,""]
[1730,"n/a",null,null,null,null,0,0,"",0,null,null,null,null,null,null,""]
[1731,"n/a",null,null,null,null,0,0,"",0,null,null,null,null,null,null,""]
[1732,"n/a",null,null,null,null,0,0,"",0,null,null,null,null,null,null,""]
[1733,"n/a",null,null,null,null,0,0,"",0,null,null,null,null,null,null,""]
[1734,"n/a",null,null,null,null,0,0,"",0,null,null,null,null,null,null,""]
[1735,"n/a",null,null,null,null,0,0,"",0,null,null,null,null,null,null,""]
[1736,"n/a",null,null,null,null,0,0,"",0,null,null,null,null,null,null,""]
[1737,"n/a",null,null,null,null,0,0,"",0,null,null,null,null,null,null,""]
[1738,"n/a",null,null,null,null,0,0,"",0,null,null,null,null,null,null,""]
[1739,"n/a",null,null,null,null,0,0,"",0,null,null,null,null,null,null,""]
[1740,"n/a",null,null,null,null,0,0,"",0,null,null,null,null,null,null,""]
[1741,"n/a",null,null,null,null,0,0,"",0,null,null,null,null,null,null,""]
[1742,"n/a",null,null,null,null,0,0,"",0,null,null,null,null,null,null,""]
[1743,"n/a",null,null,null,null,0,0,"",0,null,null,null,null,null,null,""]
[1744,"n/a",null,null,null,null,0,0,"",0,null,null,null,null,null,null,""]
[1745,"n/a",null,null,null,null,0,0,"",0,null,null,null,null,null,null,""]
[1746,"n/a",null,null,null,null,0,0,"",0,null,null,null,null,null,null,""]
[1747,"n/a",null,null,null,null,0,0,"",0,null,null,null,null,null,null,""]
[1748,"n/a",null,null,null,null,0,0,"",0,null,null,null,null,null,null,""]
[1749,"n/a",null,null,null,null,0,0,"",0,null,null,null,null,null,null,""]
[1750,"n/a",null,null,null,null,0,0,"",0,null,null,null,null,null,null,""]
[1751,"n/a",null,null,null,null,0,0,"",0,null,null,null,null,null,null,""]
[1752,"n/a",null,null,null,null,0,0,"",0,null,null,null,null,null,null,""]
[1753,"n/a",null,null,null,null,0,0,"",0,null,null,null,null,null,null,""]
[1754,"n/a",null,null,null,null,0,0,"",0,null,null,null,null,null,null,""]
[1755,"n/a",null,null,null,null,0,0,"",0,null,null,null,null,null,null,""]
[1756,"n/a",null,null,null,null,0,0,"",0,null,null,null,null,null,null,""]
[1757,"n/a",null,null,null,null,0,0,"",0,null,null,null,null,null,null,""]
[1758,"n/a",null,null,null,null,0,0,"",0,null,null,null,null,null,null,""]
[1759,"n/a",null,null,null,null,0,0,"",0,null,null,null,null,null,null,""]
[1760,"n/a",null,null,null,null,0,0,"",0,null,null,null,null,null,null,""]
[1761,"n/a",null,null,null,null,0,0,"",0,null,null,null,null,null,null,""]
[1762,"n/a",null,null,null,null,0,0,"",0,null,null,null,null,null,null,""]
[1763,"n/a",null,null,null,null,0,0,"",0,null,null,null,null,null,null,""]
[1764,"n/a",null,null,null,null,0,0,"",0,null,null,null,null,null,null,""]
[1765,"n/a",null,null,null,null,0,0,"",0,null,null,null,null,null,null,""]
[1766,"n/a",null,null,null,null,0,0,"",0,null,null,null,null,null,null,""]
[1767,"n/a",null,null,null,null,0,0,"",0,null,null,null,null,null,null,""]
[1768,"n/a",null,null,null,null,0,0,"",0,null,null,null,null,null,null,""]
[1769,"n/a",null,null,null,null,0,0,"",0,null,null,null,null,null,null,""]
[1770,"n/a",null,null,null,null,0,0,"",0,null,null,null,null,null,null,""]
[1771,"n/a",null,null,null,null,0,0,"",0,null,null,null,null,null,null,""]
[1772,"n/a",null,null,null,null,0,0,"",0,null,null,null,null,null,null,""]
[1773,"n/a",null,null,null,null,0,0,"",0,null,null,null,null,null,null,""]
[1774,"n/a",null,null,null,null,0,0,"",0,null,null,null,null,null,null,""]
[1775,"n/a",null,null,null,null,0,0,"",0,null,null,null,null,null,null,""]
[1776,"n/a",null,null,null,null,0,0,"",0,null,null,null,null,null,null,""]
[1777,"n/a",null,null,null,null,0,0,"",0,null,null,null,null,null,null,""]
[1778,"n/a",null,null,null,null,0,0,"",0,null,null,null,null,null,null,""]
[1779,"n/a",null,null,null,null,0,0,"",0,null,null,null,null,null,null,""]
[1780,"n/a",null,null,null,null,0,0,"",0,null,null,null,null,null,null,""]
[1781,"n/a",null,null,null,null,0,0,"",0,null,null,null,null,null,null,""]
[1782,"n/a",null,null,null,null,0,0,"",0,null,null,null,null,null,null,""]
[1783,"n/a",null,null,null,null,0,0,"",0,null,null,null,null,null,null,""]
[1784,"n/a",null,null,null,null,0,0,"",0,null,null,null,null,null,null,""]
[1785,"n/a",null,null,null,null,0,0,"",0,null,null,null,null,null,null,""]
[1786,"n/a",null,null,null,null,0,0,"",0,null,null,null,null,null,null,""]
[1787,"n/a",null,null,null,null,0,0,"",0,null,null,null,null,null,null,""]
[1788,"n/a",null,null,null,null,0,0,"",0,null,null,null,null,null,null,""]
[1789,"n/a",null,null,null,null,0,0,"",0,null,null,null,null,null,null,""]
[1790,"n/a",null,null,null,null,0,0,"",0,null,null,null,null,null,null,""]
[1791,"n/a",null,null,null,null,0,0,"",0,null,null,null,null,null,null,""]
[1792,"n/a",null,null,null,null,0,0,"",0,null,null,null,null,null,null,""]
[1793,"n/a",null,null,null,null,0,0,"",0,null,null,null,null,null,null,""]
[1794,"n/a",null,null,null,null,0,0,"",0,null,null,null,null,null,null,""]
[1795,"n/a",null,null,null,null,0,0,"",0,null,null,null,null,null,null,""]
[1796,"n/a",null,null,null,null,0,0,"",0,null,null,null,null,null,null,""]
[1797,"n/a",null,null,null,null,0,0,"",0,null,null,null,null,null,null,""]
[1798,"n/a",null,null,null,null,0,0,"",0,null,null,null,null,null,null,""]
[1799,"n/a",null,null,null,null,0,0,"",0,null,null,null,null,null,null,""]
[1800,"n/a",null,null,null,null,0,0,"",0,null,null,null,null,null,null,""]
[1801,"n/a",null,null,null,null,0,0,"",0,null,null,null,null,null,null,""]
[1802,"n/a",null,null,null,null,0,0,"",0,null,null,null,null,null,null,""]
[1803,"n/a",null,null,null,null,0,0,"",0,null,null,null,null,null,null,""]
[1804,"n/a",null,null,null,null,0,0,"",0,null,null,null,null,null,null,""]
[1805,"n/a",null,null,null,null,0,0,"",0,null,null,null,null,null,null,""]
[1806,"n/a",null,null,null,null,0,0,"",0,null,null,null,null,null,null,""]
[1807,"n/a",null,null,null,null,0,0,"",0,null,null,null,null,null,null,""]
[1808,"n/a",null,null,null,null,0,0,"",0,null,null,null,null,null,null,""]
[1809,"n/a",null,null,null,null,0,0,"",0,null,null,null,null,null,null,""]
[1810,"n/a",null,null,null,null,0,0,"",0,null,null,null,null,null,null,""]
[1811,"n/a",null,null,null,null,0,0,"",0,null,null,null,null,null,null,""]
[1812,"n/a",null,null,null,null,0,0,"",0,null,null,null,null,null,null,""]
[1813,"n/a",null,null,null,null,0,0,"",0,null,null,null,null,null,null,""]
[1814,"n/a",null,null,null,null,0,0,"",0,null,null,null,null,null,null,""]
[1815,"n/a",null,null,null,null,0,0,"",0,null,null,null,null,null,null,""]
[1816,"n/a",null,null,null,null,0,0,"",0,null,null,null,null,null,null,""]
[1817,"n/a",null,null,null,null,0,0,"",0,null,null,null,null,null,null,""]
[1818,"n/a",null,null,null,null,0,0,"",0,null,null,null,null,null,null,""]
[1819,"n/a",null,null,null,null,0,0,"",0,null,null,null,null,null,null,""]
[1820,"n/a",null,null,null,null,0,0,"",0,null,null,null,null,null,null,""]
[1821,"n/a",null,null,null,null,0,0,"",0,null,null,null,null,null,null,""]
[1822,"n/a",null,null,null,null,0,0,"",0,null,null,null,null,null,null,""]
[1823,"n/a",null,null,null,null,0,0,"",0,null,null,null,null,null,null,""]
[1824,"n/a",null,null,null,null,0,0,"",0,null,null,null,null,null,null,""]
[1825,"n/a",null,null,null,null,0,0,"",0,null,null,null,null,null,null,""]
[1826,"n/a",null,null,null,null,0,0,"",0,null,null,null,null,null,null,""]
[1827,"n/a",null,null,null,null,0,0,"",0,null,null,null,null,null,null,""]
[1828,"n/a",null,null,null,null,0,0,"",0,null,null,null,null,null,null,""]
[1829,"n/a",null,null,null,null,0,0,"",0,null,null,null,null,null,null,""]
[1830,"n/a",null,null,null,null,0,0,"",0,null,null,null,null,null,null,""]
[1831,"n/a",null,null,null,null,0,0,"",0,null,null,null,null,null,null,""]
[1832,"n/a",null,null,null,null,0,0,"",0,null,null,null,null,null,null,""]
[1833,"n/a",null,null,null,null,0,0,"",0,null,null,null,null,null,null,""]
[1834,"n/a",null,null,null,null,0,0,"",0,null,null,null,null,null,null,""]
[1835,"n/a",null,null,null,null,0,0,"",0,null,null,null,null,null,null,""]
[1836,"n/a",null,null,null,null,0,0,"",0,null,null,null,null,null,null,""]
[1837,"n/a",null,null,null,null,0,0,"",0,null,null,null,null,null,null,""]
[1838,"n/a",null,null,null,null,0,0,"",0,null,null,null,null,null,null,""]
[1839,"n/a",null,null,null,null,0,0,"",0,null,null,null,null,null,null,""]
[1840,"n/a",null,null,null,null,0,0,"",0,null,null,null,null,null,null,""]
[1841,"n/a",null,null,null,null,0,0,"",0,null,null,null,null,null,null,""]
[1842,"n/a",null,null,null,null,0,0,"",0,null,null,null,null,null,null,""]
[1843,"n/a",null,null,null,null,0,0,"",0,null,null,null,null,null,null,""]
[1844,"n/a",null,null,null,null,0,0,"",0,null,null,null,null,null,null,""]
[1845,"n/a",null,null,null,null,0,0,"",0,null,null,null,null,null,null,""]
[1846,"n/a",null,null,null,null,0,0,"",0,null,null,null,null,null,null,""]
[1847,"n/a",null,null,null,null,0,0,"",0,null,null,null,null,null,null,""]
[1848,"n/a",null,null,null,null,0,0,"",0,null,null,null,null,null,null,""]
[1849,"n/a",null,null,null,null,0,0,"",0,null,null,null,null,null,null,""]
[1850,"n/a",null,null,null,null,0,0,"",0,null,null,null,null,null,null,""]
[1851,"n/a",null,null,null,null,0,0,"",0,null,null,null,null,null,null,""]
[1852,"n/a",null,null,null,null,0,0,"",0,null,null,null,null,null,null,""]
[1853,"n/a",null,null,null,null,0,0,"",0,null,null,null,null,null,null,""]
[1854,"n/a",null,null,null,null,0,0,"",0,null,null,null,null,null,null,""]
[1855,"n/a",null,null,null,null,0,0,"",0,null,null,null,null,null,null,""]
[1856,"n/a",null,null,null,null,0,0,"",0,null,null,null,null,null,null,""]
[1857,"n/a",null,null,null,null,0,0,"",0,null,null,null,null,null,null,""]
[1858,"n/a",null,null,null,null,0,0,"",0,null,null,null,null,null,null,""]
[1859,"n/a",null,null,null,null,0,0,"",0,null,null,null,null,null,null,""]
[1860,"n/a",null,null,null,null,0,0,"",0,null,null,null,null,null,null,""]
[1861,"n/a",null,null,null,null,0,0,"",0,null,null,null,null,null,null,""]
[1862,"n/a",null,null,null,null,0,0,"",0,null,null,null,null,null,null,""]
[1863,"n/a",null,null,null,null,0,0,"",0,null,null,null,null,null,null,""]
[1864,"n/a",null,null,null,null,0,0,"",0,null,null,null,null,null,null,""]
[1865,"n/a",null,null,null,null,0,0,"",0,null,null,null,null,null,null,""]
[1866,"n/a",null,null,null,null,0,0,"",0,null,null,null,null,null,null,""]
[1867,"n/a",null,null,null,null,0,0,"",0,null,null,null,null,null,null,""]
[1868,"n/a",null,null,null,null,0,0,"",0,null,null,null,null,null,null,""]
[1869,"n/a",null,null,null,null,0,0,"",0,null,null,null,null,null,null,""]
[1870,"n/a",null,null,null,null,0,0,"",0,null,null,null,null,null,null,""]
[1871,"n/a",null,null,null,null,0,0,"",0,null,null,null,null,null,null,""]
[1872,"n/a",null,null,null,null,0,0,"",0,null,null,null,null,null,null,""]
[1873,"n/a",null,null,null,null,0,0,"",0,null,null,null,null,null,null,""]
[1874,"n/a",null,null,null,null,0,0,"",0,null,null,null,null,null,null,""]
[1875,"n/a",null,null,null,null,0,0,"",0,null,null,null,null,null,null,""]
[1876,"n/a",null,null,null,null,0,0,"",0,null,null,null,null,null,null,""]
[1877,"n/a",null,null,null,null,0,0,"",0,null,null,null,null,null,null,""]
[1878,"n/a",null,null,null,null,0,0,"",0,null,null,null,null,null,null,""]
[1879,"n/a",null,null,null,null,0,0,"",0,null,null,null,null,null,null,""]
[1880,"n/a",null,null,null,null,0,0,"",0,null,null,null,null,null,null,""]
[1881,"n/a",null,null,null,null,0,0,"",0,null,null,null,null,null,null,""]
[1882,"n/a",null,null,null,null,0,0,"",0,null,null,null,null,null,null,""]
[1883,"n/a",null,null,null,null,0,0,"",0,null,null,null,null,null,null,""]
[1884,"n/a",null,null,null,null,0,0,"",0,null,null,null,null,null,null,""]
[1885,"n/a",null,null,null,null,0,0,"",0,null,null,null,null,null,null,""]
[1886,"n/a",null,null,null,null,0,0,"",0,null,null,null,null,null,null,""]
[1887,"n/a",null,null,null,null,0,0,"",0,null,null,null,null,null,null,""]
[1888,"n/a",null,null,null,null,0,0,"",0,null,null,null,null,null,null,""]
[1889,"n/a",null,null,null,null,0,0,"",0,null,null,null,null,null,null,""]
[1890,"n/a",null,null,null,null,0,0,"",0,null,null,null,null,null,null,""]
[1891,"n/a",null,null,null,null,0,0,"",0,null,null,null,null,null,null,""]
[1892,"n/a",null,null,null,null,0,0,"",0,null,null,null,null,null,null,""]
[1893,"n/a",null,null,null,null,0,0,"",0,null,null,null,null,null,null,""]
[1894,"n/a",null,null,null,null,0,0,"",0,null,null,null,null,null,null,""]
[1895,"n/a",null,null,null,null,0,0,"",0,null,null,null,null,null,null,""]
[1896,"n/a",null,null,null,null,0,0,"",0,null,null,null,null,null,null,""]
[1897,"n/a",null,null,null,null,0,0,"",0,null,null,null,null,null,null,""]
[1898,"n/a",null,null,null,null,0,0,"",0,null,null,null,null,null,null,""]
[1899,"n/a",null,null,null,null,0,0,"",0,null,null,null,null,null,null,""]
[1900,"n/a",null,null,null,null,0,0,"",0,null,null,null,null,null,null,""]
[1901,"n/a",null,null,null,null,0,0,"",0,null,null,null,null,null,null,""]
[1902,"n/a",null,null,null,null,0,0,"",0,null,null,null,null,null,null,""]
[1903,"n/a",null,null,null,null,0,0,"",0,null,null,null,null,null,null,""]
[1904,"n/a",null,null,null,null,0,0,"",0,null,null,null,null,null,null,""]
[1905,"n/a",null,null,null,null,0,0,"",0,null,null,null,null,null,null,""]
[1906,"n/a",null,null,null,null,0,0,"",0,null,null,null,null,null,null,""]
[1907,"n/a",null,null,null,null,0,0,"",0,null,null,null,null,null,null,""]
[1908,"n/a",null,null,null,null,0,0,"",0,null,null,null,null,null,null,""]
[1909,"n/a",null,null,null,null,0,0,"",0,null,null,null,null,null,null,""]
[1910,"n/a",null,null,null,null,0,0,"",0,null,null,null,null,null,null,""]
[1911,"n/a",null,null,null,null,0,0,"",0,null,null,null,null,null,null,""]
[1912,"n/a",null,null,null,null,0,0,"",0,null,null,null,null,null,null,""]
[1913,"n/a",null,null,null,null,0,0,"",0,null,null,null,null,null,null,""]
[1914,"n/a",null,null,null,null,0,0,"",0,null,null,null,null,null,null,""]
[1915,"n/a",null,null,null,null,0,0,"",0,null,null,null,null,null,null,""]
[1916,"n/a",null,null,null,null,0,0,"",0,null,null,null,null,null,null,""]
[1917,"n/a",null,null,null,null,0,0,"",0,null,null,null,null,null,null,""]
[1918,"n/a",null,null,null,null,0,0,"",0,null,null,null,null,null,null,""]
[1919,"n/a",null,null,null,null,0,0,"",0,null,null,null,null,null,null,""]
[1920,"n/a",null,null,null,null,0,0,"",0,null,null,null,null,null,null,""]
[1921,"n/a",null,null,null,null,0,0,"",0,null,null,null,null,null,null,""]
[1922,"n/a",null,null,null,null,0,0,"",0,null,null,null,null,null,null,""]
[1923,"n/a",null,null,null,null,0,0,"",0,null,null,null,null,null,null,""]
[1924,"n/a",null,null,null,null,0,0,"",0,null,null,null,null,null,null,""]
[1925,"n/a",null,null,null,null,0,0,"",0,null,null,null,null,null,null,""]
[1926,"n/a",null,null,null,null,0,0,"",0,null,null,null,null,null,null,""]
[1927,"n/a",null,null,null,null,0,0,"",0,null,null,null,null,null,null,""]
[1928,"n/a",null,null,null,null,0,0,"",0,null,null,null,null,null,null,""]
[1929,"n/a",null,null,null,null,0,0,"",0,null,null,null,null,null,null,""]
[1930,"n/a",null,null,null,null,0,0,"",0,null,null,null,null,null,null,""]
[1931,"n/a",null,null,null,null,0,0,"",0,null,null,null,null,null,null,""]
[1932,"n/a",null,null,null,null,0,0,"",0,null,null,null,null,null,null,""]
[1933,"n/a",null,null,null,null,0,0,"",0,null,null,null,null,null,null,""]
[1934,"n/a",null,null,null,null,0,0,"",0,null,null,null,null,null,null,""]
[1935,"n/a",null,null,null,null,0,0,"",0,null,null,null,null,null,null,""]
[1936,"n/a",null,null,null,null,0,0,"",0,null,null,null,null,null,null,""]
[1937,"n/a",null,null,null,null,0,0,"",0,null,null,null,null,null,null,""]
[1938,"n/a",null,null,null,null,0,0,"",0,null,null,null,null,null,null,""]
[1939,"n/a",null,null,null,null,0,0,"",0,null,null,null,null,null,null,""]
[1940,"n/a",null,null,null,null,0,0,"",0,null,null,null,null,null,null,""]
[1941,"n/a",null,null,null,null,0,0,"",0,null,null,null,null,null,null,""]
[1942,"n/a",null,null,null,null,0,0,"",0,null,null,null,null,null,null,""]
[1943,"n/a",null,null,null,null,0,0,"",0,null,null,null,null,null,null,""]
[1944,"n/a",null,null,null,null,0,0,"",0,null,null,null,null,null,null,""]
[1945,"n/a",null,null,null,null,0,0,"",0,null,null,null,null,null,null,""]
[1946,"n/a",null,null,null,null,0,0,"",0,null,null,null,null,null,null,""]
[1947,"n/a",null,null,null,null,0,0,"",0,null,null,null,null,null,null,""]
[1948,"n/a",null,null,null,null,0,0,"",0,null,null,null,null,null,null,""]
[1949,"n/a",null,null,null,null,0,0,"",0,null,null,null,null,null,null,""]
[1950,"n/a",null,null,null,null,0,0,"",0,null,null,null,null,null,null,""]
[1951,"n/a",null,null,null,null,0,0,"",0,null,null,null,null,null,null,""]
[1952,"n/a",null,null,null,null,0,0,"",0,null,null,null,null,null,null,""]
[1953,"n/a",null,null,null,null,0,0,"",0,null,null,null,null,null,null,""]
[1954,"n/a",null,null,null,null,0,0,"",0,null,null,null,null,null,null,""]
[1955,"n/a",null,null,null,null,0,0,"",0,null,null,null,null,null,null,""]
[1956,"n/a",null,null,null,null,0,0,"",0,null,null,null,null,null,null,""]
[1957,"n/a",null,null,null,null,0,0,"",0,null,null,null,null,null,null,""]
[1958,"n/a",null,null,null,null,0,0,"",0,null,null,null,null,null,null,""]
[1959,"n/a",null,null,null,null,0,0,"",0,null,null,null,null,null,null,""]
[1960,"n/a",null,null,null,null,0,0,"",0,null,null,null,null,null,null,""]
[1961,"n/a",null,null,null,null,0,0,"",0,null,null,null,null,null,null,""]
[1962,"n/a",null,null,null,null,0,0,"",0,null,null,null,null,null,null,""]
[1963,"n/a",null,null,null,null,0,0,"",0,null,null,null,null,null,null,""]
[1964,"n/a",null,null,null,null,0,0,"",0,null,null,null,null,null,null,""]
[1965,"n/a",null,null,null,null,0,0,"",0,null,null,null,null,null,null,""]
[1966,"n/a",null,null,null,null,0,0,"",0,null,null,null,null,null,null,""]
[1967,"n/a",null,null,null,null,0,0,"",0,null,null,null,null,null,null,""]
[1968,"n/a",null,null,null,null,0,0,"",0,null,null,null,null,null,null,""]
[1969,"n/a",null,null,null,null,0,0,"",0,null,null,null,null,null,null,""]
[1970,"n/a",null,null,null,null,0,0,"",0,null,null,null,null,null,null,""]
[1971,"n/a",null,null,null,null,0,0,"",0,null,null,null,null,null,null,""]
[1972,"n/a",null,null,null,null,0,0,"",0,null,null,null,null,null,null,""]
[1973,"n/a",null,null,null,null,0,0,"",0,null,null,null,null,null,null,""]
[1974,"n/a",null,null,null,null,0,0,"",0,null,null,null,null,null,null,""]
[1975,"n/a",null,null,null,null,0,0,"",0,null,null,null,null,null,null,""]
[1976,"n/a",null,null,null,null,0,0,"",0,null,null,null,null,null,null,""]
[1977,"n/a",null,null,null,null,0,0,"",0,null,null,null,null,null,null,""]
[1978,"n/a",null,null,null,null,0,0,"",0,null,null,null,null,null,null,""]
[1979,"n/a",null,null,null,null,0,0,"",0,null,null,null,null,null,null,""]
[1980,"n/a",null,null,null,null,0,0,"",0,null,null,null,null,null,null,""]
[1981,"n/a",null,null,null,null,0,0,"",0,null,null,null,null,null,null,""]
[1982,"n/a",null,null,null,null,0,0,"",0,null,null,null,null,null,null,""]
[1983,"n/a",null,null,null,null,0,0,"",0,null,null,null,null,null,null,""]
[1984,"n/a",null,null,null,null,0,0,"",0,null,null,null,null,null,null,""]
[1985,"n/a",null,null,null,null,0,0,"",0,null,null,null,null,null,null,""]
[1986,"n/a",null,null,null,null,0,0,"",0,null,null,null,null,null,null,""]
[1987,"n/a",null,null,null,null,0,0,"",0,null,null,null,null,null,null,""]
[1988,"n/a",null,null,null,null,0,0,"",0,null,null,null,null,null,null,""]
[1989,"n/a",null,null,null,null,0,0,"",0,null,null,null,null,null,null,""]
[1990,"n/a",null,null,null,null,0,0,"",0,null,null,null,null,null,null,""]
[1991,"n/a",null,null,null,null,0,0,"",0,null,null,null,null,null,null,""]
[1992,"n/a",null,null,null,null,0,0,"",0,null,null,null,null,null,null,""]
[1993,"n/a",null,null,null,null,0,0,"",0,null,null,null,null,null,null,""]
[1994,"n/a",null,null,null,null,0,0,"",0,null,null,null,null,null,null,""]
[1995,"n/a",null,null,null,null,0,0,"",0,null,null,null,null,null,null,""]
[1996,"n/a",null,null,null,null,0,0,"",0,null,null,null,null,null,null,""]
[1997,"n/a",null,null,null,null,0,0,"",0,null,null,null,null,null,null,""]
[1998,"n/a",null,null,null,null,0,0,"",0,null,null,null,null,null,null,""]
[1999,"n/a",null,null,null,null,0,0,"",0,null,null,null,null,null,null,""]
[2000,"n/a",null,null,null,null,0,0,"",0,null,null,null,null,null,null,""]
[]
[]
[]
[null,null,null,null,null,null,null,null,null,null,null,40,16,15,14,6]
[null,null,null,null,null,null,null,null,null,null,null,{"$f":"L2006/M2006","v":2.5},{"$f":"M2006/N2006","v":1.0666666666666667},{"$f":"N2006/O2006","v":1.0714285714285714},{"$f":"O2006/P2006","v":2.3333333333333335}]
[]
[null,null,null,null,null,null,null,null,null,null,null,"contar desniveles"]

{"sheet":"Rep_units","index":1,"n_rows":4,"n_cols":22,"rows_kept":4,"cut":false,"hidden":false,"merged":[[2,13,2,15],[2,16,2,18],[2,19,2,21]]}
[]
[null,"Reporte de Unidades",null,null,null,null,null,null,null,null,null,null,null,null,null,null,null,null,"Información actualizada al 2024"]
[null,null,null,null,null,null,null,null,null,null,null,null,null,"INVENTARIO UNIDADES 2023",null,null,"Gestión de Energía (RT4)",null,null,"Otros requisitos (RT5 al RT10)"]
[null,"Región","Comuna","Edificio","Id Edificio","Nombre Unidad","Id Unidad","Tipo de edificio","Superficie unidad [m2]","N° colaboradores servicio","N° otros colaboradores","N° de rol","Tipo de propiedad","Reporta Consumos (RT4 )","Indicador EE (RT4)","Gestión Ambiental (RT5-10)",2023,2024,2025,2023,2024,2025]